Workbook

Sheet Sheet8 (2)
A1: PIN | B1: Address | C1: Distance from this property | D1: Total Assessment | E1: Bldg SqFt | F1: Land SqFt | G1: Age | H1: $ Assessed Per Sq Ft of Land | I1: % more land vs subject prop | J1: $ Assessed Per Sq Ft of Bldg | K1: % diff | L1: $ Assessed Per Sq Ft of Land | M1: % diff | N1: %diffAbs
A2: 05-18-106-019-0000 | B2: 1555 Tower Rd | D2: 58880 | E2: 2581 | F2: 23353 | G2: 61 | H2: =D2/F2 -> 2.521303473 | I2: =(F2-$F$3)/$F$3*100 -> 0 | J2: =D2/E2 -> 22.81286323 | K2: =($J$3-J2)/$J$3*100 -> 10.184501 | L2: =D2/F2 -> 2.521303473 | M2: =($L$3-L2)/$L$3*100 -> 11.75721244 | N2: 73.66724301
A3: 05-18-106-018-0000 | B3: 1565 Tower Rd | D3: 66725 | E3: 2627 | F3: 23353 | G3: 61 | H3: =D3/F3 -> 2.857234617 | I3: =(F3-$F$3)/$F$3*100 -> 0 | J3: =D3/E3 -> 25.39969547 | K3: =($J$3-J3)/$J$3*100 -> 0 | L3: =D3/F3 -> 2.857234617 | M3: =($L$3-L3)/$L$3*100 -> 0 | N3: 70.15874304
A4: 05-17-200-055-0000 | B4: 889 Private Rd | D4: 65310 | E4: 3149 | F4: 21488 | G4: 61 | H4: =D4/F4 -> 3.039370812 | I4: =(F4-$F$3)/$F$3*100 -> -7.98612598 | J4: =D4/E4 -> 20.73991743 | K4: =($J$3-J4)/$J$3*100 -> 18.34580277 | L4: =D4/F4 -> 3.039370812 | M4: =($L$3-L4)/$L$3*100 -> -6.374562104 | N4: 68.25649358
A5: 05-20-315-009-0000 | B5: 1210 Lindenwood Dr | D5: 79121 | E5: 3841 | F5: 21645 | G5: 66 | H5: =D5/F5 -> 3.655393855 | I5: =(F5-$F$3)/$F$3*100 -> -7.313835482 | J5: =D5/E5 -> 20.59906274 | K5: =($J$3-J5)/$J$3*100 -> 18.90035545 | L5: =D5/F5 -> 3.655393855 | M5: =($L$3-L5)/$L$3*100 -> -27.93467622 | N5: 61.82268453
A6: 05-18-402-061-0000 | B6: 1383 Westmoor Trl | D6: 78020 | E6: 3075 | F6: 20996 | G6: 64 | H6: =D6/F6 -> 3.715945894 | I6: =(F6-$F$3)/$F$3*100 -> -10.09292168 | J6: =D6/E6 -> 25.37235772 | K6: =($J$3-J6)/$J$3*100 -> 0.1076302138 | L6: =D6/F6 -> 3.715945894 | M6: =($L$3-L6)/$L$3*100 -> -30.05392952 | N6: 61.1902727
A7: 05-20-300-037-0000 | B7: 355 Hibbard Rd | D7: 53188 | E7: 2899 | F7: 12933 | G7: 58 | H7: =D7/F7 -> 4.112580221 | I7: =(F7-$F$3)/$F$3*100 -> -44.61953496 | J7: =D7/E7 -> 18.34701621 | K7: =($J$3-J7)/$J$3*100 -> 27.76678668 | L7: =D7/F7 -> 4.112580221 | M7: =($L$3-L7)/$L$3*100 -> -43.93568513 | N7: 57.04778234
A8: 05-20-300-061-0000 | B8: 277 Hibbard Rd | D8: 63501 | E8: 3338 | F8: 14902 | G8: 56 | H8: =D8/F8 -> 4.261240102 | I8: =(F8-$F$3)/$F$3*100 -> -36.18807006 | J8: =D8/E8 -> 19.02366687 | K8: =($J$3-J8)/$J$3*100 -> 25.10277578 | L8: =D8/F8 -> 4.261240102 | M8: =($L$3-L8)/$L$3*100 -> -49.13861387 | N8: 55.49516301
A9: 05-20-313-016-0000 | B9: 1240 Sunset Rd | D9: 59002 | E9: 2501 | F9: 13499 | G9: 59 | H9: =D9/F9 -> 4.370842285 | I9: =(F9-$F$3)/$F$3*100 -> -42.19586349 | J9: =D9/E9 -> 23.59136345 | K9: =($J$3-J9)/$J$3*100 -> 7.119502742 | L9: =D9/F9 -> 4.370842285 | M9: =($L$3-L9)/$L$3*100 -> -52.97456706 | N9: 54.35046636
A10: 05-20-410-003-0000 | B10: 201 Linden St | D10: 82500 | E10: 4217 | F10: 18700 | G10: 48 | H10: =D10/F10 -> 4.411764706 | I10: =(F10-$F$3)/$F$3*100 -> -19.92463495 | J10: =D10/E10 -> 19.56367086 | K10: =($J$3-J10)/$J$3*100 -> 22.97675034 | L10: =D10/F10 -> 4.411764706 | M10: =($L$3-L10)/$L$3*100 -> -54.40680581 | N10: 53.92306831
A11: 05-20-308-057-0000 | B11: 315 Auburn Ave | D11: 61656 | E11: 3246 | F11: 13900 | G11: 57 | H11: =D11/F11 -> 4.435683453 | I11: =(F11-$F$3)/$F$3*100 -> -40.47873935 | J11: =D11/E11 -> 18.99445471 | K11: =($J$3-J11)/$J$3*100 -> 25.21778564 | L11: =D11/F11 -> 4.435683453 | M11: =($L$3-L11)/$L$3*100 -> -55.24393508 | N11: 53.67325842
A12: 05-20-100-010-0000 | B12: 1225 Spruce St | D12: 97131 | E12: 3883 | F12: 21776 | G12: 67 | H12: =D12/F12 -> 4.460461058 | I12: =(F12-$F$3)/$F$3*100 -> -6.752879716 | J12: =D12/E12 -> 25.01442184 | K12: =($J$3-J12)/$J$3*100 -> 1.516843506 | L12: =D12/F12 -> 4.460461058 | M12: =($L$3-L12)/$L$3*100 -> -56.1111234 | N12: 53.41447852
A13: 05-20-308-060-0000 | B13: 290 Euclid Ave | D13: 66233 | E13: 2637 | F13: 14340 | G13: 60 | H13: =D13/F13 -> 4.618758717 | I13: =(F13-$F$3)/$F$3*100 -> -38.59461311 | J13: =D13/E13 -> 25.11679939 | K13: =($J$3-J13)/$J$3*100 -> 1.113777436 | L13: =D13/F13 -> 4.618758717 | M13: =($L$3-L13)/$L$3*100 -> -61.65136353 | N13: 51.76120123
A14: 05-20-308-051-0000 | B14: 345 Auburn Ave | D14: 49704 | E14: 2565 | F14: 10494 | G14: 60 | H14: =D14/F14 -> 4.736420812 | I14: =(F14-$F$3)/$F$3*100 -> -55.06358926 | J14: =D14/E14 -> 19.37777778 | K14: =($J$3-J14)/$J$3*100 -> 23.70862162 | L14: =D14/F14 -> 4.736420812 | M14: =($L$3-L14)/$L$3*100 -> -65.7694046 | N14: 50.53232601
A15: 05-17-117-007-0000 | B15: 960 Old Green Bay Rd | D15: 64978 | E15: 2941 | F15: 13351 | G15: 62 | H15: =D15/F15 -> 4.866901356 | I15: =(F15-$F$3)/$F$3*100 -> -42.82961504 | J15: =D15/E15 -> 22.09384563 | K15: =($J$3-J15)/$J$3*100 -> 13.01531289 | L15: =D15/F15 -> 4.866901356 | M15: =($L$3-L15)/$L$3*100 -> -70.33607697 | N15: 49.16957357
A16: 05-18-402-050-0000 | B16: 1339 Trapp Lane | D16: 107105 | E16: 4183 | F16: 21000 | G16: 66 | H16: =D16/F16 -> 5.100238095 | I16: =(F16-$F$3)/$F$3*100 -> -10.07579326 | J16: =D16/E16 -> 25.60482907 | K16: =($J$3-J16)/$J$3*100 -> -0.807622281 | L16: =D16/F16 -> 5.100238095 | M16: =($L$3-L16)/$L$3*100 -> -78.50260058 | N16: 46.73258028
A17: 05-20-300-044-0000 | B17: 319 Hibbard Rd | D17: 87441 | E17: 3862 | F17: 17123 | G17: 67 | H17: =D17/F17 -> 5.106640192 | I17: =(F17-$F$3)/$F$3*100 -> -26.67751467 | J17: =D17/E17 -> 22.64137752 | K17: =($J$3-J17)/$J$3*100 -> 10.85964967 | L17: =D17/F17 -> 5.106640192 | M17: =($L$3-L17)/$L$3*100 -> -78.72666676 | N17: 46.66571612
A18: 05-18-402-060-0000 | B18: 860 Hibbard Rd | D18: 100502 | E18: 4246 | F18: 19502 | G18: 63 | H18: =D18/F18 -> 5.153420162 | I18: =(F18-$F$3)/$F$3*100 -> -16.49038667 | J18: =D18/E18 -> 23.66980688 | K18: =($J$3-J18)/$J$3*100 -> 6.810666668 | L18: =D18/F18 -> 5.153420162 | M18: =($L$3-L18)/$L$3*100 -> -80.36391314 | N18: 46.17714121
A19: 05-21-418-049-0000 | B19: 130 Sheridan Rd | D19: 52786 | E19: 2132 | F19: 9940 | G19: 53 | H19: =D19/F19 -> 5.310462777 | I19: =(F19-$F$3)/$F$3*100 -> -57.43587548 | J19: =D19/E19 -> 24.75891182 | K19: =($J$3-J19)/$J$3*100 -> 2.522800523 | L19: =D19/F19 -> 5.310462777 | M19: =($L$3-L19)/$L$3*100 -> -85.86022814 | N19: 44.53697173
A20: 05-20-308-054-0000 | B20: 320 Euclid Ave | D20: 81526 | E20: 3773 | F20: 14802 | G20: 57 | H20: =D20/F20 -> 5.50776922 | I20: =(F20-$F$3)/$F$3*100 -> -36.61628056 | J20: =D20/E20 -> 21.6077392 | K20: =($J$3-J20)/$J$3*100 -> 14.92914069 | L20: =D20/F20 -> 5.50776922 | M20: =($L$3-L20)/$L$3*100 -> -92.76573189 | N20: 42.47628261
A21: 05-20-308-069-0000 | B21: 1220 Sunset Rd | D21: 74842 | E21: 3276 | F21: 12693 | G21: 51 | H21: =D21/F21 -> 5.896320807 | I21: =(F21-$F$3)/$F$3*100 -> -45.64724018 | J21: =D21/E21 -> 22.84554335 | K21: =($J$3-J21)/$J$3*100 -> 10.05583759 | L21: =D21/F21 -> 5.896320807 | M21: =($L$3-L21)/$L$3*100 -> -106.3646007 | N21: 38.41820924
A22: 05-20-120-028-0000 | B22: 371 Berkeley Ave | D22: 67818 | E22: 3067 | F22: 10481 | G22: 65 | H22: =D22/F22 -> 6.470565786 | I22: =(F22-$F$3)/$F$3*100 -> -55.11925663 | J22: =D22/E22 -> 22.11216172 | K22: =($J$3-J22)/$J$3*100 -> 12.94320143 | L22: =D22/F22 -> 6.470565786 | M22: =($L$3-L22)/$L$3*100 -> -126.4625295 | N22: 32.42073466
A23: 05-18-216-001-0000 | B23: 995 Grove St | D23: 56052 | E23: 2693 | F23: 7950 | G23: 63 | H23: =D23/F23 -> 7.050566038 | I23: =(F23-$F$3)/$F$3*100 -> -65.95726459 | J23: =D23/E23 -> 20.81396212 | K23: =($J$3-J23)/$J$3*100 -> 18.05428475 | L23: =D23/F23 -> 7.050566038 | M23: =($L$3-L23)/$L$3*100 -> -146.7618864 | N23: 26.36315141
A24: 05-18-217-016-0000 | B24: 1437 Asbury Ave | D24: 63694 | E24: 2860 | F24: 7950 | G24: 21 | H24: =D24/F24 -> 8.011823899 | I24: =(F24-$F$3)/$F$3*100 -> -65.95726459 | J24: =D24/E24 -> 22.27062937 | K24: =($J$3-J24)/$J$3*100 -> 12.31930557 | L24: =D24/F24 -> 8.011823899 | M24: =($L$3-L24)/$L$3*100 -> -180.4048311 | N24: 16.32367383
A25: 05-21-418-051-0000 | B25: 127 Fuller Lane | D25: 76361 | E25: 3432 | F25: 8908 | G25: 37 | H25: =D25/F25 -> 8.572182308 | I25: =(F25-$F$3)/$F$3*100 -> -61.85500792 | J25: =D25/E25 -> 22.24970862 | K25: =($J$3-J25)/$J$3*100 -> 12.4016717 | L25: =D25/F25 -> 8.572182308 | M25: =($L$3-L25)/$L$3*100 -> -200.0167455 | N25: 10.47123205
A26: 05-20-225-030-0000 | B26: 368 Birch St | D26: 85100 | E26: 3502 | F26: 9348 | G26: 27 | H26: =D26/F26 -> 9.103551562 | I26: =(F26-$F$3)/$F$3*100 -> -59.97088169 | J26: =D26/E26 -> 24.30039977 | K26: =($J$3-J26)/$J$3*100 -> 4.327987711 | L26: =D26/F26 -> 9.103551562 | M26: =($L$3-L26)/$L$3*100 -> -218.6140721 | N26: 4.921556024
A27: 05-18-216-012-0000 | B27: 1468 Scott Ave | D27: 63981 | E27: 2930 | F27: 6930 | G27: 33 | H27: =D27/F27 -> 9.232467532 | I27: =(F27-$F$3)/$F$3*100 -> -70.32501178 | J27: =D27/E27 -> 21.83651877 | K27: =($J$3-J27)/$J$3*100 -> 14.02842291 | L27: =D27/F27 -> 9.232467532 | M27: =($L$3-L27)/$L$3*100 -> -223.1259862 | N27: 3.575144153
A28: 05-17-404-013-0000 | B28: 874 Sheridan Rd | C28: 0 | D28: 80409 | E28: 3030 | F28: 8398 | G28: 63 | H28: =D28/F28 -> 9.574779709 | I28: N/A | J28: =D28/E28 -> 26.53762376 | L28: =D28/F28 -> 9.574779709

Sheet REAL (2)
A1: PIN | B1: Address | C1: Distance from this property | D1: Total Assessment | E1: Bldg SqFt | F1: Land SqFt | G1: Age | H1: $ Assessed Per Sq Ft of Land | I1: % more land vs subject prop | J1: $ Assessed Per Sq Ft of Bldg | K1: % diff | L1: $ Assessed Per Sq Ft of Land | M1: % diff
A2: 05-17-404-013-0000 | B2: 874 Sheridan Rd | C2: 0 | D2: 98650 | E2: 3030 | F2: 8400 | G2: 63 | H2: =D2/F2 -> 11.74404762 | I2: N/A | J2: =D2/E2 -> 32.55775578 | L2: =D2/F2 -> 11.74404762
A3: 05-21-201-033-0000 | B3: 380 Sheridan Rd | C3: 1.2 miles | D3: 110478 | E3: 3166 | F3: 12375 | G3: 41 | H3: =D3/F3 -> 8.927515152 | I3: =(F3-$F$2)/$F$2*100 -> 47.32142857 | J3: 34.89513582 | K3: =($J$2-J3)/$J$2*100 -> -7.179180465 | L3: 8.927515152 | M3: =($L$2-L3)/$L$2*100 -> 23.98263834
A4: 05-17-404-015-0000 | B4: 860 Sheridan Rd | C4: 151 feet | D4: 106288 | E4: 2973 | F4: 9300 | G4: 57 | H4: 11.4288172 | I4: 10.71428571 | J4: 35.75109317 | K4: -9.808223326 | L4: 11.4288172 | M4: 2.684171803
A5: 05-17-404-032-0000 | B5: 850 Sheridan Rd | C5: 302 feet | D5: 103756 | E5: 2982 | F5: 14560 | G5: 42 | H5: 7.126098901 | I5: 73.33333333 | J5: 34.79409792 | K5: -6.868846123 | L5: 7.126098901 | M5: 39.32161098
A6: 05-17-404-031-0000 | B6: 840 Sheridan Rd | C6: 397 ft | D6: 119853 | E6: 3571 | F6: 14560 | G6: 41 | H6: 8.231662088 | I6: 73.33333333 | J6: 33.56286754 | K6: -3.087165391 | L6: 8.231662088 | M6: 29.90779368
A7: 05-21-418-049-0000 | B7: 130 Sheridan Rd | C7: 1.8 miles | D7: 65318 | E7: 2132 | F7: 9939 | G7: 51 | H7: 6.57188852 | I7: 18.32142857 | J7: 30.6369606 | K7: 5.89965472 | L7: 6.57188852 | M7: 44.04068569 | N7: x
A8: 05-17-402-025-0000 | B8: 870 Prospect Ave | C8: 0.2 mile | D8: 108459 | E8: 2861 | F8: 12975 | G8: 56 | H8: 8.359075145 | I8: 54.46428571 | J8: 37.90947221 | K8: -16.43760852 | L8: 8.359075145 | M8: 28.82287763
A9: 05-18-106-018-0000 | B9: 1565 Tower Rd | C9: 1.8 miles | D9: 72527 | E9: 2627 | F9: 23353 | G9: 59 | H9: 3.105682353 | I9: 178.0119048 | J9: 27.60829844 | K9: 15.20208386 | L9: 3.105682353 | M9: 73.5552643
A10: 05-21-202-017-0000 | B10: 359 Sheridan Rd | C10: 1.2 miles | D10: 143612 | E10: 3493 | F10: 17600 | G10: 53 | H10: 8.159772727 | I10: 109.5238095 | J10: 41.11422846 | K10: -26.28090443 | L10: 8.159772727 | M10: 30.51992812
A11: 05-18-106-032-0000 | B11: 924 Pine Tree Lane | C11: 2 miles | D11: 115724 | E11: 3516 | F11: 23465 | G11: 51 | H11: 4.931770722 | I11: 179.3452381 | J11: 32.91353811 | K11: -1.092772912 | L11: 4.931770722 | M11: 58.00620976
A12: 05-20-300-037-0000 | B12: 355 Hibbard Rd | C12: 2.2 miles | D12: 57813 | E12: 2899 | F12: 12934 | G12: 56 | H12: 4.469846915 | I12: 53.97619048 | J12: 19.94239393 | K12: 38.74763953 | L12: 4.469846915 | M12: 61.93946874 | N12: x

Sheet Sheet1
L1: Calculations
A2: Class | B2: Neighborhood | C2: PIN | D2: Address | E2: Distance from this property | F2: Land AV | G2: Building AV | H2: Total Assessment | I2: Bldg SqFt | J2: Land SqFt | K2: Age | L2: $ Assessed Per Sq Ft of Land | M2: % more land vs subject prop | N2: $ Assessed Per Sq Ft of Bldg
A3: 2-78 | B3: 22 | C3: 05-17-404-013-0000 | D3: 874 Sheridan Rd | E3: 0 | F3: =H3-G3 -> 16380 | G3: 103933 | H3: 120313 | I3: 3030 | J3: 8400 | K3: 60 | L3: =H3/J3 -> 14.32297619 | M3: 0 | N3: =H3/I3 -> 39.70726073
A4: 2-04 | B4: 22 | C4: 05-21-418-033-0000 | D4: 196 Sheridan Rd | E4: 1.6 miles | F4: =H4-G4 -> 33017 | G4: 71649 | H4: 104666 | I4: 2882 | J4: 16932 | K4: 65 | L4: =H4/J4 -> 6.181549728 | M4: =(J4-J3)/J3*100 -> 101.5714286 | N4: 36.31714087
A5: 2-78 | B5: 22 | C5: 05-17-404-015-0000 | D5: 860 Sheridan Rd | E5: 151 feet | F5: =H5-G5 -> 18135 | G5: 90228 | H5: 108363 | I5: 2973 | J5: 9300 | K5: 54 | L5: 11.65193548 | M5: =(J5-J3)/J3*100 -> 10.71428571 | N5: 36.44904137
A6: 2-78 | B6: 22 | C6: 05-17-402-025-0000 | D6: 870 Prospect Ave | E6: 0.2 mile | F6: =H6-G6 -> 25301 | G6: 78062 | H6: 103363 | I6: 2861 | J6: 12975 | K6: 53 | L6: 7.966319846 | M6: =(J6-J3)/J3*100 -> 54.46428571 | N6: 36.12827683
A7: 2-78 | B7: 22 | C7: 05-21-201-033-0000 | D7: 380 Sheridan Rd | E7: 1.2 miles | F7: 24131 | G7: 94040 | H7: 118171 | I7: 3166 | J7: 12375 | K7: 38 | L7: 9.549171717 | M7: =(J7-J3)/J3*100 -> 47.32142857 | N7: 37.32501579
A8: 2-78 | B8: 22 | C8: 05-20-120-028-0000 | D8: 371 Berkeley Ave | E8: 2 miles | F8: 13098 | G8: 63963 | H8: 77061 | I8: 3067 | J8: 10479 | K8: 60 | L8: 7.353850558 | M8: =(J8-J3)/J3*100 -> 24.75 | N8: 25.12585589
F10: =AVERAGE(F4:F8) -> 22736.4 | G10: =AVERAGE(G4:G8) -> 79588.4 | L10: =AVERAGE(L3:L8) -> 9.504300587 | N10: =AVERAGE(N3:N8) -> 35.17543191
C11: If taxed at 6.18 per Land sq ft, our total AV should be | I11: =8400*6.18 -> 51912 | J11: or 8400*6.18
C12: If taxed at 7.97 per Land sq ft, our total AV should be | I12: =J3*7.97 -> 66948
C13: If taxed at 9.55 per Land sq ft, our total AV should be | I13: =J3*9.55 -> 80220 | M13: =AVERAGE(M4:M8) -> 47.76428571
C14: If taxed at 11.65 per Land sq ft, our total AV should be | I14: =J3*11.65 -> 97860
C15: If taxed at 7.35 per Land sq ft, our total AV should be | I15: =J3*L8 -> 61772.34469
C16: If taxed at avg 9.5 per Land sq ft, out AV should be | I16: =L10*J3 -> 79836.12493
C18: If taxed at 36.13 per Bldg sq ft, our total AV should be | I18: =N6*I3 -> 109468.6788
C19: If taxed at 36.32 per Bldg sq ft, our total AV should be | I19: =N4*I3 -> 110040.9368
C20: If taxed at 36.45 per Bldg sq ft, our total AV should be | I20: =N5*I3 -> 110440.5954
C21: If taxed at 37.33 per Bldg sq ft, our total AV should be | I21: =N7*I3 -> 113094.7979
C22: If taxed at 37.19 per Bldg sq ft, our total AV should be | I22: =N10*I3 -> 106581.5587
C25: Even though the 5 comparables have, on average, 48% more overall land than this property, we are still paying more tax per square foot of land AND more tax per square foot of building.
C26: The 5 comparables have significantly more total land compared to this house in terms of percent: 11%, 25%, 47%, 54% and 101%. These 5 comparables have, on average, 48% more total land. 3 of these houses are also at least 6-22 years younger than this house.
C27: We are requesting a 25% reduction (about half of this 48% average) of the total AV value (to adjust for greater average total land size AND for the 6 to 22 year age difference).
C28: 25% off the original assessment is [120313 x 0.25] = 30,078.25. So, this would yield a Total AV of [120,313 - 30,078.25] = 90,234.75.
G29: =H5*0.15 -> 16254.45 | H29: =H3*0.25 -> 30078.25
G30: =H5-G29 -> 92108.55 | H30: =H3-H29 -> 90234.75
E33: =H30-73000 -> 17234.75
G35: 63645 | J35: =(G37-G35)/G35*100 -> 56.99112263
G36: 120313
C37: Year | D37: Median Price | G37: 99917 | J37: =(90235-G35)/G35*100 -> 41.77861576
C38: 2012 | D38: 857000
C39: 2016 | D39: 1080000 | G39: Inc | H39: =(G37-G35)/G35*100 -> 56.99112263
E41: =(D39-D38)/D38*100 -> 26.0210035 | H41: =(H30-G35)/G35*100 -> 41.77822296
C44: 2012-07-01 | D44: 817000
C45: 2016-12-01 | D45: 946500
E46: =(D45-D44)/D44*100 -> 15.85067319

Sheet Sheet2
A1: Class | B1: Neighborhood | C1: PIN | D1: Address | E1: Distance from this property | F1: Land AV | G1: Building AV | H1: Total Assessment | I1: Bldg SqFt | J1: Land SqFt | K1: Age | L1: $ Assessed Per Sq Ft of Land | M1: % more land vs subject prop | N1: $ Assessed Per Sq Ft of Bldg | O1: $ Assessed Per Sq Ft of Land
A2: 2-78 | B2: 22 | C2: 05-17-404-013-0000 | D2: 874 Sheridan Rd | E2: 0 | F2: =H2-G2 -> 16380 | G2: 103933 | H2: 120313 | I2: 3030 | J2: 8400 | K2: 60 | L2: =H2/J2 -> 14.32297619 | M2: 0 | N2: =H2/I2 -> 39.70726073
A3: 2-04 | B3: 22 | C3: 05-21-418-033-0000 | D3: 196 Sheridan Rd | E3: 1.6 miles | F3: =H3-G3 -> 20574 | G3: 71649 | H3: 92223 | I3: 2882 | J3: 16932 | K3: 65 | L3: =H3/J3 -> 5.446669029 | M3: =(J3-J2)/J2*100 -> 101.5714286 | N3: 31.99965302
A4: 2-78 | B4: 22 | C4: 05-17-404-015-0000 | D4: 860 Sheridan Rd | E4: 151 feet | F4: =H4-G4 -> 18135 | G4: 90228 | H4: 108363 | I4: 2973 | J4: 9300 | K4: 54 | L4: 11.65193548 | M4: =(J4-J2)/J2*100 -> 10.71428571 | N4: 36.44904137
A5: 2-78 | B5: 22 | C5: 05-17-402-025-0000 | D5: 870 Prospect Ave | E5: 0.2 mile | F5: =H5-G5 -> 25301 | G5: 78062 | H5: 103363 | I5: 2861 | J5: 12975 | K5: 53 | L5: 7.966319846 | M5: =(J5-J2)/J2*100 -> 54.46428571 | N5: 36.12827683
A6: 2-78 | B6: 22 | C6: 05-21-201-033-0000 | D6: 380 Sheridan Rd | E6: 1.2 miles | F6: 24131 | G6: 94040 | H6: 118171 | I6: 3166 | J6: 12375 | K6: 38 | L6: 9.549171717 | M6: =(J6-J2)/J2*100 -> 47.32142857 | N6: 37.32501579
A7: 2-78 | B7: 22 | C7: 05-20-120-028-0000 | D7: 371 Berkeley Ave | E7: 2 miles | F7: 13098 | G7: 63963 | H7: 77061 | I7: 3067 | J7: 10479 | K7: 60 | L7: 7.353850558 | M7: =(J7-J2)/J2*100 -> 24.75 | N7: 25.12585589
A8: 2-78 | B8: 22 | C8: 05-17-404-013-0000 | D8: 874 Sheridan Rd | E8: 0 | G8: 96308 | H8: 112688 | I8: 3030 | J8: 8400 | K8: 60 | L8: 13.4152381 | M8: 0 | N8: =H2/I2 -> 39.70726073
A9: 2-04 | B9: 22 | C9: 05-21-418-033-0000 | D9: 196 Sheridan Rd | E9: 1.6 miles | G9: 67773 | H9: 100790 | I9: 2882 | J9: 16932 | K9: 65 | L9: 5.952634066 | M9: =(J9-J8)/J8*100 -> 101.5714286 | N9: =H3/I3 -> 31.99965302
A10: 2-78 | B10: 22 | C10: 05-17-404-015-0000 | D10: 860 Sheridan Rd | E10: 151 feet | G10: 80749 | H10: 98884 | I10: 2973 | J10: 9300 | K10: 54 | L10: 10.63268817 | M10: =(J10-J8)/J8*100 -> 10.71428571 | N10: 36.44904137
A11: 2-78 | B11: 22 | C11: 05-17-402-025-0000 | D11: 870 Prospect Ave | E11: 0.2 mile | G11: 68500 | H11: 93801 | I11: 2861 | J11: 12975 | K11: 53 | L11: 7.229364162 | M11: =(J11-J8)/J8*100 -> 54.46428571 | N11: 36.12827683
A12: 2-78 | B12: 22 | C12: 05-21-201-033-0000 | D12: 380 Sheridan Rd | E12: 1.2 miles | G12: 94040 | H12: 118171 | I12: 3166 | J12: 12375 | K12: 38 | L12: 9.549171717 | M12: =(J12-J8)/J8*100 -> 47.32142857 | N12: 37.32501579
A13: 2-78 | B13: 22 | C13: 05-20-120-028-0000 | D13: 371 Berkeley Ave | E13: 2 miles | G13: 63963 | H13: 77061 | I13: 3067 | J13: 10479 | K13: 60 | L13: 7.353850558 | M13: =(J13-J8)/J8*100 -> 24.75 | N13: 25.12585589
A15: 2-78 | B15: 22 | C15: 05-17-404-013-0000 | D15: 874 Sheridan Rd | E15: 0 | H15: 99917 | I15: 3030 | J15: 8400 | K15: 60 | L15: =H15/J15 -> 11.89488095 | M15: 0 | N15: =H15/I15 -> 32.97590759 | O15: =H15/J15 -> 11.89488095
A16: 2-04 | B16: 22 | C16: 05-21-418-033-0000 | D16: 196 Sheridan Rd | E16: 1.6 miles | H16: 100790 | I16: 2882 | J16: 16932 | K16: 65 | L16: =H16/J16 -> 5.952634066 | M16: =(J16-J15)/J15*100 -> 101.5714286 | N16: 34.9722415 | O16: 5.952634066
A17: 2-78 | B17: 22 | C17: 05-17-404-015-0000 | D17: 860 Sheridan Rd | E17: 151 feet | H17: 90230 | I17: 2973 | J17: 9300 | K17: 54 | L17: 9.702150538 | M17: =(J17-J15)/J15*100 -> 10.71428571 | N17: 30.349815 | O17: 9.702150538
A18: 2-78 | B18: 22 | C18: 05-17-402-025-0000 | D18: 870 Prospect Ave | E18: 0.2 mile | H18: 93801 | I18: 2861 | J18: 12975 | K18: 53 | L18: 7.229364162 | M18: =(J18-J15)/J15*100 -> 54.46428571 | N18: 32.78608878 | O18: 7.229364162
A19: 2-78 | B19: 22 | C19: 05-21-201-033-0000 | D19: 380 Sheridan Rd | E19: 1.2 miles | H19: 110151 | I19: 3166 | J19: 12375 | K19: 38 | L19: 8.901090909 | M19: =(J19-J15)/J15*100 -> 47.32142857 | N19: 34.79185092 | O19: 8.901090909
A20: 2-78 | B20: 22 | C20: 05-20-120-028-0000 | D20: 371 Berkeley Ave | E20: 2 miles | H20: 65297 | I20: 3067 | J20: 10479 | K20: 60 | L20: 6.231224353 | M20: =(J20-J15)/J15*100 -> 24.75 | N20: 21.29018585 | O20: 6.231224353

Sheet Sheet3
A1: Class | B1: Neighborhood | C1: PIN | D1: Address | E1: Distance from this property | F1: Total Assessment | G1: Bldg SqFt | H1: Land SqFt | I1: Age | J1: $ Assessed Per Sq Ft of Land | K1: % more land vs subject prop | L1: $ Assessed Per Sq Ft of Bldg | M1: % diff | N1: $ Assessed Per Sq Ft of Land | O1: % diff
A2: 2-78 | B2: 22 | C2: 05-17-404-013-0000 | D2: 874 Sheridan Rd | E2: 0 | F2: 98650 | G2: 3030 | H2: 8400 | I2: 63 | J2: =F2/H2 -> 11.74404762 | K2: N/A | L2: =F2/G2 -> 32.55775578 | N2: =F2/H2 -> 11.74404762
A3: 2-78 | B3: 22 | C3: 05-20-120-028-0000 | D3: 371 Berkeley Ave | E3: 2 miles | F3: 73054 | G3: 3067 | H3: 10479 | I3: 61 | J3: =F3/H3 -> 6.971466743 | K3: =(H3-$H$2)/$H$2*100 -> 24.75 | L3: 23.81936746 | M3: =($L$2-L3)/$L$2*100 -> 26.8396519 | N3: 6.971466743 | O3: =($N$2-N3)/$N$2*100 -> 40.63829636
A4: 2-78 | B4: 22 | C4: 05-20-300-037-0000 | D4: 355 Hibbard Rd | E4: 1.9 miles | F4: 51500 | G4: 2899 | H4: 12934 | I4: 53 | J4: 3.981753518 | K4: 53.97619048 | L4: 17.76474646 | M4: 45.43620701 | N4: 3.981753518 | O4: 66.09556052
K5: -100
K6: -100
A7: 2-04 | B7: 22 | C7: 05-21-418-033-0000 | D7: 196 Sheridan Rd | E7: 1.6 miles | F7: 100790 | G7: 2882 | H7: 16932 | I7: 66 | J7: 5.952634066 | K7: 101.5714286 | L7: 34.9722415 | M7: -7.416007848 | N7: 5.952634066 | O7: 49.31360755
A8: 2-78 | B8: 22 | C8: 05-21-201-033-0000 | D8: 380 Sheridan Rd | E8: 1.2 miles | F8: 110151 | G8: 3166 | H8: 12375 | I8: 39 | J8: 8.901090909 | K8: 47.32142857 | L8: 34.79185092 | M8: -6.861944527 | N8: 8.901090909 | O8: 24.2076395
A9: 2-04 | C9: 05-18-402-072-0000 | D9: 1284 Trapp Lane | E9: 1.4 miles | F9: 91767 | G9: 2490 | H9: 28084 | I9: 57 | J9: 3.267590087 | K9: 234.3333333 | L9: 36.85421687 | M9: -13.1964289 | N9: 3.267590087 | O9: 72.17662774
K10: -100
A11: 2-78 | B11: 22 | C11: 05-17-402-025-0000 | D11: 870 Prospect Ave | E11: 0.2 mile | F11: 93801 | G11: 2861 | H11: 12975 | I11: 54 | J11: 7.229364162 | K11: 54.46428571 | L11: 32.78608878 | M11: -0.7013167804 | N11: 7.229364162 | O11: 38.44231226
K12: -100
A13: 2020 starts below | K13: -100
B14: 22 | C14: 05-17-404-014-0000 | D14: 870 Sheridan Rd | F14: 233490 | G14: 5028 | H14: 18600 | I14: 19 | J14: 12.55322581 | K14: 121.4285714 | L14: 46.43794749 | M14: -42.63251993 | N14: 12.55322581 | O14: -6.890113304
B15: 22 | C15: 05-17-404-012-0000 | D15: 878 Sheridan Rd | F15: 115483 | G15: 3498 | H15: 9350 | I15: 28 | J15: 12.35112299 | K15: 11.30952381 | L15: 33.014008 | M15: -1.40136265 | N15: 12.35112299 | O15: -5.169217593 | P15: NO
B16: 22 | C16: 05-17-404-015-0000 | D16: 860 Sheridan Rd | E16: 151 feet | F16: 106288 | G16: 2973 | H16: 9300 | I16: 57 | J16: 11.4288172 | K16: 10.71428571 | L16: 35.75109317 | M16: -9.808223326 | N16: 11.4288172 | O16: 2.684171803 | P16: not really
C17: 05-17-404-016-0000 | D17: 856 Sheridan Rd | F17: 245933 | G17: 5733 | H17: 18500 | I17: 30 | J17: 13.29367568 | K17: 120.2380952 | L17: 42.89778475 | M17: -31.75903478 | N17: 13.29367568 | O17: -13.19500829
C18: 05-17-404-032-0000 | D18: 850 Sheridan Rd | F18: 103756 | G18: 2982 | H18: 14560 | I18: 42 | J18: 7.126098901 | K18: 73.33333333 | L18: 34.79409792 | M18: -6.868846123 | N18: 7.126098901 | O18: 39.32161098
C19: 05-17-404-031-0000 | D19: 840 Sheridan Rd | F19: 119853 | G19: 3571 | H19: 14560 | I19: 41 | J19: 8.231662088 | K19: 73.33333333 | L19: 33.56286754 | M19: -3.087165391 | N19: 8.231662088 | O19: 29.90779368
C20: 05-17-404-030-0000 | D20: 830 Sheridan Rd | F20: 205137 | G20: 6301 | H20: 27238 | I20: 133 | J20: 7.53127983 | K20: 224.2619048 | L20: 32.55626091 | M20: 0.004591423995 | N20: 7.53127983 | O20: 35.87151488 | P20: xxxxx
C21: 05-16-106-002-0000 | D21: 859 Sheridan Rd | F21: 103480 | G21: 3783 | H21: 14900 | I21: 94 | J21: 6.944966443 | K21: 77.38095238 | L21: 27.35395189 | M21: 15.98330033 | N21: 6.944966443 | O21: 40.86394514 | P21: xxxxx age though
C22: 05-16-106-005-0000 | D22: 849 Sheridan Rd | F22: 119371 | G22: 3172 | H22: 14900 | I22: 89 | J22: 8.01147651 | K22: 77.38095238 | L22: 37.63272383 | M22: -15.58758562 | N22: 8.01147651 | O22: 31.78266327 | P22: xxxxx age though
C23: 05-21-113-005-0000 | D23: 500 Sheridan Rd | F23: 108346 | G23: 3396 | H23: 9450 | I23: 71 | J23: 11.46518519 | K23: 12.5 | L23: 31.90400471 | M23: 2.007973365 | N23: 11.46518519 | O23: 2.374500197
C24: 05-17-409-015-0000 | D24: 739 Humboldt Ave | K24: -100
C25: 05-16-101-016-0000 | D25: 720 Humboldt Ave | F25: 163700 | G25: 8069 | H25: 34757 | I25: 121 | J25: 4.709842622 | K25: 313.7738095 | L25: 20.28752014 | M25: 37.68759653 | N25: 4.709842622 | O25: 59.89591686 | P25: xxxxx age though
C26: 05-17-404-005-0000 | D26: 790 Tower Rd | F26: 79024 | G26: 2222 | H26: 7500 | I26: 63 | J26: 10.53653333 | K26: -10.71428571 | L26: 35.56435644 | M26: -9.234668018 | N26: 10.53653333 | O26: 10.281926 | P26: maybe
C27: 05-17-404-024-0000 | D27: 800 Tower Rd | F27: 81569 | G27: 2637 | H27: 7280 | I27: 64 | J27: 11.20453297 | K27: -13.33333333 | L27: 30.93249905 | M27: 4.991918776 | N27: 11.20453297 | O27: 4.593941284
C28: 05-17-404-029-0000 | D28: 804 Tower Rd | F28: 85148 | G28: 2800 | H28: 7560 | I28: 27 | J28: 11.26296296 | K28: -10 | L28: 30.41 | M28: 6.596756209 | N28: 11.26296296 | O28: 4.096412682
C29: 05-17-404-028-0000 | D29: 875 Bryant Ave | F29: 108687 | G29: 3035 | H29: 11880 | I29: 67 | J29: 9.148737374 | K29: 41.42857143 | L29: 35.81120264 | M29: -9.992847427 | N29: 9.148737374 | O29: 22.09894177
C30: 05-17-403-006-0000 | D30: 870 Bryant Ave | F30: 110781 | G30: 3762 | H30: 9075 | I30: 101 | J30: 12.20727273 | K30: 8.035714286 | L30: 29.44736842 | M30: 9.553445194 | N30: 12.20727273 | O30: -3.944339492
C31: 05-17-403-005-0000 | D31: 830 Tower Rd | F31: 76000 | G31: 2512 | H31: 7500 | I31: 121 | J31: 10.13333333 | K31: -10.71428571 | L31: 30.25477707 | M31: 7.07351797 | N31: 10.13333333 | O31: 13.71515459
C32: 05-17-403-032-0000 | D32: 840 Tower Rd | F32: 171157 | G32: 3818 | H32: 15067 | I32: 12 | J32: 11.35972655 | K32: 79.36904762 | L32: 44.82896805 | M32: -37.69059623 | N32: 11.35972655 | O32: 3.272475358
C33: 05-17-403-002-0000 | D33: 848 Tower Rd | F33: 120151 | G33: 3818 | H33: 15000 | I33: 123 | J33: 8.010066667 | K33: 78.57142857 | L33: 31.4696176 | M33: 3.342178073 | N33: 8.010066667 | O33: 31.79466802
C34: 05-17-402-025-0000 | D34: 870 Prospect Ave | F34: 108459 | G34: 2861 | H34: 12975 | I34: 56 | J34: 8.359075145 | K34: 54.46428571 | L34: 37.90947221 | M34: -16.43760852 | N34: 8.359075145 | O34: 28.82287763
C35: 05-14-407-015-0000 | D35: 808 Prospect Ave | F35: 99098 | G35: 2766 | H35: 7500 | I35: 116 | J35: 13.21306667 | K35: -10.71428571 | L35: 35.82718727 | M35: -10.04194368 | N35: 13.21306667 | O35: -12.50862646
C36: 05-17-402-024-0000 | D36: 888 Tower Rd | F36: 210540 | G36: 6212 | H36: 18600 | I36: 105 | J36: 11.31935484 | K36: 121.4285714 | L36: 33.89246619 | M36: -4.099516036 | N36: 11.31935484 | O36: 3.616238576
C37: 05-17-402-001-0000 | D37: 896 Tower Rd | F37: 66359 | G37: 2039 | H37: 7860 | I37: 91 | J37: 8.442620865 | K37: -6.428571429 | L37: 32.54487494 | M37: 0.03956303675 | N37: 8.442620865 | O37: 28.11148985
C38: 05-17-402-002-0000 | D38: 867 Lincoln Ave | F38: 62757 | G38: 1716 | H38: 7205 | I38: 98 | J38: 8.710201249 | K38: -14.22619048 | L38: 36.57167832 | M38: -12.32862171 | N38: 8.710201249 | O38: 25.83305576
C39: 05-17-401-004-0000 | D39: 874 Lincoln Ave | F39: 111027 | G39: 3057 | H39: 15075 | I39: 111 | J39: 7.364975124 | K39: 79.46428571 | L39: 36.31894014 | M39: -11.55234528 | N39: 7.364975124 | O39: 37.28759144
C40: 05-17-401-003-0000 | D40: 922 Tower Rd | F40: 91103 | G40: 2514 | H40: 11250 | I40: 96 | J40: 8.098044444 | K40: 33.92857143 | L40: 36.23826571 | M40: -11.30455662 | N40: 8.098044444 | O40: 31.04554148
C41: 05-17-401-029-0000 | D41: 932 Tower Rd | F41: 129777 | G41: 4585 | H41: 15750 | I41: 102 | J41: 8.239809524 | K41: 87.5 | L41: 28.3046892 | M41: 13.06314416 | N41: 8.239809524 | O41: 29.83841865
C42: 05-18-106-018-0000 | D42: 1565 Tower Rd | F42: 72527 | G42: 2627 | H42: 23353 | I42: 59 | J42: 3.105682353 | K42: 178.0119048 | L42: 27.60829844 | M42: 15.20208386 | N42: 3.105682353 | O42: 73.5552643
C43: 05-18-402-072-0000 | D43: 1284 Trapp Lane | F43: 98621 | G43: 3029 | H43: 28084 | I43: 60 | J43: 3.511643641 | K43: 234.3333333 | L43: 32.55893034 | M43: -0.003607633391 | N43: 3.511643641 | O43: 70.09852349
C44: 05-18-402-050-0000 | D44: 1339 Trapp Lane | F44: 116418 | G44: 4183 | H44: 21000 | I44: 64 | J44: 5.543714286 | K44: 150 | L44: 27.83122161 | M44: 14.51738319 | N44: 5.543714286 | O44: 52.79553979
C45: 05-20-104-028-0000 | D45: 1247 Elm St | F45: 94000 | G45: 4161 | H45: 13050 | I45: 70 | J45: 7.203065134 | K45: 55.35714286 | L45: 22.59072338 | M45: 30.6133889 | N45: 7.203065134 | O45: 38.66624721
C46: 05-21-418-033-0000 | D46: 196 Sheridan Rd | F46: 98907 | G46: 2882 | H46: 16932 | I46: 68 | J46: 5.841424522 | K46: 101.5714286 | L46: 34.31887578 | M46: -5.409218059 | N46: 5.841424522 | O46: 50.26055146
C47: 05-21-202-017-0000 | D47: 359 Sheridan Rd | F47: 143612 | G47: 3493 | H47: 17600 | I47: 53 | J47: 8.159772727 | K47: 109.5238095 | L47: 41.11422846 | M47: -26.28090443 | N47: 8.159772727 | O47: 30.51992812
C48: 05-21-410-002-0000 | D48: 398 Elder Lane | F48: 117566 | G48: 3391 | H48: 8500 | I48: 28 | J48: 13.83129412 | K48: 1.19047619 | L48: 34.67000885 | M48: -6.487710903 | N48: 13.83129412 | O48: -17.77280343
C49: 05-21-310-025-0000 | D49: 680 Elder Lane | F49: 84274 | G49: 3038 | H49: 7598 | I49: 75 | J49: 11.09160305 | K49: -9.547619048 | L49: 27.7399605 | M49: 14.79768848 | N49: 11.09160305 | O49: 5.555534061
C50: 05-18-106-032-0000 | D50: 924 Pine Tree Lane | F50: 115724 | G50: 3516 | H50: 23465 | I50: 51 | J50: 4.931770722 | K50: 179.3452381 | L50: 32.91353811 | M50: -1.092772912 | N50: 4.931770722 | O50: 58.00620976
C51: 05-18-106-032-0000 | D51: 924 Pine Tree Lane | F51: 115724 | G51: 3516 | H51: 23465 | I51: 51 | J51: =F51/H51 -> 4.931770722 | K51: =(H51-$H$2)/$H$2*100 -> 179.3452381 | L51: =F51/G51 -> 32.91353811 | M51: =($L$2-L51)/$L$2*100 -> -1.092772912 | N51: =F51/H51 -> 4.931770722 | O51: =($N$2-N51)/$N$2*100 -> 58.00620976
C52: 05-17-118-065-0000 | D52: 1233 Forest Glen Dr North | F52: 60960 | G52: 1764 | H52: 6576 | I52: 71 | J52: 9.270072993 | K52: -21.71428571 | L52: 34.55782313 | M52: -6.143136423 | N52: 9.270072993 | O52: 21.06577482
C53: 05-18-400-008-0000 | D53: 804 Boal Parkway | F53: 87957 | G53: 2619 | H53: 19800 | I53: 65 | J53: 4.442272727 | K53: 135.7142857 | L53: 33.58419244 | M53: -3.152664058 | N53: 4.442272727 | O53: 62.17426162
C54: 05-21-418-051-0000 | D54: 127 Fuller Lane | F54: 83000 | G54: 3432 | H54: 8910 | I54: 35 | J54: 9.315375982 | K54: 6.071428571 | L54: 24.18414918 | M54: 25.71923768 | N54: 9.315375982 | O54: 20.68002205
C55: 05-21-418-007-0000 | D55: 159 Fuller Lane | F55: 90406 | G55: 2528 | H55: 7575 | I55: 96 | J55: 11.93478548 | K55: -9.821428571 | L55: 35.76186709 | M55: -9.841315031 | N55: 11.93478548 | O55: -1.62412369
C56: 05-18-402-060-0000 | D56: 860 Hibbard Rd | F56: 116466 | G56: 4246 | H56: 19500 | I56: 63 | J56: 5.972615385 | K56: 132.1428571 | L56: 27.42958078 | M56: 15.75100885 | N56: 5.972615385 | O56: 49.14346758
C57: 05-20-300-037-0000 | D57: 355 Hibbard Rd | F57: 57813 | G57: 2899 | H57: 12934 | I57: 56 | J57: 4.469846915 | K57: 53.97619048 | L57: 19.94239393 | M57: 38.74763953 | N57: 4.469846915 | O57: 61.93946874
C58: 05-18-218-009-0000 | D58: 1346 Scott Ave | F58: 97724 | G58: 3252 | H58: 7950 | I58: 25 | J58: 12.29232704 | K58: -5.357142857 | L58: 30.0504305 | M58: 7.701161249 | N58: 12.29232704 | O58: -4.668572904
C59: 05-21-109-022-0000 | D59: 520 Maple St | F59: 126516 | G59: 3580 | H59: 13221 | I59: 28 | J59: 9.569321534 | K59: 57.39285714 | L59: 35.3396648 | M59: -8.544535588 | N59: 9.569321534 | O59: 18.5176879
C60: 05-28-201-014-0000 | D60: 51 Warwick Rd | F60: 82568 | G60: 3098 | H60: 9000 | I60: 111 | J60: 9.174222222 | K60: 7.142857143 | L60: 26.65203357 | M60: 18.13921772 | N60: 9.174222222 | O60: 21.88193952
C61: 05-20-113-019-0000 | D61: 1091 Cherry St | F61: 64499 | G61: 1350 | H61: 8850 | I61: 69 | J61: 7.288022599 | K61: 5.357142857 | L61: 47.77703704 | M61: -46.74548629 | N61: 7.288022599 | O61: 37.94283849
C62: 05-20-304-029-0000 | D62: 312 Rosewood Ave | F62: 68205 | G62: 2848 | H62: 7367 | I62: 66 | J62: 9.258178363 | K62: -12.29761905 | L62: 23.94838483 | M62: 26.44337959 | N62: 9.258178363 | O62: 21.16705702
C63: 05-18-219-021-0000 | D63: 1275 Asbury Ave | F63: 94805 | G63: 3041 | H63: 7950 | I63: 28 | J63: 11.92515723 | K63: -5.357142857 | L63: 31.17560013 | M63: 4.245242373 | N63: 11.92515723 | O63: -1.54213964
C64: 05-18-217-016-0000 | D64: 1437 Asbury Ave | F64: 69233 | G64: 2860 | H64: 7950 | I64: 19 | J64: 8.708553459 | K64: -5.357142857 | L64: 24.20734266 | M64: 25.64799974 | N64: 8.708553459 | O64: 25.84708661
C65: 05-18-219-015-0000 | D65: 1305 Asbury Ave | F65: 85825 | G65: 2784 | H65: 7950 | I65: 80 | J65: 10.79559748 | K65: -5.357142857 | L65: 30.8279454 | M65: 5.313051628 | N65: 10.79559748 | O65: 8.07600723
C66: 05-20-225-030-0000 | D66: 368 Birch St | F66: 92500 | G66: 3502 | H66: 9350 | I66: 25 | J66: 9.893048128 | K66: 11.30952381 | L66: 26.41347801 | M66: 18.87193271 | N66: 9.893048128 | O66: 15.76117154
C67: 05-18-221-020-0000 | D67: 1423 Edgewood Ln | F67: 80000 | G67: 3551 | H67: 8050 | I67: 103 | J67: 9.937888199 | K67: -4.166666667 | L67: 22.52886511 | M67: 30.80338441 | N67: 9.937888199 | O67: 15.3793605
C68: 05-29-101-052-0000 | D68: 996 Hill Rd | F68: 116152 | G68: 3650 | H68: 23344 | I68: 61 | J68: 4.975668266 | K68: 177.9047619 | L68: 31.82246575 | M68: 2.258417402 | N68: 4.975668266 | O68: 57.63242429
C69: 05-21-311-033-0000 | D69: 695 Hill Rd | F69: 122816 | G69: 3267 | H69: 8646 | I69: 15 | J69: 14.20495027 | K69: 2.928571429 | L69: 37.59289868 | M69: -15.46526408 | N69: 14.20495027 | O69: -20.95446755
C70: 05-18-216-024-0000 | D70: 980 Greenwood Ave | F70: 81812 | G70: 2578 | H70: 6910 | I70: 13 | J70: 11.83965268 | K70: -17.73809524 | L70: 31.73467804 | M70: 2.528054256 | N70: 11.83965268 | O70: -0.8140724675
C71: 05-17-300-056-0000 | D71: 1160 Chatfield Rd | F71: 100454 | G71: 3225 | H71: 9630 | I71: 55 | J71: 10.43136033 | K71: 14.64285714 | L71: 31.14852713 | M71: 4.328396139 | N71: 10.43136033 | O71: 11.17746904
C72: 05-20-311-025-0000 | D72: 1088 Mt Pleasant Rd | F72: 109296 | G72: 2898 | H72: 18339 | I72: 57 | J72: 5.959757893 | K72: 118.3214286 | L72: 37.71428571 | M72: -15.83810007 | N72: 5.959757893 | O72: 49.2529485
C73: 05-17-200-055-0000 | D73: 889 Private Rd | F73: 83908 | G73: 3149 | H73: 21488 | I73: 61 | J73: 3.904877141 | K73: 155.8095238 | L73: 26.64591934 | M73: 18.15799737 | N73: 3.904877141 | O73: 66.75015917
C74: 05-21-310-016-0000 | D74: 663 Garland Ave | F74: 87272 | G74: 2556 | H74: 7980 | I74: 96 | J74: 10.93634085 | K74: -5 | L74: 34.14397496 | M74: -4.872016352 | N74: 10.93634085 | O74: 6.877584229
C75: 05-21-409-016-0000 | D75: 435 Sunset Rd | F75: 91255 | G75: 2634 | H75: 9500 | I75: 93 | J75: 9.605789474 | K75: 13.0952381 | L75: 34.64502658 | M75: -6.410978737 | N75: 9.605789474 | O75: 18.20716515
C76: 05-21-318-010-0000 | D76: 479 Sunset Rd | F76: 70592 | G76: 2264 | H76: 9570 | I76: 99 | J76: 7.376384535 | K76: 13.92857143 | L76: 31.18021201 | M76: 4.231077139 | N76: 7.376384535 | O76: 37.19044086
C77: 05-20-107-008-0000 | D77: 1016 Spruce St | F77: 84145 | G77: 2904 | H77: 8850 | I77: 120 | J77: 9.507909605 | K77: 5.357142857 | L77: 28.97555096 | M77: 11.00261589 | N77: 9.507909605 | O77: 19.04060752
C78: 05-18-403-046-0000 | D78: 1332 Sunview Lane | F78: 87717 | G78: 2003 | H78: 21755 | I78: 72 | J78: 4.032038612 | K78: 158.9880952 | L78: 43.79281078 | M78: -34.5080757 | N78: 4.032038612 | O78: 65.66738536
C79: 05-20-308-057-0000 | D79: 315 Auburn Ave | F79: 82601 | G79: 3246 | H79: 13900 | I79: 57 | J79: 5.942517986 | K79: 65.47619048 | L79: 25.44701171 | M79: 21.84039993 | N79: 5.942517986 | O79: 49.39974548
C80: 05-20-112-024-0000 | D80: 1133 Cherry St | F80: 83210 | G80: 2365 | H80: 9350 | I80: 85 | J80: 8.899465241 | K80: 11.30952381 | L80: 35.18393235 | M80: -8.06620883 | N80: 8.899465241 | O80: 24.22148199
C81: 05-20-112-019-0000 | D81: 1163 Cherry St | F81: 76535 | G81: 2350 | H81: 9350 | I81: 91 | J81: 8.185561497 | K81: 11.30952381 | L81: 32.56808511 | M81: -0.03172617571 | N81: 8.185561497 | O81: 30.30033799
C82: 05-21-307-016-0000 | D82: 566 Orchard Lane | F82: 105919 | G82: 3242 | H82: 7631 | I82: 51 | J82: 13.88009435 | K82: -9.154761905 | L82: 32.67088217 | M82: -0.3474637401 | N82: 13.88009435 | O82: -18.18833508
C83: 05-20-120-028-0000 | D83: 371 Berkeley Ave | F83: 78658 | G83: 3067 | H83: 10479 | I83: 63 | J83: 7.506250596 | K83: 24.75 | L83: 25.64656016 | M83: 21.22749389 | N83: 7.506250596 | O83: 36.0846376
C84: 05-17-202-030-0000 | D84: 850 Lamson Dr | F84: 108312 | G84: 5088 | H84: 20080 | I84: 65 | J84: 5.394023904 | K84: 139.047619 | L84: 21.28773585 | M84: 34.61546921 | N84: 5.394023904 | O84: 54.07014618
C85: 05-20-308-054-0000 | D85: 320 Euclid Ave | F85: 93977 | G85: 3773 | H85: 14800 | I85: 55 | J85: 6.349797297 | K85: 76.19047619 | L85: 24.9077657 | M85: 23.49667503 | N85: 6.349797297 | O85: 45.93178176

Sheet REAL_orig
A1: PIN | B1: Address | C1: Distance from this property | D1: Total Assessment | E1: Bldg SqFt | F1: Land SqFt | G1: Age | H1: $ Assessed Per Sq Ft of Land | I1: % more land vs subject prop | J1: $ Assessed Per Sq Ft of Bldg | K1: % diff | L1: $ Assessed Per Sq Ft of Land | M1: % diff
A2: 05-17-404-013-0000 | B2: 874 Sheridan Rd | C2: 0 | D2: 90758 | E2: 3030 | F2: 8400 | G2: 63 | H2: =D2/F2 -> 10.80452381 | I2: N/A | J2: =D2/E2 -> 29.95313531 | L2: =D2/F2 -> 10.80452381
A3: 05-21-201-033-0000 | B3: 380 Sheridan Rd | C3: 1.2 miles | D3: 101639 | E3: 3166 | F3: 12375 | G3: 41 | H3: 8.213252525 | I3: =(F3-$F$2)/$F$2*100 -> 47.32142857 | J3: 32.1032849 | K3: =($J$2-J3)/$J$2*100 -> -7.178379045 | L3: 8.213252525 | M3: =($L$2-L3)/$L$2*100 -> 23.98320676
A4: 05-17-404-014-0000 | B4: 870 Sheridan Rd | D4: 214810 | E4: 5028 | F4: 18600 | G4: 19 | H4: 11.54892473 | I4: =(F4-$F$2)/$F$2*100 -> 121.4285714 | J4: 42.72275259 | K4: =($J$2-J4)/$J$2*100 -> -42.63198873 | L4: 11.54892473 | M4: =($L$2-L4)/$L$2*100 -> -6.889715223
A5: 05-17-404-012-0000 | B5: 878 Sheridan Rd | D5: 106244 | E5: 3498 | F5: 9350 | G5: 28 | H5: 11.36299465 | I5: 11.30952381 | J5: 30.37278445 | K5: -1.40101906 | L5: 11.36299465 | M5: -5.168861236
A6: 05-17-404-015-0000 | B6: 860 Sheridan Rd | C6: 151 feet | D6: 97785 | E6: 2973 | F6: 9300 | G6: 57 | H6: 10.51451613 | I6: 10.71428571 | J6: 32.89101917 | K6: -9.808268244 | L6: 10.51451613 | M6: 2.684131995
A7: 05-17-404-016-0000 | B7: 856 Sheridan Rd | D7: 226258 | E7: 5733 | F7: 18500 | G7: 30 | H7: 12.23016216 | I7: 120.2380952 | J7: 39.46589918 | K7: -31.75882513 | L7: 12.23016216 | M7: -13.19482818
A8: 05-17-404-032-0000 | B8: 850 Sheridan Rd | D8: 95455 | E8: 2982 | F8: 14560 | G8: 42 | H8: 6.555975275 | I8: 73.33333333 | J8: 32.01039571 | K8: -6.868263948 | L8: 6.555975275 | M8: 39.32194153
A9: 05-17-404-031-0000 | B9: 840 Sheridan Rd | D9: 110264 | E9: 3571 | F9: 14560 | G9: 41 | H9: 7.573076923 | I9: 73.33333333 | J9: 30.87762532 | K9: -3.086454863 | L9: 7.573076923 | M9: 29.90827679
A10: 05-21-107-001-0000 | B10: 568 Sheridan Rd | D10: 89666 | E10: 2745 | F10: 7321 | G10: 62 | H10: 12.24778036 | I10: -12.8452381 | J10: 32.66520947 | K10: -9.054391568 | L10: 12.24778036 | M10: -13.35789132
A11: 05-21-200-010-0000 | B11: 467 Sheridan Rd | D11: 160804 | E11: 3651 | F11: 21449 | G11: 60 | H11: 7.497039489 | I11: 155.3452381 | J11: 44.04382361 | K11: -47.04244864 | L11: 7.497039489 | M11: 30.61203232
A12: 05-21-418-049-0000 | B12: 130 Sheridan Rd | D12: 52785 | E12: 2132 | F12: 9939 | G12: 51 | H12: 5.310896468 | I12: 18.32142857 | J12: 24.75844278 | K12: 17.34273385 | L12: 5.310896468 | M12: 50.84562206
A13: 05-21-202-017-0000 | B13: 359 Sheridan Rd | D13: 132123 | E13: 3493 | F13: 17600 | G13: 53 | H13: 7.506988636 | I13: 109.5238095 | J13: 37.82507873 | K13: -26.2808662 | L13: 7.506988636 | M13: 30.51994916
A14: 05-18-219-021-0000 | B14: 1275 Asbury Ave | D14: 87220 | E14: 3041 | F14: 7950 | G14: 28 | H14: 10.97106918 | I14: -5.357142857 | J14: 28.68135482 | K14: 4.245901081 | L14: 10.97106918 | M14: -1.54144112
A15: 05-18-217-016-0000 | B15: 1437 Asbury Ave | D15: 63694 | E15: 2860 | F15: 7950 | G15: 19 | H15: 8.011823899 | I15: -5.357142857 | J15: 22.27062937 | K15: 25.64841998 | L15: 8.011823899 | M15: 25.84750572
A16: 05-20-308-057-0000 | B16: 315 Auburn Ave | D16: 75992 | E16: 3246 | F16: 13900 | G16: 57 | H16: 5.46705036 | I16: 65.47619048 | J16: 23.41096734 | K16: 21.84134616 | L16: 5.46705036 | M16: 49.40035807
A17: 05-20-308-051-0000 | B17: 345 Auburn Ave | D17: 49703 | E17: 2565 | F17: 10495 | G17: 58 | H17: 4.735874226 | I17: 24.94047619 | J17: 19.37738791 | K17: 35.30764739 | L17: 4.735874226 | M17: 56.16767283
A18: 05-20-120-028-0000 | B18: 371 Berkeley Ave | D18: 67817 | E18: 3067 | F18: 10479 | G18: 63 | H18: 6.471705315 | I18: 24.75 | J18: 22.11183567 | K18: 26.17856048 | L18: 6.471705315 | M18: 40.10189223
A19: 05-20-225-030-0000 | B19: 368 Birch St | D19: 85100 | E19: 3502 | F19: 9350 | G19: 25 | H19: 9.101604278 | I19: 11.30952381 | J19: 24.30039977 | K19: 18.87193271 | L19: 9.101604278 | M19: 15.76117154
A20: 05-18-400-008-0000 | B20: 804 Boal Parkway | D20: 80920 | E20: 2619 | F20: 19800 | G20: 65 | H20: 4.086868687 | I20: 135.7142857 | J20: 30.89728904 | K20: -3.152103171 | L20: 4.086868687 | M20: 62.1744673
A21: 05-17-404-028-0000 | B21: 875 Bryant Ave | D21: 99992 | E21: 3035 | F21: 11880 | G21: 67 | H21: 8.416835017 | I21: 41.42857143 | J21: 32.94629325 | K21: -9.992803426 | L21: 8.416835017 | M21: 22.09897294
A22: 05-21-105-018-0000 | B22: 566 Cedar St | D22: 103231 | E22: 2976 | F22: 10050 | G22: 42 | H22: 10.27174129 | I22: 19.64285714 | J22: 34.68783602 | K22: -15.80702874 | L22: 10.27174129 | M22: 4.931105946
A23: 05-17-300-056-0000 | B23: 1160 Chatfield Rd | D23: 92417 | E23: 3225 | F23: 9630 | G23: 55 | H23: 9.596780893 | I23: 14.64285714 | J23: 28.65643411 | K23: 4.329100081 | L23: 9.596780893 | M23: 11.17812259
A24: 05-17-300-022-0000 | B24: 1161 Chatfield Rd | D24: 156294 | E24: 4215 | F24: 11250 | G24: 10 | H24: 13.8928 | I24: 33.92857143 | J24: 37.08042705 | K24: -23.79481032 | L24: 13.8928 | M24: -28.58317724
A25: 05-21-410-002-0000 | B25: 398 Elder Lane | D25: 108160 | E25: 3391 | F25: 8500 | G25: 28 | H25: 12.72470588 | I25: 1.19047619 | J25: 31.89619581 | K25: -6.48700204 | L25: 12.72470588 | M25: -17.77201945
A26: 05-20-210-042-0000 | B26: 886 Elm St | D26: 89116 | E26: 2790 | F26: 10288 | G26: 58 | H26: 8.662130638 | I26: 22.47619048 | J26: 31.94121864 | K26: -6.637312935 | L26: 8.662130638 | M26: 19.82866815
A27: 05-20-206-021-0000 | B27: 893 Elm St | D27: 117036 | E27: 2779 | F27: 9350 | G27: 12 | H27: 12.51721925 | I27: 11.30952381 | J27: 42.11442965 | K27: -40.60107301 | L27: 12.51721925 | M27: -15.85165133
A28: 05-20-308-054-0000 | B28: 320 Euclid Ave | D28: 81526 | E28: 3773 | F28: 14800 | G28: 55 | H28: 5.508513514 | I28: 76.19047619 | J28: 21.6077392 | K28: 27.86151108 | L28: 5.508513514 | M28: 49.01660073
A29: 05-21-418-051-0000 | B29: 127 Fuller Lane | D29: 76360 | E29: 3432 | F29: 8910 | G29: 35 | H29: 8.570145903 | I29: 6.071428571 | J29: 22.24941725 | K29: 25.71923768 | L29: 8.570145903 | M29: 20.68002205
A30: 05-18-216-024-0000 | B30: 980 Greenwood Ave | D30: 75267 | E30: 2578 | F30: 6910 | G30: 13 | H30: 10.89247467 | I30: -17.73809524 | J30: 29.19588829 | K30: 2.528106057 | L30: 10.89247467 | M30: -0.8140188907
A31: 05-18-216-001-0000 | B31: 995 Grove St | D31: 56052 | E31: 2693 | F31: 7950 | G31: 62 | H31: 7.050566038 | I31: -5.357142857 | J31: 20.81396212 | K31: 30.51157448 | L31: 7.050566038 | M31: 34.74431486
A32: 05-18-309-004-0000 | B32: 777 Heather LN | D32: 162325 | E32: 5299 | F32: 21942 | G32: 12 | H32: 7.397912679 | I32: 161.2142857 | J32: 30.63313833 | K32: -2.270223158 | L32: 7.397912679 | M32: 31.52948886
A33: 05-18-402-060-0000 | B33: 860 Hibbard Rd | D33: 107148 | E33: 4246 | F33: 19500 | G33: 63 | H33: 5.494769231 | I33: 132.1428571 | J33: 25.23504475 | K33: 15.75157497 | L33: 5.494769231 | M33: 49.14380932
A34: 05-20-300-037-0000 | B34: 355 Hibbard Rd | D34: 53188 | E34: 2899 | F34: 12934 | G34: 56 | H34: =D34/F34 -> 4.112262255 | I34: 53.97619048 | J34: =D34/E34 -> 18.34701621 | K34: 38.74759346 | L34: =D34/F34 -> 4.112262255 | M34: 61.93944012
A35: 05-20-300-061-0000 | B35: 277 Hibbard Rd | D35: 63501 | E35: 3338 | F35: 14904 | G35: 54 | H35: 4.260668277 | I35: =(F35-$F$2)/$F$2*100 -> 77.42857143 | J35: 19.02366687 | K35: =($J$2-J35)/$J$2*100 -> 36.48856232 | L35: 4.260668277 | M35: =($L$2-L35)/$L$2*100 -> 60.56588562
A36: 05-20-300-044-0000 | B36: 319 Hibbard Rd | D36: 101528 | E36: 3862 | F36: 17125 | G36: 67 | H36: 5.928642336 | I36: 103.8690476 | J36: 26.28896945 | K36: 12.23299608 | L36: 5.928642336 | M36: 45.1281478
A37: 05-29-101-052-0000 | B37: 996 Hill Rd | D37: 105698 | E37: 3650 | F37: 23344 | G37: 61 | H37: 4.527844414 | I37: 177.9047619 | J37: 28.95835616 | K37: 3.321118603 | L37: 4.527844414 | M37: 58.09306829
A38: 05-21-311-033-0000 | B38: 695 Hill Rd | D38: 112990 | E38: 3267 | F38: 8646 | G38: 15 | H38: 13.06847097 | I38: 2.928571429 | J38: 34.5852464 | K38: -15.46452831 | L38: 13.06847097 | M38: -20.9536968
A39: 05-20-410-003-0000 | B39: 201 Linden St | D39: 161543 | E39: 4217 | F39: 18700 | G39: 48 | H39: 8.638663102 | I39: 122.6190476 | J39: 38.30756462 | K39: -27.89166883 | L39: 8.638663102 | M39: 20.04586918
A40: 05-20-315-009-0000 | B40: 1210 Lindenwood Dr | D40: 79120 | E40: 3841 | F40: 21645 | G40: 64 | H40: 3.655347655 | I40: 157.6785714 | J40: 20.5988024 | K40: 31.2298957 | L40: 3.655347655 | M40: 66.16835948
A41: 05-21-109-022-0000 | B41: 520 Maple St | D41: 116394 | E41: 3580 | F41: 13221 | G41: 28 | H41: 8.803721352 | I41: 57.39285714 | J41: 32.5122905 | K41: -8.543864148 | L41: 8.803721352 | M41: 18.51819194
A42: 05-20-311-025-0000 | B42: 1088 Mt Pleasant Rd | D42: 99459 | E42: 2898 | F42: 18339 | G42: 57 | H42: 5.423360052 | I42: 118.3214286 | J42: 34.31987578 | K42: -14.57857556 | L42: 5.423360052 | M42: 49.80472858
A43: 05-20-401-013-0000 | B43: 855 Mt Pleasant Rd | D43: 117874 | E43: 3438 | F43: 18700 | G43: 52 | H43: 6.30342246 | I43: 122.6190476 | J43: 34.28563118 | K43: -14.46424831 | L43: 6.30342246 | M43: 41.65941442
A44: 05-20-210-028-0000 | B44: 907 Oak St | D44: 102648 | E44: 3238 | F44: 9350 | G44: 19 | H44: 10.97839572 | I44: 11.30952381 | J44: 31.70105003 | K44: -5.835498351 | L44: 10.97839572 | M44: -1.609251046
A45: 05-20-110-014-0000 | B45: 1041 Oak St | D45: 118943 | E45: 3334 | F45: 8850 | G45: 12 | H45: 13.43988701 | I45: 5.357142857 | J45: 35.67576485 | K45: -19.10527721 | L45: 13.43988701 | M45: -24.39129426
A46: 05-17-117-007-0000 | B46: 960 Old Green Bay Rd | D46: 64978 | E46: 2941 | F46: 13352 | G46: 60 | H46: 4.866536848 | I46: 58.95238095 | J46: 22.09384563 | K46: 26.2386211 | L46: 4.866536848 | M46: 54.95834028
A47: 05-21-307-016-0000 | B47: 566 Orchard Lane | D47: 97445 | E47: 3242 | F47: 7631 | G47: 51 | H47: 12.7696239 | I47: -9.154761905 | J47: 30.05706354 | K47: -0.3469694455 | L47: 12.7696239 | M47: -18.1877529
A48: 05-20-100-002-0000 | B48: 1258 Pine St | D48: 62609 | E48: 2087 | F48: 21778 | G48: 65 | H48: 2.874873726 | I48: 159.2619048 | J48: 29.99952084 | K48: -0.1548603487 | L48: 2.874873726 | M48: 73.39194419
A49: 05-18-106-032-0000 | B49: 924 Pine Tree Lane | D49: 109463 | E49: 3516 | F49: 23465 | G49: 51 | H49: 4.664947795 | I49: 179.3452381 | J49: 31.13282139 | K49: -3.938439372 | L49: 4.664947795 | M49: 56.82412407
A50: 05-18-107-014-0000 | B50: 985 Pine Tree Lane | D50: 147534 | E50: 4443 | F50: 21814 | G50: 19 | H50: 6.763271294 | I50: 159.6904762 | J50: 33.20594193 | K50: -10.8596532 | L50: 6.763271294 | M50: 37.40333759
A51: 05-17-200-055-0000 | B51: 889 Private Rd | D51: 75517 | E51: 3149 | F51: 21488 | G51: 61 | H51: 3.514380119 | I51: 155.8095238 | J51: 23.98126389 | K51: 19.93738337 | L51: 3.514380119 | M51: 67.47306794
A52: 05-17-402-025-0000 | B52: 870 Prospect Ave | D52: 96501 | E52: 2861 | F52: 12975 | G52: 56 | H52: 7.437456647 | I52: 54.46428571 | J52: 33.72981475 | K52: -12.6086281 | L52: 7.437456647 | M52: 31.16349431
A53: 05-20-201-004-0000 | B53: 603 Provident Ave | D53: 124362 | E53: 3288 | F53: 8556 | G53: 16 | H53: 14.53506311 | I53: 1.857142857 | J53: 37.8229927 | K53: -26.2739019 | L53: 14.53506311 | M53: -34.52756799
A54: 05-18-218-009-0000 | B54: 1346 Scott Ave | D54: 89906 | E54: 3252 | F54: 7950 | G54: 25 | H54: 11.30893082 | I54: -5.357142857 | J54: 27.64637146 | K54: 7.701243378 | L54: 11.30893082 | M54: -4.668479768
A55: 05-20-103-017-0000 | B55: 1027 Spruce St | D55: 101735 | E55: 3214 | F55: 8850 | G55: 24 | H55: 11.49548023 | I55: 5.357142857 | J55: 31.65370255 | K55: -5.677426486 | L55: 11.49548023 | M55: -6.395065888
A56: 05-20-100-010-0000 | B56: 1225 Spruce St | D56: 94309 | E56: 3883 | F56: 21776 | G56: 65 | H56: 4.330868846 | I56: 159.2380952 | J56: 24.28766418 | K56: 18.91445112 | L56: 4.330868846 | M56: 59.9161525
A57: 05-20-308-069-0000 | B57: 1220 Sunset Rd | D57: 74841 | E57: 3276 | F57: 12693 | G57: 49 | H57: 5.896242023 | I57: 51.10714286 | J57: 22.8452381 | K57: 23.73006079 | L57: 5.896242023 | M57: 45.42802508
A58: 05-18-403-046-0000 | B58: 1332 Sunview Lane | D58: 80699 | E58: 2003 | F58: 21755 | G58: 72 | H58: 3.709446104 | I58: 158.9880952 | J58: 40.2890664 | K58: -34.50700896 | L58: 3.709446104 | M58: 65.66765764
A59: 05-17-404-005-0000 | B59: 790 Tower Rd | D59: 72702 | E59: 2222 | F59: 7500 | G59: 63 | H59: 9.6936 | I59: -10.71428571 | J59: 32.71917192 | K59: -9.234547818 | L59: 9.6936 | M59: 10.28202473
A60: 05-17-404-024-0000 | B60: 800 Tower Rd | D60: 70512 | E60: 2637 | F60: 7280 | G60: 64 | H60: 9.685714286 | I60: -13.33333333 | J60: 26.73947668 | K60: 10.72895576 | L60: 9.685714286 | M60: 10.35501003
A61: 05-17-404-029-0000 | B61: 804 Tower Rd | D61: 90121 | E61: 2800 | F61: 7560 | G61: 27 | H61: 11.9207672 | I61: -10 | J61: 32.18607143 | K61: -7.454765892 | L61: 11.9207672 | M61: -10.33125944
A62: 05-17-403-032-0000 | B62: 840 Tower Rd | D62: 157464 | E62: 3818 | F62: 15067 | G62: 12 | H62: 10.45091923 | I62: 79.36904762 | J62: 41.24253536 | K62: -37.69021148 | L62: 10.45091923 | M62: 3.272745642
A63: 05-18-106-019-0000 | B63: 1555 Tower Rd | D63: 58880 | E63: 2581 | F63: 23353 | G63: 59 | H63: 2.521303473 | I63: 178.0119048 | J63: 22.81286323 | K63: 23.83814585 | L63: 2.521303473 | M63: 76.6643721
A64: 05-18-106-018-0000 | B64: 1565 Tower Rd | D64: 66724 | E64: 2627 | F64: 23353 | G64: 59 | H64: 2.857191795 | I64: 178.0119048 | J64: 25.39931481 | K64: 15.20315138 | L64: 2.857191795 | M64: 73.55559721
A65: 05-18-402-072-0000 | B65: 1284 Trapp Lane | D65: 80542 | E65: 3029 | F65: 28084 | G65: 60 | H65: 2.867896311 | I65: 234.3333333 | J65: 26.59029383 | K65: 11.22700997 | L65: 2.867896311 | M65: 73.45652283
A66: 05-18-402-050-0000 | B66: 1339 Trapp Lane | D66: 107104 | E66: 4183 | F66: 21000 | G66: 64 | H66: 5.100190476 | I66: 150 | J66: 25.60459001 | K66: 14.51783014 | L66: 5.100190476 | M66: 52.7957866
A67: 05-29-102-068-0000 | B67: 65 Woodley Rd | D67: 159363 | E67: 5200 | F67: 52141 | G67: 64 | H67: 3.05638557 | I67: 520.7261905 | J67: 30.64673077 | K67: =($J$2-J67)/$J$2*100 -> -2.315602185 | L67: 3.05638557 | M67: =($L$2-L67)/$L$2*100 -> 71.71198265
A68: 05-29-301-001-0000 | B68: 130 Woodley Rd | D68: 180467 | E68: 4249 | F68: 49789 | G68: 23 | H68: 3.624635964 | I68: 492.7261905 | J68: 42.47281713 | K68: -41.79756706 | L68: 3.624635964 | M68: 66.45260793

Sheet REAL
A1: PIN | B1: Address | C1: Distance from this property | D1: Total Assessment | E1: Bldg SqFt | F1: Land SqFt | G1: Age | H1: $ Assessed Per Sq Ft of Land | I1: % more land vs subject prop | J1: $ Assessed Per Sq Ft of Bldg | K1: % diff | L1: $ Assessed Per Sq Ft of Land | M1: % diff | N1: %diffAbs
A2: 05-17-404-013-0000 | B2: 874 Sheridan Rd | C2: 0 | D2: 80409 | E2: 3030 | F2: 8398 | G2: 63 | H2: =D2/F2 -> 9.574779709 | I2: N/A | J2: =D2/E2 -> 26.53762376 | L2: =D2/F2 -> 9.574779709
A3: 05-21-201-033-0000 | B3: 380 Sheridan Rd | C3: 1.2 miles | D3: 101641 | E3: 3166 | F3: 12375 | G3: 43 | H3: =D3/F3 -> 8.213414141 | I3: =(F3-$F$2)/$F$2*100 -> 47.35651346 | J3: =D3/E3 -> 32.10391661 | K3: =($J$2-J3)/$J$2*100 -> -20.97509898 | L3: =D3/F3 -> 8.213414141 | M3: =($L$2-L3)/$L$2*100 -> 14.21824428 | N3: 14.21824428
A4: 05-17-404-014-0000 | B4: 870 Sheridan Rd | D4: 214811 | E4: 5028 | F4: 18600 | G4: 21 | H4: 11.54897849 | I4: =(F4-$F$2)/$F$2*100 -> 121.4813051 | J4: 42.72295147 | K4: =($J$2-J4)/$J$2*100 -> -60.99011673 | L4: 11.54897849 | M4: =($L$2-L4)/$L$2*100 -> -20.61873845 | N4: -20.61873845
A5: 05-17-404-012-0000 | B5: 878 Sheridan Rd | D5: 106245 | E5: 3498 | F5: 9348 | G5: 30 | H5: 11.36553273 | I5: 11.31221719 | J5: 30.37307033 | K5: -14.45286359 | L5: 11.36553273 | M5: -18.70281175 | N5: -18.70281175
A6: 05-17-404-015-0000 | B6: 860 Sheridan Rd | C6: 151 feet | D6: 98265 | E6: 2973 | F6: 9300 | G6: 59 | H6: 10.56612903 | I6: 10.74065254 | J6: 33.05247225 | K6: -24.54947943 | L6: 10.56612903 | M6: -10.35375594 | N6: -10.35375594
A7: 05-17-404-016-0000 | B7: 856 Sheridan Rd | D7: 205875 | E7: 5733 | F7: 18500 | G7: 32 | H7: 11.12837838 | I7: 120.2905454 | J7: 35.91051805 | K7: -35.31926737 | L7: 11.12837838 | M7: -16.22594687 | N7: -16.22594687 | Q7: all updated on 5.10.21
A8: 05-17-404-032-0000 | B8: 850 Sheridan Rd | D8: 89255 | E8: 2195 | F8: 14560 | G8: 42 | H8: 6.130151099 | I8: 73.374613 | J8: 40.66287016 | K8: -53.22724643 | L8: 6.130151099 | M8: 35.97606123 | N8: 35.97606123
A9: 05-17-404-031-0000 | B9: 840 Sheridan Rd | D9: 110264 | E9: 3571 | F9: 14560 | G9: 41 | H9: 7.573076923 | I9: 73.374613 | J9: 30.87762532 | K9: -16.35414531 | L9: 7.573076923 | M9: 20.90599311 | N9: 20.90599311
A10: 05-21-107-001-0000 | B10: 568 Sheridan Rd | D10: 77062 | E10: 2745 | F10: 7322 | G10: 63 | H10: 10.52472002 | I10: -12.81257442 | J10: 28.07358834 | K10: -5.787875334 | L10: 10.52472002 | M10: -9.921275906 | N10: -9.921275906
A11: 05-21-200-010-0000 | B11: 467 Sheridan Rd | D11: 151852 | E11: 3651 | F11: 21449 | G11: 60 | H11: 7.079677374 | I11: 155.4060491 | J11: 41.59189263 | K11: -56.72802134 | L11: 7.079677374 | M11: 26.05910957 | N11: 26.05910957
A12: 05-21-418-049-0000 | B12: 130 Sheridan Rd | D12: 52786 | E12: 2132 | F12: 9940 | G12: 53 | H12: 5.310462777 | I12: 18.36151465 | J12: 24.75891182 | K12: 6.702604417 | L12: 5.310462777 | M12: 44.53697173 | N12: 44.53697173
A13: 05-21-202-017-0000 | B13: 359 Sheridan Rd | D13: 132123 | E13: 3493 | F13: 17598 | G13: 55 | H13: 7.5078418 | I13: 109.5498928 | J13: 37.82507873 | K13: -42.53378173 | L13: 7.5078418 | M13: 21.58731555 | N13: 21.58731555
A14: 05-21-411-005-0000 | B14: 246 Sheridan Rd | D14: 203495 | E14: 5850 | F14: 24690 | G14: 93 | H14: 8.24200081 | I14: 193.9985711 | J14: 34.78547009 | K14: -31.07982236 | L14: 8.24200081 | M14: 13.91968212 | N14: 13.91968212 | O14: 2021-04-18
A15: 05-21-403-022-0000 | B15: 349 Sheridan Rd | D15: 134818 | E15: 3505 | F15: 21782 | G15: 32 | H15: 6.189422459 | I15: 159.3712789 | J15: 38.46447932 | K15: -44.94319333 | L15: 6.189422459 | M15: 35.35702495 | N15: 35.35702495 | O15: 2021-04-18
A16: 05-18-219-021-0000 | B16: 1275 Asbury Ave | D16: 87221 | E16: 3041 | F16: 7950 | G16: 30 | H16: 10.97119497 | I16: -5.334603477 | J16: 28.68168366 | K16: -8.079321319 | L16: 10.97119497 | M16: -14.58430691 | N16: -14.58430691
A17: 05-18-217-016-0000 | B17: 1437 Asbury Ave | D17: 63694 | E17: 2860 | F17: 7950 | G17: 21 | H17: 8.011823899 | I17: -5.334603477 | J17: 22.27062937 | K17: 16.07903718 | L17: 8.011823899 | M17: 16.32367383 | N17: 16.32367383
A18: 05-20-308-057-0000 | B18: 315 Auburn Ave | D18: 61656 | E18: 3246 | F18: 13900 | G18: 57 | H18: 4.435683453 | I18: 65.51559895 | J18: 18.99445471 | K18: 28.42443286 | L18: 4.435683453 | M18: 53.67325842 | N18: 53.67325842
A19: 05-20-308-051-0000 | B19: 345 Auburn Ave | D19: 49704 | E19: 2565 | F19: 10494 | G19: 60 | H19: 4.736420812 | I19: 24.95832341 | J19: 19.37777778 | K19: 26.97998151 | L19: 4.736420812 | M19: 50.53232601 | N19: 50.53232601
A20: 05-20-120-028-0000 | B20: 371 Berkeley Ave | D20: 67818 | E20: 3067 | F20: 10481 | G20: 65 | H20: 6.470565786 | I20: 24.80352465 | J20: 22.11216172 | K20: 16.67618051 | L20: 6.470565786 | M20: 32.42073466 | N20: 32.42073466
A21: 05-20-225-030-0000 | B21: 368 Birch St | D21: 85100 | E21: 3502 | F21: 9348 | G21: 27 | H21: 9.103551562 | I21: 11.31221719 | J21: 24.30039977 | K21: 8.430385519 | L21: 9.103551562 | M21: 4.921556024 | N21: 4.921556024
A22: 05-18-400-008-0000 | B22: 804 Boal Parkway | D22: 80920 | E22: 2619 | F22: 19798 | G22: 67 | H22: 4.087281544 | I22: 135.7466063 | J22: 30.89728904 | K22: -16.42824285 | L22: 4.087281544 | M22: 57.31200437 | N22: 57.31200437
A23: 05-17-404-028-0000 | B23: 875 Bryant Ave | D23: 91770 | E23: 3035 | F23: 11879 | G23: 67 | H23: 7.725397761 | I23: 41.45034532 | J23: 30.23723229 | K23: -13.94099397 | L23: 7.725397761 | M23: 19.31513836 | N23: 19.31513836
A24: 05-21-105-018-0000 | B24: 566 Cedar St | D24: 99334 | E24: 2976 | F24: 10049 | G24: 42 | H24: 9.884963678 | I24: 19.65944272 | J24: 33.37836022 | K24: -25.77750184 | L24: 9.884963678 | M24: -3.239593786 | N24: -3.239593786
A25: 05-17-300-056-0000 | B25: 1160 Chatfield Rd | D25: 92419 | E25: 3225 | F25: 9631 | G25: 57 | H25: 9.595992109 | I25: 14.68206716 | J25: 28.65705426 | K25: -7.986511981 | L25: 9.595992109 | M25: -0.221544516 | N25: -0.221544516
A26: 05-17-300-022-0000 | B26: 1161 Chatfield Rd | D26: 156295 | E26: 4215 | F26: 11252 | G26: 12 | H26: 13.89041948 | I26: 33.98428197 | J26: 37.08066429 | K26: -39.72865327 | L26: 13.89041948 | M26: -45.07299283 | N26: -45.07299283
A27: 05-21-410-002-0000 | B27: 398 Elder Lane | D27: 108161 | E27: 3391 | F27: 8499 | G27: 30 | H27: 12.72632074 | I27: 1.202667302 | J27: 31.89649071 | K27: -20.19346945 | L27: 12.72632074 | M27: -32.91502395 | N27: -32.91502395
A28: 05-20-210-042-0000 | B28: 886 Elm St | D28: 89117 | E28: 2790 | F28: 10289 | G28: 60 | H28: 8.661385946 | I28: 22.51726602 | J28: 31.94157706 | K28: -20.36336541 | L28: 8.661385946 | M28: 9.539579928 | N28: 9.539579928
A29: 05-20-206-021-0000 | B29: 893 Elm St | D29: 92900 | E29: 2779 | F29: 9348 | G29: 12 | H29: 9.937954643 | I29: 11.31221719 | J29: 33.42929111 | K29: -25.96942142 | L29: 9.937954643 | M29: -3.79303696 | N29: -3.79303696
A30: 05-20-308-060-0000 | B30: 290 Euclid Ave | D30: 66233 | E30: 2637 | F30: 14340 | G30: 60 | H30: 4.618758717 | I30: 70.75494165 | J30: 25.11679939 | K30: 5.353999973 | L30: 4.618758717 | M30: 51.76120123 | N30: 51.76120123 | O30: 2021-07-09
A31: 05-20-308-054-0000 | B31: 320 Euclid Ave | D31: 81526 | E31: 3773 | F31: 14802 | G31: 57 | H31: 5.50776922 | I31: 76.25625149 | J31: 21.6077392 | K31: 18.57696306 | L31: 5.50776922 | M31: 42.47628261 | N31: 42.47628261
A32: 05-21-418-051-0000 | B32: 127 Fuller Lane | D32: 76361 | E32: 3432 | F32: 8908 | G32: 37 | H32: 8.572182308 | I32: 6.072874494 | J32: 22.24970862 | K32: 16.15787147 | L32: 8.572182308 | M32: 10.47123205 | N32: 10.47123205
A33: 05-18-216-024-0000 | B33: 980 Greenwood Ave | D33: 75267 | E33: 2578 | F33: 6909 | G33: 15 | H33: 10.89405124 | I33: -17.730412 | J33: 29.19588829 | K33: -10.01696515 | L33: 10.89405124 | M33: -13.77860972 | N33: -13.77860972
A34: 05-18-216-001-0000 | B34: 995 Grove St | D34: 56052 | E34: 2693 | F34: 7950 | G34: 63 | H34: 7.050566038 | I34: -5.334603477 | J34: 20.81396212 | K34: 21.56810154 | L34: 7.050566038 | M34: 26.36315141 | N34: 26.36315141
A35: 05-21-315-004-0000 | B35: 470 Hawthorn Ln | D35: 85101 | E35: 2462 | F35: 14375 | G35: 98 | H35: 5.920069565 | I35: 71.17170755 | J35: 34.56580016 | K35: -30.25205449 | L35: 5.920069565 | M35: 38.17017472 | N35: 38.17017472 | O35: 2021-07-09
A36: 05-21-308-019-0000 | B36: 533 Hawthorn Ln | D36: 124653 | E36: 3712 | F36: 12375 | G36: 21 | H36: 10.0729697 | I36: 47.35651346 | J36: 33.58108836 | K36: -26.54142911 | L36: 10.0729697 | M36: -5.203148298 | N36: -5.203148298 | O36: 2021-04-16
A37: 05-18-309-004-0000 | B37: 777 Heather LN | D37: 162327 | E37: 5299 | F37: 21941 | G37: 14 | H37: 7.398341005 | I37: 161.2645868 | J37: 30.63351576 | K37: -15.43428316 | L37: 7.398341005 | M37: 22.7309533 | N37: 22.7309533
A38: 05-18-309-003-0000 | B38: 795 Heather LN | D38: 100618 | E38: 3120 | F38: 21728 | G38: 65 | H38: 4.630798969 | I38: 158.7282686 | J38: 32.24935897 | K38: -21.52315996 | L38: 4.630798969 | M38: 51.63545158 | N38: 51.63545158 | O38: 2021-07-09
A39: 05-18-402-060-0000 | B39: 860 Hibbard Rd | D39: 100502 | E39: 4246 | F39: 19502 | G39: 63 | H39: 5.153420162 | I39: 132.2219576 | J39: 23.66980688 | K39: 10.80660767 | L39: 5.153420162 | M39: 46.17714121 | N39: 46.17714121
A40: 05-20-300-037-0000 | B40: 355 Hibbard Rd | D40: 53188 | E40: 2899 | F40: 12933 | G40: 58 | H40: 4.112580221 | I40: 54.00095261 | J40: 18.34701621 | K40: 30.86413321 | L40: 4.112580221 | M40: 57.04778234 | N40: 57.04778234
A41: 05-20-300-061-0000 | B41: 277 Hibbard Rd | D41: 63501 | E41: 3338 | F41: 14902 | G41: 56 | H41: 4.261240102 | I41: 77.44701119 | J41: 19.02366687 | K41: 28.31435461 | L41: 4.261240102 | M41: 55.49516301 | N41: 55.49516301
A42: 05-20-300-044-0000 | B42: 319 Hibbard Rd | D42: 87441 | E42: 3862 | F42: 17123 | G42: 67 | H42: 5.106640192 | I42: 103.8937842 | J42: 22.64137752 | K42: 14.68197105 | L42: 5.106640192 | M42: 46.66571612 | N42: 46.66571612
A43: 05-29-101-052-0000 | B43: 996 Hill Rd | D43: 105699 | E43: 3650 | F43: 23344 | G43: 63 | H43: 4.527887252 | I43: 177.9709455 | J43: 28.95863014 | K43: -9.122920712 | L43: 4.527887252 | M43: 52.71027231 | N43: 52.71027231
A44: 05-21-311-033-0000 | B44: 695 Hill Rd | D44: 112991 | E44: 3267 | F44: 8647 | G44: 17 | H44: 13.06707529 | I44: 2.964991665 | J44: 34.58555249 | K44: -30.32648591 | L44: 13.06707529 | M44: -36.4739 | N44: -36.4739
A45: 05-20-410-003-0000 | B45: 201 Linden St | D45: 82500 | E45: 4217 | F45: 18700 | G45: 48 | H45: 4.411764706 | I45: 122.6720648 | J45: 19.56367086 | K45: 26.27949273 | L45: 4.411764706 | M45: 53.92306831 | N45: 53.92306831
A46: 05-20-315-009-0000 | B46: 1210 Lindenwood Dr | D46: 79121 | E46: 3841 | F46: 21645 | G46: 66 | H46: 3.655393855 | I46: 157.7399381 | J46: 20.59906274 | K46: 22.37789288 | L46: 3.655393855 | M46: 61.82268453 | N46: 61.82268453
A47: 05-21-109-022-0000 | B47: 520 Maple St | D47: 116395 | E47: 3580 | F47: 13220 | G47: 30 | H47: 8.804462935 | I47: 57.41843296 | J47: 32.51256983 | K47: -22.5150003 | L47: 8.804462935 | M47: 8.045268903 | N47: 8.045268903
A48: 05-20-311-025-0000 | B48: 1088 Mt Pleasant Rd | D48: 92941 | E48: 2898 | F48: 18339 | G48: 59 | H48: 5.067942636 | I48: 118.3734222 | J48: 32.07073844 | K48: -20.85007583 | L48: 5.067942636 | M48: 47.06987743 | N48: 47.06987743
A49: 05-20-401-013-0000 | B49: 855 Mt Pleasant Rd | D49: 117874 | E49: 3438 | F49: 18700 | G49: 54 | H49: 6.30342246 | I49: 122.6720648 | J49: 34.28563118 | K49: -29.19631195 | L49: 6.30342246 | M49: 34.16639702 | N49: 34.16639702
A50: 05-20-210-028-0000 | B50: 907 Oak St | D50: 102648 | E50: 3238 | F50: 9348 | G50: 21 | H50: 10.98074454 | I50: 11.31221719 | J50: 31.70105003 | K50: -19.45700306 | L50: 10.98074454 | M50: -14.68404368 | N50: -14.68404368
A51: 05-20-110-014-0000 | B51: 1041 Oak St | D51: 114916 | E51: 3334 | F51: 8851 | G51: 12 | H51: 12.98339171 | I51: 5.394141462 | J51: 34.46790642 | K51: -29.88316787 | L51: 12.98339171 | M51: -35.59989996 | N51: -35.59989996
A52: 05-17-117-007-0000 | B52: 960 Old Green Bay Rd | D52: 64978 | E52: 2941 | F52: 13351 | G52: 62 | H52: 4.866901356 | I52: 58.97832817 | J52: 22.09384563 | K52: 16.74519984 | L52: 4.866901356 | M52: 49.16957357 | N52: 49.16957357
A53: 05-21-307-016-0000 | B53: 566 Orchard Lane | D53: 97447 | E53: 3242 | F53: 7632 | G53: 53 | H53: 12.76821279 | I53: -9.121219338 | J53: 30.05768044 | K53: -13.26440044 | L53: 12.76821279 | M53: -33.35254884 | N53: -33.35254884
A54: 05-20-100-002-0000 | B54: 1258 Pine St | D54: 62609 | E54: 2087 | F54: 21780 | G54: 67 | H54: 2.874609734 | I54: 159.3474637 | J54: 29.99952084 | K54: -13.0452414 | L54: 2.874609734 | M54: 69.9772755 | N54: 69.9772755
A55: 05-18-106-032-0000 | B55: 924 Pine Tree Lane | D55: 109463 | E55: 3516 | F55: 23466 | G55: 53 | H55: 4.664748999 | I55: 179.4236723 | J55: 31.13282139 | K55: -17.31578406 | L55: 4.664748999 | M55: 51.28087392 | N55: 51.28087392
A56: 05-18-107-014-0000 | B56: 985 Pine Tree Lane | D56: 147535 | E56: 4443 | F56: 21815 | G56: 21 | H56: 6.763007105 | I56: 159.7642296 | J56: 33.206167 | K56: -25.12863737 | L56: 6.763007105 | M56: 29.36644695 | N56: 29.36644695
A57: 05-17-200-055-0000 | B57: 889 Private Rd | D57: 65310 | E57: 3149 | F57: 21488 | G57: 61 | H57: 3.039370812 | I57: 155.8704453 | J57: 20.73991743 | K57: 21.84711932 | L57: 3.039370812 | M57: 68.25649358 | N57: 68.25649358
A58: 05-17-402-025-0000 | B58: 870 Prospect Ave | D58: 96503 | E58: 2861 | F58: 12977 | G58: 58 | H58: 7.436464514 | I58: 54.52488688 | J58: 33.73051381 | K58: -27.10449929 | L58: 7.436464514 | M58: 22.33278739 | N58: 22.33278739
A59: 05-20-201-004-0000 | B59: 603 Provident Ave | D59: 124364 | E59: 3288 | F59: 8555 | G59: 18 | H59: 14.53699591 | I59: 1.869492736 | J59: 37.82360097 | K59: -42.5282132 | L59: 14.53699591 | M59: -51.82590462 | N59: -51.82590462
A60: 05-18-218-009-0000 | B60: 1346 Scott Ave | D60: 89906 | E60: 3252 | F60: 7950 | G60: 27 | H60: 11.30893082 | I60: -5.334603477 | J60: 27.64637146 | K60: -4.178021782 | L60: 11.30893082 | M60: -18.11165542 | N60: -18.11165542
A61: 05-18-216-012-0000 | B61: 1468 Scott Ave | D61: 63981 | E61: 2930 | F61: 6930 | G61: 33 | H61: 9.232467532 | I61: -17.48035246 | J61: 21.83651877 | K61: 17.71486789 | L61: 9.232467532 | M61: 3.575144153 | N61: 3.575144153 | O61: 2021-07-09
A62: 05-20-103-017-0000 | B62: 1027 Spruce St | D62: 101735 | E62: 3214 | F62: 8851 | G62: 26 | H62: 11.49418145 | I62: 5.394141462 | J62: 31.65370255 | K62: -19.27858664 | L62: 11.49418145 | M62: -20.04643237 | N62: -20.04643237
A63: 05-20-100-010-0000 | B63: 1225 Spruce St | D63: 97131 | E63: 3883 | F63: 21776 | G63: 67 | H63: 4.460461058 | I63: 159.2998333 | J63: 25.01442184 | K63: 5.739782647 | L63: 4.460461058 | M63: 53.41447852 | N63: 53.41447852
A64: 05-20-308-069-0000 | B64: 1220 Sunset Rd | D64: 74842 | E64: 3276 | F64: 12693 | G64: 51 | H64: 5.896320807 | I64: 51.14312932 | J64: 22.84554335 | K64: 13.91262628 | L64: 5.896320807 | M64: 38.41820924 | N64: 38.41820924
A65: 05-20-313-016-0000 | B65: 1240 Sunset Rd | D65: 59002 | E65: 2501 | F65: 13499 | G65: 59 | H65: 4.370842285 | I65: 60.74065254 | J65: 23.59136345 | K65: 11.10220091 | L65: 4.370842285 | M65: 54.35046636 | N65: 54.35046636 | O65: 2021-07-09
A66: 05-18-403-046-0000 | B66: 1332 Sunview Lane | D66: 80700 | E66: 2003 | F66: 21754 | G66: 74 | H66: 3.709662591 | I66: 159.0378662 | J66: 40.28956565 | K66: -51.82054736 | L66: 3.709662591 | M66: 61.25589618 | N66: 61.25589618
A67: 05-17-404-005-0000 | B67: 790 Tower Rd | D67: 72702 | E67: 2222 | F67: 7501 | G67: 65 | H67: 9.692307692 | I67: -10.68111455 | J67: 32.71917192 | K67: -23.29352549 | L67: 9.692307692 | M67: -1.227474536 | N67: -1.227474536
A68: 05-17-404-024-0000 | B68: 800 Tower Rd | D68: 70512 | E68: 2637 | F68: 7279 | G68: 66 | H68: 9.687044924 | I68: -13.3246011 | J68: 26.73947668 | K68: -0.7606292013 | L68: 9.687044924 | M68: -1.172509632 | N68: -1.172509632
A69: 05-17-404-029-0000 | B69: 804 Tower Rd | D69: 85442 | E69: 2800 | F69: 7562 | G69: 27 | H69: 11.29886273 | I69: -9.954751131 | J69: 30.515 | K69: -14.98768795 | L69: 11.29886273 | M69: -18.00650331 | N69: -18.00650331
A70: 05-17-403-032-0000 | B70: 840 Tower Rd | D70: 141912 | E70: 3818 | F70: 15067 | G70: 12 | H70: 9.418729674 | I70: 79.41176471 | J70: 37.16919853 | K70: -40.06227108 | L70: 9.418729674 | M70: 1.629802879 | N70: 1.629802879
A71: 05-18-106-019-0000 | B71: 1555 Tower Rd | D71: 58880 | E71: 2581 | F71: 23353 | G71: 61 | H71: 2.521303473 | I71: 178.0781138 | J71: 22.81286323 | K71: 14.03577262 | L71: 2.521303473 | M71: 73.66724301 | N71: 73.66724301
A72: 05-18-106-018-0000 | B72: 1565 Tower Rd | D72: 66725 | E72: 2627 | F72: 23353 | G72: 61 | H72: 2.857234617 | I72: 178.0781138 | J72: 25.39969547 | K72: 4.287981104 | L72: 2.857234617 | M72: 70.15874304 | N72: 70.15874304
A73: 05-18-402-072-0000 | B73: 1284 Trapp Lane | D73: 80543 | E73: 3029 | F73: 28083 | G73: 62 | H73: 2.868034042 | I73: 234.4010479 | J73: 26.59062397 | K73: -0.1997172256 | L73: 2.868034042 | M73: 70.04595271 | N73: 70.04595271
A74: 05-18-402-050-0000 | B74: 1339 Trapp Lane | D74: 107105 | E74: 4183 | F74: 21000 | G74: 66 | H74: =D74/F74 -> 5.100238095 | I74: 150.059538 | J74: =D74/E74 -> 25.60482907 | K74: 3.514989513 | L74: =D74/F74 -> 5.100238095 | M74: 46.73258028 | N74: 46.73258028
A75: 05-18-402-061-0000 | B75: 1383 Westmoor Trl | D75: 78020 | E75: 3075 | F75: 20996 | G75: 64 | H75: 3.715945894 | I75: 150.0119076 | J75: 25.37235772 | K75: 4.390996154 | L75: 3.715945894 | M75: 61.1902727 | N75: 61.1902727 | O75: 2021-07-09
A76: 05-20-314-005-0000 | B76: 140 Westview Rd | D76: 82176 | E76: 2922 | F76: 23039 | G76: 66 | H76: 3.566821477 | I76: 174.3391284 | J76: 28.12320329 | K76: -5.974836094 | L76: 3.566821477 | M76: 62.74774371 | N76: 62.74774371 | O76: 2021-07-09
A77: 05-29-102-068-0000 | B77: 65 Woodley Rd | D77: 159365 | E77: 5200 | F77: 52141 | G77: 66 | H77: 3.056423927 | I77: =(F77-$F$2)/$F$2*100 -> 520.8740176 | J77: 30.64711538 | K77: =($J$2-J77)/$J$2*100 -> -15.48552975 | L77: 3.056423927 | M77: =($L$2-L77)/$L$2*100 -> 68.07838906 | N77: 68.07838906
A78: 05-29-301-001-0000 | B78: 130 Woodley Rd | D78: 180468 | E78: 4249 | F78: 49789 | G78: 25 | H78: 3.624656049 | I78: 492.8673494 | J78: 42.47305248 | K78: -60.04843864 | L78: 3.624656049 | M78: 62.1437134 | N78: 62.1437134

Sheet Sheet5
A1: 05-17-404-030-0000 | B1: 830 Sheridan Rd | D1: 205137 | E1: 6301 | F1: 27238 | G1: 133 | H1: =D1/F1 -> 7.53127983 | I1: =(F1-REAL_orig!$F$2)/REAL_orig!$F$2*100 -> 224.2619048 | J1: =D1/E1 -> 32.55626091 | K1: =(REAL_orig!$J$2-J1)/REAL_orig!$J$2*100 -> -8.690661496 | L1: =D1/F1 -> 7.53127983 | M1: =(REAL_orig!$L$2-L1)/REAL_orig!$L$2*100 -> 30.29512487 | N1: xxxxx
A2: 05-16-106-002-0000 | B2: 859 Sheridan Rd | D2: 103480 | E2: 3783 | F2: 14900 | G2: 94 | H2: 6.944966443 | I2: =(F2-REAL_orig!$F$2)/REAL_orig!$F$2*100 -> 77.38095238 | J2: 27.35395189 | K2: =(REAL_orig!$J$2-J2)/REAL_orig!$J$2*100 -> 8.677500356 | L2: 6.944966443 | M2: =(REAL_orig!$L$2-L2)/REAL_orig!$L$2*100 -> 35.7216795 | N2: xxxxx age though
A3: 05-16-106-005-0000 | B3: 849 Sheridan Rd | D3: 119371 | E3: 3172 | F3: 14900 | G3: 89 | H3: 8.01147651 | I3: =(F3-REAL_orig!$F$2)/REAL_orig!$F$2*100 -> 77.38095238 | J3: 37.63272383 | K3: =(REAL_orig!$J$2-J3)/REAL_orig!$J$2*100 -> -25.63868002 | L3: 8.01147651 | M3: =(REAL_orig!$L$2-L3)/REAL_orig!$L$2*100 -> 25.85072095 | N3: xxxxx age though
A4: 05-21-113-005-0000 | B4: 500 Sheridan Rd | D4: 108346 | E4: 3396 | F4: 9450 | G4: 71 | H4: 11.46518519 | I4: =(F4-REAL_orig!$F$2)/REAL_orig!$F$2*100 -> 12.5 | J4: 31.90400471 | K4: =(REAL_orig!$J$2-J4)/REAL_orig!$J$2*100 -> -6.51307243 | L4: 11.46518519 | M4: =(REAL_orig!$L$2-L4)/REAL_orig!$L$2*100 -> -6.114673699
A5: 05-21-411-005-0000 | B5: 246 Sheridan Rd | D5: 219691 | E5: 5850 | F5: 24688 | G5: 93 | H5: 8.898695723 | I5: =(F5-REAL_orig!$F$2)/REAL_orig!$F$2*100 -> 193.9047619 | J5: 37.55401709 | K5: =(REAL_orig!$J$2-J5)/REAL_orig!$J$2*100 -> -25.37591374 | L5: 8.898695723 | M5: =(REAL_orig!$L$2-L5)/REAL_orig!$L$2*100 -> 17.63916782 | N5: 2021-01-04
A6: 05-16-101-016-0000 | B6: 720 Humboldt Ave | D6: 163700 | E6: 8069 | F6: 34757 | G6: 121 | H6: 4.709842622 | I6: =(F6-REAL_orig!$F$2)/REAL_orig!$F$2*100 -> 313.7738095 | J6: 20.28752014 | K6: =(REAL_orig!$J$2-J6)/REAL_orig!$J$2*100 -> 32.26912667 | L6: 4.709842622 | M6: =(REAL_orig!$L$2-L6)/REAL_orig!$L$2*100 -> 56.40860528 | N6: xxxxx age though
A7: 05-21-418-033-0000 | B7: 196 Sheridan Rd | D7: 98907 | E7: 2882 | F7: 16932 | G7: 68 | H7: 5.841424522 | I7: =(F7-REAL_orig!$F$2)/REAL_orig!$F$2*100 -> 101.5714286 | J7: 34.31887578 | K7: =(REAL_orig!$J$2-J7)/REAL_orig!$J$2*100 -> -14.57523702 | L7: 5.841424522 | M7: =(REAL_orig!$L$2-L7)/REAL_orig!$L$2*100 -> 45.93538203
A10: 05-17-403-002-0000 | B10: 848 Tower Rd | D10: 120151 | E10: 3818 | F10: 15000 | G10: 123 | H10: =D10/F10 -> 8.010066667 | I10: =(F10-REAL_orig!$F$2)/REAL_orig!$F$2*100 -> 78.57142857 | J10: =D10/E10 -> 31.4696176 | K10: =(REAL_orig!$J$2-J10)/REAL_orig!$J$2*100 -> -5.06284992 | L10: =D10/F10 -> 8.010066667 | M10: =(REAL_orig!$L$2-L10)/REAL_orig!$L$2*100 -> 25.86376959
A11: 05-17-402-024-0000 | B11: 888 Tower Rd | D11: 210540 | E11: 6212 | F11: 18600 | G11: 105 | H11: 11.31935484 | I11: =(F11-REAL_orig!$F$2)/REAL_orig!$F$2*100 -> 121.4285714 | J11: 33.89246619 | K11: =(REAL_orig!$J$2-J11)/REAL_orig!$J$2*100 -> -13.15164786 | L11: 11.31935484 | M11: =(REAL_orig!$L$2-L11)/REAL_orig!$L$2*100 -> -4.76495807
A12: 05-17-402-001-0000 | B12: 896 Tower Rd | D12: 66359 | E12: 2039 | F12: 7860 | G12: 91 | H12: 8.442620865 | I12: =(F12-REAL_orig!$F$2)/REAL_orig!$F$2*100 -> -6.428571429 | J12: 32.54487494 | K12: =(REAL_orig!$J$2-J12)/REAL_orig!$J$2*100 -> -8.652648873 | L12: 8.442620865 | M12: =(REAL_orig!$L$2-L12)/REAL_orig!$L$2*100 -> 21.86031505
A13: 05-17-401-003-0000 | B13: 922 Tower Rd | D13: 91103 | E13: 2514 | F13: 11250 | G13: 96 | H13: 8.098044444 | I13: =(F13-REAL_orig!$F$2)/REAL_orig!$F$2*100 -> 33.92857143 | J13: 36.23826571 | K13: =(REAL_orig!$J$2-J13)/REAL_orig!$J$2*100 -> -20.98321372 | L13: 8.098044444 | M13: =(REAL_orig!$L$2-L13)/REAL_orig!$L$2*100 -> 25.04950161
A14: 05-17-401-029-0000 | B14: 932 Tower Rd | D14: 129777 | E14: 4585 | F14: 15750 | G14: 102 | H14: 8.239809524 | I14: =(F14-REAL_orig!$F$2)/REAL_orig!$F$2*100 -> 87.5 | J14: 28.3046892 | K14: =(REAL_orig!$J$2-J14)/REAL_orig!$J$2*100 -> 5.503417563 | L14: 8.239809524 | M14: =(REAL_orig!$L$2-L14)/REAL_orig!$L$2*100 -> 23.73741158
A15: 05-18-224-029-0000 | B15: 1507 Tower Rd | D15: 72372 | E15: 2676 | F15: 7500 | G15: 72 | H15: 9.6496 | I15: =(F15-REAL_orig!$F$2)/REAL_orig!$F$2*100 -> -10.71428571 | J15: 27.04484305 | K15: =(REAL_orig!$J$2-J15)/REAL_orig!$J$2*100 -> 9.709475264 | L15: 9.6496 | M15: =(REAL_orig!$L$2-L15)/REAL_orig!$L$2*100 -> 10.68926155
A16: 05-17-403-005-0000 | B16: 830 Tower Rd | D16: 76000 | E16: 2512 | F16: 7500 | G16: 121 | H16: 10.13333333 | I16: =(F16-REAL_orig!$F$2)/REAL_orig!$F$2*100 -> -10.71428571 | J16: 30.25477707 | K16: =(REAL_orig!$J$2-J16)/REAL_orig!$J$2*100 -> -1.007045684 | L16: 10.13333333 | M16: =(REAL_orig!$L$2-L16)/REAL_orig!$L$2*100 -> 6.212124551
A18: 05-17-403-006-0000 | B18: 870 Bryant Ave | D18: 110781 | E18: 3762 | F18: 9075 | G18: 101 | H18: =D18/F18 -> 12.20727273 | I18: =(F18-REAL_orig!$F$2)/REAL_orig!$F$2*100 -> 8.035714286 | J18: =D18/E18 -> 29.44736842 | K18: =(REAL_orig!$J$2-J18)/REAL_orig!$J$2*100 -> 1.688527385 | L18: =D18/F18 -> 12.20727273 | M18: =(REAL_orig!$L$2-L18)/REAL_orig!$L$2*100 -> -12.98297771
A20: 05-14-407-015-0000 | B20: 808 Prospect Ave | D20: 99098 | E20: 2766 | F20: 7500 | G20: 116 | H20: =D20/F20 -> 13.21306667 | I20: =(F20-REAL_orig!$F$2)/REAL_orig!$F$2*100 -> -10.71428571 | J20: =D20/E20 -> 35.82718727 | K20: =(REAL_orig!$J$2-J20)/REAL_orig!$J$2*100 -> -19.61080835 | L20: =D20/F20 -> 13.21306667 | M20: =(REAL_orig!$L$2-L20)/REAL_orig!$L$2*100 -> -22.29198528
A21: 05-17-402-002-0000 | B21: 867 Lincoln Ave | D21: 62757 | E21: 1716 | F21: 7205 | G21: 98 | H21: 8.710201249 | I21: =(F21-REAL_orig!$F$2)/REAL_orig!$F$2*100 -> -14.22619048 | J21: 36.57167832 | K21: =(REAL_orig!$J$2-J21)/REAL_orig!$J$2*100 -> -22.09632794 | L21: 8.710201249 | M21: =(REAL_orig!$L$2-L21)/REAL_orig!$L$2*100 -> 19.38375626
A22: 05-17-401-004-0000 | B22: 874 Lincoln Ave | D22: 111027 | E22: 3057 | F22: 15075 | G22: 111 | H22: 7.364975124 | I22: =(F22-REAL_orig!$F$2)/REAL_orig!$F$2*100 -> 79.46428571 | J22: 36.31894014 | K22: =(REAL_orig!$J$2-J22)/REAL_orig!$J$2*100 -> -21.25254921 | L22: 7.364975124 | M22: =(REAL_orig!$L$2-L22)/REAL_orig!$L$2*100 -> 31.83433852
A23: 05-20-204-004-0000 | B23: 605 Lincoln Ave | D23: 80888 | E23: 2332 | F23: 7500 | G23: 106 | H23: 10.78506667 | I23: =(F23-REAL_orig!$F$2)/REAL_orig!$F$2*100 -> -10.71428571 | J23: 34.68610635 | K23: =(REAL_orig!$J$2-J23)/REAL_orig!$J$2*100 -> -15.80125414 | L23: 10.78506667 | M23: =(REAL_orig!$L$2-L23)/REAL_orig!$L$2*100 -> 0.1800832984
A24: 05-17-416-020-0000 | B24: 652 Lincoln Ave | D24: 59639 | E24: 2421 | F24: 7655 | G24: 120 | H24: 7.79085565 | I24: =(F24-REAL_orig!$F$2)/REAL_orig!$F$2*100 -> -8.869047619 | J24: 24.63403552 | K24: =(REAL_orig!$J$2-J24)/REAL_orig!$J$2*100 -> 17.75807352 | L24: 7.79085565 | M24: =(REAL_orig!$L$2-L24)/REAL_orig!$L$2*100 -> 27.89265138
A25: 05-20-104-028-0000 | B25: 1247 Elm St | D25: 94000 | E25: 4161 | F25: 13050 | G25: 70 | H25: 7.203065134 | I25: =(F25-REAL_orig!$F$2)/REAL_orig!$F$2*100 -> 55.35714286 | J25: 22.59072338 | K25: =(REAL_orig!$J$2-J25)/REAL_orig!$J$2*100 -> 24.57977054 | L25: 7.203065134 | M25: =(REAL_orig!$L$2-L25)/REAL_orig!$L$2*100 -> 33.3328774
A26: 05-20-106-018-0000 | B26: 1065 Elm St | D26: 69560 | E26: 1639 | F26: 8850 | G26: 96 | H26: 7.859887006 | I26: =(F26-REAL_orig!$F$2)/REAL_orig!$F$2*100 -> 5.357142857 | J26: 42.44051251 | K26: =(REAL_orig!$J$2-J26)/REAL_orig!$J$2*100 -> -41.6897165 | L26: 7.859887006 | M26: =(REAL_orig!$L$2-L26)/REAL_orig!$L$2*100 -> 27.25373978
A28: 05-21-310-025-0000 | B28: 680 Elder Lane | D28: 84274 | E28: 3038 | F28: 7598 | G28: 75 | H28: =D28/F28 -> 11.09160305 | I28: =(F28-REAL_orig!$F$2)/REAL_orig!$F$2*100 -> -9.547619048 | J28: =D28/E28 -> 27.7399605 | K28: =(REAL_orig!$J$2-J28)/REAL_orig!$J$2*100 -> 7.388791824 | L28: =D28/F28 -> 11.09160305 | M28: =(REAL_orig!$L$2-L28)/REAL_orig!$L$2*100 -> -2.657028195
A29: 05-20-102-003-0000 | B29: 1094 Pine St | D29: 82734 | E29: 2574 | F29: 10980 | G29: 95 | H29: =D29/F29 -> 7.534972678 | I29: =(F29-REAL_orig!$F$2)/REAL_orig!$F$2*100 -> 30.71428571 | J29: =D29/E29 -> 32.14219114 | K29: =(REAL_orig!$J$2-J29)/REAL_orig!$J$2*100 -> -7.308269421 | L29: =D29/F29 -> 7.534972678 | M29: =(REAL_orig!$L$2-L29)/REAL_orig!$L$2*100 -> 30.26094615
A31: 05-21-311-032-0000 | B31: 187 Forest St | D31: 53447 | E31: 1450 | F31: 6600 | G31: 105 | H31: =D31/F31 -> 8.098030303 | I31: =(F31-REAL_orig!$F$2)/REAL_orig!$F$2*100 -> -21.42857143 | J31: =D31/E31 -> 36.86 | K31: =(REAL_orig!$J$2-J31)/REAL_orig!$J$2*100 -> -23.0589039 | L31: =D31/F31 -> 8.098030303 | M31: =(REAL_orig!$L$2-L31)/REAL_orig!$L$2*100 -> 25.04963249
A32: 05-17-118-065-0000 | B32: 1233 Forest Glen Dr North | D32: 60960 | E32: 1764 | F32: 6576 | G32: 71 | H32: =D32/F32 -> 9.270072993 | I32: =(F32-REAL_orig!$F$2)/REAL_orig!$F$2*100 -> -21.71428571 | J32: =D32/E32 -> 34.55782313 | K32: =(REAL_orig!$J$2-J32)/REAL_orig!$J$2*100 -> -15.37297437 | L32: =D32/F32 -> 9.270072993 | M32: =(REAL_orig!$L$2-L32)/REAL_orig!$L$2*100 -> 14.20192915
A34: 05-21-418-007-0000 | B34: 159 Fuller Lane | D34: 90406 | E34: 2528 | F34: 7575 | G34: 96 | H34: =D34/F34 -> 11.93478548 | I34: =(F34-REAL_orig!$F$2)/REAL_orig!$F$2*100 -> -9.821428571 | J34: =D34/E34 -> 35.76186709 | K34: =(REAL_orig!$J$2-J34)/REAL_orig!$J$2*100 -> -19.39273373 | L34: =D34/F34 -> 11.93478548 | M34: =(REAL_orig!$L$2-L34)/REAL_orig!$L$2*100 -> -10.46100401
A36: 05-18-212-018-0000 | B36: 1495 Scott Ave | D36: 85671 | E36: 3043 | F36: 5450 | G36: 70 | H36: =D36/F36 -> 15.71944954 | I36: =(F36-REAL_orig!$F$2)/REAL_orig!$F$2*100 -> -35.11904762 | J36: =D36/E36 -> 28.15346697 | K36: =(REAL_orig!$J$2-J36)/REAL_orig!$J$2*100 -> 6.00828034 | L36: =D36/F36 -> 15.71944954 | M36: =(REAL_orig!$L$2-L36)/REAL_orig!$L$2*100 -> -45.48951734
A38: 05-28-201-014-0000 | B38: 51 Warwick Rd | D38: 82568 | E38: 3098 | F38: 9000 | G38: 111 | H38: =D38/F38 -> 9.174222222 | I38: =(F38-REAL_orig!$F$2)/REAL_orig!$F$2*100 -> 7.142857143 | J38: =D38/E38 -> 26.65203357 | K38: =(REAL_orig!$J$2-J38)/REAL_orig!$J$2*100 -> 11.02088883 | L38: =D38/F38 -> 9.174222222 | M38: =(REAL_orig!$L$2-L38)/REAL_orig!$L$2*100 -> 15.08906469
A40: 05-20-305-008-0000 | B40: 311 Rosewood Ave | D40: 66721 | E40: 2546 | F40: 9960 | G40: 78 | H40: =D40/F40 -> 6.698895582 | I40: =(F40-REAL_orig!$F$2)/REAL_orig!$F$2*100 -> 18.57142857 | J40: =D40/E40 -> 26.20620581 | K40: =(REAL_orig!$J$2-J40)/REAL_orig!$J$2*100 -> 12.50930649 | L40: =D40/F40 -> 6.698895582 | M40: =(REAL_orig!$L$2-L40)/REAL_orig!$L$2*100 -> 37.99915942
A41: 05-20-304-029-0000 | B41: 312 Rosewood Ave | D41: 68205 | E41: 2848 | F41: 7367 | G41: 66 | H41: 9.258178363 | I41: =(F41-REAL_orig!$F$2)/REAL_orig!$F$2*100 -> -12.29761905 | J41: 23.94838483 | K41: =(REAL_orig!$J$2-J41)/REAL_orig!$J$2*100 -> 20.04715172 | L41: 9.258178363 | M41: =(REAL_orig!$L$2-L41)/REAL_orig!$L$2*100 -> 14.3120185
A42: 05-20-308-059-0000 | B42: 303 Auburn Ave | D42: 138129 | E42: 3737 | F42: 16100 | G42: 69 | H42: 8.579440994 | I42: =(F42-REAL_orig!$F$2)/REAL_orig!$F$2*100 -> 91.66666667 | J42: 36.96253679 | K42: =(REAL_orig!$J$2-J42)/REAL_orig!$J$2*100 -> -23.40122798 | L42: 8.579440994 | M42: =(REAL_orig!$L$2-L42)/REAL_orig!$L$2*100 -> 20.59399243
A43: 05-18-219-015-0000 | B43: 1305 Asbury Ave | D43: 85825 | E43: 2784 | F43: 7950 | G43: 80 | H43: 10.79559748 | I43: =(F43-REAL_orig!$F$2)/REAL_orig!$F$2*100 -> -5.357142857 | J43: 30.8279454 | K43: =(REAL_orig!$J$2-J43)/REAL_orig!$J$2*100 -> -2.920596057 | L43: 10.79559748 | M43: =(REAL_orig!$L$2-L43)/REAL_orig!$L$2*100 -> 0.082616554
A44: 05-18-221-020-0000 | B44: 1423 Edgewood Ln | D44: 80000 | E44: 3551 | F44: 8050 | G44: 103 | H44: 9.937888199 | I44: =(F44-REAL_orig!$F$2)/REAL_orig!$F$2*100 -> -4.166666667 | J44: 22.52886511 | K44: =(REAL_orig!$J$2-J44)/REAL_orig!$J$2*100 -> 24.7862874 | L44: 9.937888199 | M44: =(REAL_orig!$L$2-L44)/REAL_orig!$L$2*100 -> 8.021044019
A45: 05-20-107-008-0000 | B45: 1016 Spruce St | D45: 84145 | E45: 2904 | F45: 8850 | G45: 120 | H45: 9.507909605 | I45: =(F45-REAL_orig!$F$2)/REAL_orig!$F$2*100 -> 5.357142857 | J45: 28.97555096 | K45: =(REAL_orig!$J$2-J45)/REAL_orig!$J$2*100 -> 3.263712927 | L45: 9.507909605 | M45: =(REAL_orig!$L$2-L45)/REAL_orig!$L$2*100 -> 12.00066035
A46: 05-21-310-016-0000 | B46: 663 Garland Ave | D46: 87272 | E46: 2556 | F46: 7980 | G46: 96 | H46: 10.93634085 | I46: =(F46-REAL_orig!$F$2)/REAL_orig!$F$2*100 -> -5 | J46: 34.14397496 | K46: =(REAL_orig!$J$2-J46)/REAL_orig!$J$2*100 -> -13.99132212 | L46: 10.93634085 | M46: =(REAL_orig!$L$2-L46)/REAL_orig!$L$2*100 -> -1.220017142
A47: 05-21-409-016-0000 | B47: 435 Sunset Rd | D47: 91255 | E47: 2634 | F47: 9500 | G47: 93 | H47: 9.605789474 | I47: =(F47-REAL_orig!$F$2)/REAL_orig!$F$2*100 -> 13.0952381 | J47: 34.64502658 | K47: =(REAL_orig!$J$2-J47)/REAL_orig!$J$2*100 -> -15.66410732 | L47: 9.605789474 | M47: =(REAL_orig!$L$2-L47)/REAL_orig!$L$2*100 -> 11.09474473
A48: 05-21-318-010-0000 | B48: 479 Sunset Rd | D48: 70592 | E48: 2264 | F48: 9570 | G48: 99 | H48: 7.376384535 | I48: =(F48-REAL_orig!$F$2)/REAL_orig!$F$2*100 -> 13.92857143 | J48: 31.18021201 | K48: =(REAL_orig!$J$2-J48)/REAL_orig!$J$2*100 -> -4.096655284 | L48: 7.376384535 | M48: =(REAL_orig!$L$2-L48)/REAL_orig!$L$2*100 -> 31.72874006
A49: 05-21-414-003-0000 | B49: 452 Sunset Rd | D49: 102522 | E49: 3940 | F49: 8950 | G49: 96 | H49: 11.45497207 | I49: =(F49-REAL_orig!$F$2)/REAL_orig!$F$2*100 -> 6.547619048 | J49: 26.02081218 | K49: =(REAL_orig!$J$2-J49)/REAL_orig!$J$2*100 -> 13.12825215 | L49: 11.45497207 | M49: =(REAL_orig!$L$2-L49)/REAL_orig!$L$2*100 -> -6.020147384
A51: 05-20-113-019-0000 | B51: 1091 Cherry St | D51: 64499 | E51: 1350 | F51: 8850 | G51: 69 | H51: =D51/F51 -> 7.288022599 | I51: =(F51-REAL_orig!$F$2)/REAL_orig!$F$2*100 -> 5.357142857 | J51: =D51/E51 -> 47.77703704 | K51: =(REAL_orig!$J$2-J51)/REAL_orig!$J$2*100 -> -59.50596336 | L51: =D51/F51 -> 7.288022599 | M51: =(REAL_orig!$L$2-L51)/REAL_orig!$L$2*100 -> 32.54656358
A52: 05-20-112-024-0000 | B52: 1133 Cherry St | D52: 83210 | E52: 2365 | F52: 9350 | G52: 85 | H52: =D52/F52 -> 8.899465241 | I52: =(F52-REAL_orig!$F$2)/REAL_orig!$F$2*100 -> 11.30952381 | J52: =D52/E52 -> 35.18393235 | K52: =(REAL_orig!$J$2-J52)/REAL_orig!$J$2*100 -> -17.46327047 | L52: =D52/F52 -> 8.899465241 | M52: =(REAL_orig!$L$2-L52)/REAL_orig!$L$2*100 -> 17.63204564
A53: 05-20-112-019-0000 | B53: 1163 Cherry St | D53: 76535 | E53: 2350 | F53: 9350 | G53: 91 | H53: =D53/F53 -> 8.185561497 | I53: =(F53-REAL_orig!$F$2)/REAL_orig!$F$2*100 -> 11.30952381 | J53: =D53/E53 -> 32.56808511 | K53: =(REAL_orig!$J$2-J53)/REAL_orig!$J$2*100 -> -8.730137148 | L53: =D53/F53 -> 8.185561497 | M53: =(REAL_orig!$L$2-L53)/REAL_orig!$L$2*100 -> 24.23949781
A54: 05-20-111-020-0000 | B54: 1229 Cherry St | D54: 92231 | E54: 2870 | F54: 9350 | G54: 89 | H54: =D54/F54 -> 9.864278075 | I54: =(F54-REAL_orig!$F$2)/REAL_orig!$F$2*100 -> 11.30952381 | J54: =D54/E54 -> 32.13623693 | K54: =(REAL_orig!$J$2-J54)/REAL_orig!$J$2*100 -> -7.288391006 | L54: =D54/F54 -> 9.864278075 | M54: =(REAL_orig!$L$2-L54)/REAL_orig!$L$2*100 -> 8.702333867
A56: 05-20-110-015-0000 | B56: 1037 Oak St | D56: 85416 | E56: 2762 | F56: 8850 | G56: 80 | H56: =D56/F56 -> 9.651525424 | I56: =(F56-REAL_orig!$F$2)/REAL_orig!$F$2*100 -> 5.357142857 | J56: =D56/E56 -> 30.92541636 | K56: =(REAL_orig!$J$2-J56)/REAL_orig!$J$2*100 -> -3.246007609 | L56: =D56/F56 -> 9.651525424 | M56: =(REAL_orig!$L$2-L56)/REAL_orig!$L$2*100 -> 10.67144102
A58: 05-20-106-019-0000 | B58: 550 Rosewood Ave | D58: 63230 | E58: 1824 | F58: 8850 | G58: 96 | H58: =D58/F58 -> 7.144632768 | I58: =(F58-REAL_orig!$F$2)/REAL_orig!$F$2*100 -> 5.357142857 | J58: =D58/E58 -> 34.66557018 | K58: =(REAL_orig!$J$2-J58)/REAL_orig!$J$2*100 -> -15.73269313 | L58: =D58/F58 -> 7.144632768 | M58: =(REAL_orig!$L$2-L58)/REAL_orig!$L$2*100 -> 33.8736913
A59: 05-20-224-015-0000 | B59: 973 Willow Rd | D59: 58731 | E59: 2714 | F59: 9350 | G59: 106 | H59: =D59/F59 -> 6.281390374 | I59: =(F59-REAL_orig!$F$2)/REAL_orig!$F$2*100 -> 11.30952381 | J59: =D59/E59 -> 21.64001474 | K59: =(REAL_orig!$J$2-J59)/REAL_orig!$J$2*100 -> 27.75375762 | L59: =D59/F59 -> 6.281390374 | M59: =(REAL_orig!$L$2-L59)/REAL_orig!$L$2*100 -> 41.8633298
A60: 05-20-304-023-0000 | B60: 317 Glendale Ave | D60: 59149 | E60: 2513 | F60: 9230 | G60: 70 | H60: =D60/F60 -> 6.408342362 | I60: =(F60-REAL_orig!$F$2)/REAL_orig!$F$2*100 -> 9.880952381 | J60: =D60/E60 -> 23.53720653 | K60: =(REAL_orig!$J$2-J60)/REAL_orig!$J$2*100 -> 21.41989051 | L60: =D60/F60 -> 6.408342362 | M60: =(REAL_orig!$L$2-L60)/REAL_orig!$L$2*100 -> 40.6883406
A62: 05-17-202-016-0000 | B62: 955 Tower Manor Dr | D62: 84115 | E62: 3192 | F62: 8530 | G62: 81 | H62: =D62/F62 -> 9.861078546 | I62: =(F62-REAL_orig!$F$2)/REAL_orig!$F$2*100 -> 1.547619048 | J62: =D62/E62 -> 26.35181704 | K62: =(REAL_orig!$J$2-J62)/REAL_orig!$J$2*100 -> 12.02317632 | L62: =D62/F62 -> 9.861078546 | M62: =(REAL_orig!$L$2-L62)/REAL_orig!$L$2*100 -> 8.731946728
A63: 05-20-116-026-0000 | B63: 1121 Ash St | D63: 76116 | E63: 2162 | F63: 12155 | G63: 96 | H63: 6.262114356 | I63: =(F63-REAL_orig!$F$2)/REAL_orig!$F$2*100 -> 44.70238095 | J63: 35.20629047 | K63: =(REAL_orig!$J$2-J63)/REAL_orig!$J$2*100 -> -17.53791416 | L63: 6.262114356 | M63: =(REAL_orig!$L$2-L63)/REAL_orig!$L$2*100 -> 42.04173671
A64: 05-20-119-030-0000 | B64: 1240 Ash St | D64: 75000 | E64: 2531 | F64: 14025 | G64: 89 | H64: 5.347593583 | I64: =(F64-REAL_orig!$F$2)/REAL_orig!$F$2*100 -> 66.96428571 | J64: 29.6325563 | K64: =(REAL_orig!$J$2-J64)/REAL_orig!$J$2*100 -> 1.070268632 | L64: 5.347593583 | M64: =(REAL_orig!$L$2-L64)/REAL_orig!$L$2*100 -> 50.50597623
A65: 05-21-300-062-0000 | B65: 233 Ridge Ave | D65: 87102 | E65: 3038 | F65: 8052 | G65: 95 | H65: 10.81743666 | I65: =(F65-REAL_orig!$F$2)/REAL_orig!$F$2*100 -> -4.142857143 | J65: 28.67083608 | K65: =(REAL_orig!$J$2-J65)/REAL_orig!$J$2*100 -> 4.28101841 | L65: 10.81743666 | M65: =(REAL_orig!$L$2-L65)/REAL_orig!$L$2*100 -> -0.1195133853
A66: 05-28-200-022-0000 | B66: 38 Abbottsford Rd | D66: 68273 | E66: 2028 | F66: 9000 | G66: 106 | H66: 7.585888889 | I66: =(F66-REAL_orig!$F$2)/REAL_orig!$F$2*100 -> 7.142857143 | J66: 33.66518738 | K66: =(REAL_orig!$J$2-J66)/REAL_orig!$J$2*100 -> -12.39286647 | L66: 7.585888889 | M66: =(REAL_orig!$L$2-L66)/REAL_orig!$L$2*100 -> 29.78969714
A67: 05-17-413-046-0000 | B67: 686 Foxdale Ave | D67: 63450 | E67: 1399 | F67: 7320 | G67: 66 | H67: 8.668032787 | I67: =(F67-REAL_orig!$F$2)/REAL_orig!$F$2*100 -> -12.85714286 | J67: 45.35382416 | K67: =(REAL_orig!$J$2-J67)/REAL_orig!$J$2*100 -> -51.41594923 | L67: 8.668032787 | M67: =(REAL_orig!$L$2-L67)/REAL_orig!$L$2*100 -> 19.77404151
A68: 05-17-414-008-0000 | B68: 719 Foxdale Ave | D68: 56426 | E68: 2070 | F68: 7000 | G68: 96 | H68: 8.060857143 | I68: =(F68-REAL_orig!$F$2)/REAL_orig!$F$2*100 -> -16.66666667 | J68: 27.2589372 | K68: =(REAL_orig!$J$2-J68)/REAL_orig!$J$2*100 -> 8.994711529 | L68: 8.060857143 | M68: =(REAL_orig!$L$2-L68)/REAL_orig!$L$2*100 -> 25.3936843
A70: 05-21-305-008-0000 | B70: 475 Orchard Lane | D70: 92714 | E70: 2648 | F70: 8550 | G70: 92 | H70: =D70/F70 -> 10.84374269 | I70: =(F70-REAL_orig!$F$2)/REAL_orig!$F$2*100 -> 1.785714286 | J70: =D70/E70 -> 35.01283988 | K70: =(REAL_orig!$J$2-J70)/REAL_orig!$J$2*100 -> -16.89206994 | L70: =D70/F70 -> 10.84374269 | M70: =(REAL_orig!$L$2-L70)/REAL_orig!$L$2*100 -> -0.3629857384
A72: 05-17-202-030-0000 | B72: 850 Lamson Dr | D72: 108312 | E72: 5088 | F72: 20080 | G72: 65 | H72: =D72/F72 -> 5.394023904 | I72: =(F72-REAL_orig!$F$2)/REAL_orig!$F$2*100 -> 139.047619 | J72: =D72/E72 -> 21.28773585 | K72: =(REAL_orig!$J$2-J72)/REAL_orig!$J$2*100 -> 28.92985784 | L72: =D72/F72 -> 5.394023904 | M72: =(REAL_orig!$L$2-L72)/REAL_orig!$L$2*100 -> 50.07624584

Sheet REAL1
A1: PIN | B1: Address | C1: Distance from this property | D1: Total Assessment | E1: Bldg SqFt | F1: Land SqFt | G1: Age | H1: $ Assessed Per Sq Ft of Land | I1: % more land vs subject prop | J1: $ Assessed Per Sq Ft of Bldg | K1: % diff | L1: $ Assessed Per Sq Ft of Land | M1: % diff
A2: 05-17-404-013-0000 | B2: 874 Sheridan Rd | C2: 0 | D2: 98650 | E2: 3030 | F2: 8400 | G2: 63 | H2: =D2/F2 -> 11.74404762 | I2: N/A | J2: =D2/E2 -> 32.55775578 | L2: =D2/F2 -> 11.74404762
A3: 05-21-201-033-0000 | B3: 380 Sheridan Rd | C3: 1.2 miles | D3: 110478 | E3: 3166 | F3: 12375 | G3: 41 | H3: =D3/F3 -> 8.927515152 | I3: =(F3-$F$2)/$F$2*100 -> 47.32142857 | J3: 34.89513582 | K3: =($J$2-J3)/$J$2*100 -> -7.179180465 | L3: 8.927515152 | M3: =($L$2-L3)/$L$2*100 -> 23.98263834
A4: 05-17-404-014-0000 | B4: 870 Sheridan Rd | D4: 233490 | E4: 5028 | F4: 18600 | G4: 19 | H4: 12.55322581 | I4: 121.4285714 | J4: 46.43794749 | K4: -42.63251993 | L4: 12.55322581 | M4: -6.890113304
A5: 05-17-404-012-0000 | B5: 878 Sheridan Rd | D5: 115483 | E5: 3498 | F5: 9350 | G5: 28 | H5: 12.35112299 | I5: 11.30952381 | J5: 33.014008 | K5: -1.40136265 | L5: 12.35112299 | M5: -5.169217593 | N5: NO
A6: 05-17-404-015-0000 | B6: 860 Sheridan Rd | C6: 151 feet | D6: 106288 | E6: 2973 | F6: 9300 | G6: 57 | H6: 11.4288172 | I6: 10.71428571 | J6: 35.75109317 | K6: -9.808223326 | L6: 11.4288172 | M6: 2.684171803 | N6: not really
A7: 05-17-404-016-0000 | B7: 856 Sheridan Rd | D7: 245933 | E7: 5733 | F7: 18500 | G7: 30 | H7: 13.29367568 | I7: 120.2380952 | J7: 42.89778475 | K7: -31.75903478 | L7: 13.29367568 | M7: -13.19500829
A8: 05-17-404-032-0000 | B8: 850 Sheridan Rd | D8: 103756 | E8: 2982 | F8: 14560 | G8: 42 | H8: 7.126098901 | I8: 73.33333333 | J8: 34.79409792 | K8: -6.868846123 | L8: 7.126098901 | M8: 39.32161098
A9: 05-17-404-031-0000 | B9: 840 Sheridan Rd | D9: 119853 | E9: 3571 | F9: 14560 | G9: 41 | H9: 8.231662088 | I9: 73.33333333 | J9: 33.56286754 | K9: -3.087165391 | L9: 8.231662088 | M9: 29.90779368
A10: 05-17-404-030-0000 | B10: 830 Sheridan Rd | D10: 205137 | E10: 6301 | F10: 27238 | G10: 133 | H10: 7.53127983 | I10: 224.2619048 | J10: 32.55626091 | K10: 0.004591423995 | L10: 7.53127983 | M10: 35.87151488 | N10: xxxxx
A11: 05-16-106-002-0000 | B11: 859 Sheridan Rd | D11: 103480 | E11: 3783 | F11: 14900 | G11: 94 | H11: 6.944966443 | I11: 77.38095238 | J11: 27.35395189 | K11: 15.98330033 | L11: 6.944966443 | M11: 40.86394514 | N11: xxxxx age though
A12: 05-16-106-005-0000 | B12: 849 Sheridan Rd | D12: 119371 | E12: 3172 | F12: 14900 | G12: 89 | H12: 8.01147651 | I12: 77.38095238 | J12: 37.63272383 | K12: -15.58758562 | L12: 8.01147651 | M12: 31.78266327 | N12: xxxxx age though
A13: 05-21-107-001-0000 | B13: 568 Sheridan Rd | D13: 97463 | E13: 2745 | F13: 7321 | G13: 62 | H13: 13.3127988 | I13: -12.8452381 | J13: 35.50564663 | K13: -9.054342919 | L13: 13.3127988 | M13: -13.35784075
A14: 05-21-113-005-0000 | B14: 500 Sheridan Rd | D14: 108346 | E14: 3396 | F14: 9450 | G14: 71 | H14: 11.46518519 | I14: 12.5 | J14: 31.90400471 | K14: 2.007973365 | L14: 11.46518519 | M14: 2.374500197
A15: 05-21-418-049-0000 | B15: 130 Sheridan Rd | D15: 65318 | E15: 2132 | F15: 9939 | G15: 51 | H15: 6.57188852 | I15: 18.32142857 | J15: 30.6369606 | K15: 5.89965472 | L15: 6.57188852 | M15: 44.04068569
A16: 05-16-101-016-0000 | B16: 720 Humboldt Ave | D16: 163700 | E16: 8069 | F16: 34757 | G16: 121 | H16: 4.709842622 | I16: 313.7738095 | J16: 20.28752014 | K16: 37.68759653 | L16: 4.709842622 | M16: 59.89591686 | N16: xxxxx age though
A17: 05-17-404-005-0000 | B17: 790 Tower Rd | D17: 79024 | E17: 2222 | F17: 7500 | G17: 63 | H17: 10.53653333 | I17: -10.71428571 | J17: 35.56435644 | K17: -9.234668018 | L17: 10.53653333 | M17: 10.281926 | N17: maybe
A18: 05-17-404-024-0000 | B18: 800 Tower Rd | D18: 81569 | E18: 2637 | F18: 7280 | G18: 64 | H18: 11.20453297 | I18: -13.33333333 | J18: 30.93249905 | K18: 4.991918776 | L18: 11.20453297 | M18: 4.593941284
A19: 05-17-404-029-0000 | B19: 804 Tower Rd | D19: 85148 | E19: 2800 | F19: 7560 | G19: 27 | H19: 11.26296296 | I19: -10 | J19: 30.41 | K19: 6.596756209 | L19: 11.26296296 | M19: 4.096412682
A20: 05-17-404-028-0000 | B20: 875 Bryant Ave | D20: 108687 | E20: 3035 | F20: 11880 | G20: 67 | H20: 9.148737374 | I20: 41.42857143 | J20: 35.81120264 | K20: -9.992847427 | L20: 9.148737374 | M20: 22.09894177
A21: 05-17-403-006-0000 | B21: 870 Bryant Ave | D21: 110781 | E21: 3762 | F21: 9075 | G21: 101 | H21: 12.20727273 | I21: 8.035714286 | J21: 29.44736842 | K21: 9.553445194 | L21: 12.20727273 | M21: -3.944339492
A22: 05-17-403-005-0000 | B22: 830 Tower Rd | D22: 76000 | E22: 2512 | F22: 7500 | G22: 121 | H22: 10.13333333 | I22: -10.71428571 | J22: 30.25477707 | K22: 7.07351797 | L22: 10.13333333 | M22: 13.71515459
A23: 05-17-403-032-0000 | B23: 840 Tower Rd | D23: 171157 | E23: 3818 | F23: 15067 | G23: 12 | H23: 11.35972655 | I23: 79.36904762 | J23: 44.82896805 | K23: -37.69059623 | L23: 11.35972655 | M23: 3.272475358
A24: 05-17-403-002-0000 | B24: 848 Tower Rd | D24: 120151 | E24: 3818 | F24: 15000 | G24: 123 | H24: 8.010066667 | I24: 78.57142857 | J24: 31.4696176 | K24: 3.342178073 | L24: 8.010066667 | M24: 31.79466802
A25: 05-17-402-025-0000 | B25: 870 Prospect Ave | D25: 108459 | E25: 2861 | F25: 12975 | G25: 56 | H25: 8.359075145 | I25: 54.46428571 | J25: 37.90947221 | K25: -16.43760852 | L25: 8.359075145 | M25: 28.82287763
A26: 05-14-407-015-0000 | B26: 808 Prospect Ave | D26: 99098 | E26: 2766 | F26: 7500 | G26: 116 | H26: 13.21306667 | I26: -10.71428571 | J26: 35.82718727 | K26: -10.04194368 | L26: 13.21306667 | M26: -12.50862646
A27: 05-17-402-024-0000 | B27: 888 Tower Rd | D27: 210540 | E27: 6212 | F27: 18600 | G27: 105 | H27: 11.31935484 | I27: 121.4285714 | J27: 33.89246619 | K27: -4.099516036 | L27: 11.31935484 | M27: 3.616238576
A28: 05-17-402-001-0000 | B28: 896 Tower Rd | D28: 66359 | E28: 2039 | F28: 7860 | G28: 91 | H28: 8.442620865 | I28: -6.428571429 | J28: 32.54487494 | K28: 0.03956303675 | L28: 8.442620865 | M28: 28.11148985
A29: 05-17-402-002-0000 | B29: 867 Lincoln Ave | D29: 62757 | E29: 1716 | F29: 7205 | G29: 98 | H29: 8.710201249 | I29: -14.22619048 | J29: 36.57167832 | K29: -12.32862171 | L29: 8.710201249 | M29: 25.83305576
A30: 05-17-401-004-0000 | B30: 874 Lincoln Ave | D30: 111027 | E30: 3057 | F30: 15075 | G30: 111 | H30: 7.364975124 | I30: 79.46428571 | J30: 36.31894014 | K30: -11.55234528 | L30: 7.364975124 | M30: 37.28759144
A31: 05-20-204-004-0000 | B31: 605 Lincoln Ave | D31: 80888 | E31: 2332 | F31: 7500 | G31: 106 | H31: 10.78506667 | I31: -10.71428571 | J31: 34.68610635 | K31: -6.537153806 | L31: 10.78506667 | M31: 8.165676635
A32: 05-17-416-020-0000 | B32: 652 Lincoln Ave | D32: 59639 | E32: 2421 | F32: 7655 | G32: 120 | H32: 7.79085565 | I32: -8.869047619 | J32: 24.63403552 | K32: 24.33742764 | L32: 7.79085565 | M32: 33.66123927
A33: 05-17-401-003-0000 | B33: 922 Tower Rd | D33: 91103 | E33: 2514 | F33: 11250 | G33: 96 | H33: 8.098044444 | I33: 33.92857143 | J33: 36.23826571 | K33: -11.30455662 | L33: 8.098044444 | M33: 31.04554148
A34: 05-17-401-029-0000 | B34: 932 Tower Rd | D34: 129777 | E34: 4585 | F34: 15750 | G34: 102 | H34: 8.239809524 | I34: 87.5 | J34: 28.3046892 | K34: 13.06314416 | L34: 8.239809524 | M34: 29.83841865
A35: 05-18-224-029-0000 | B35: 1507 Tower Rd | D35: 72372 | E35: 2676 | F35: 7500 | G35: 72 | H35: 9.6496 | I35: =(F35-$F$2)/$F$2*100 -> -10.71428571 | J35: 27.04484305 | K35: =($J$2-J35)/$J$2*100 -> 16.93271724 | L35: 9.6496 | M35: =($L$2-L35)/$L$2*100 -> 17.83412063
A36: 05-18-106-018-0000 | B36: 1565 Tower Rd | D36: 72527 | E36: 2627 | F36: 23353 | G36: 59 | H36: 3.105682353 | I36: 178.0119048 | J36: 27.60829844 | K36: 15.20208386 | L36: 3.105682353 | M36: 73.5552643
A37: 05-18-402-072-0000 | B37: 1284 Trapp Lane | D37: 98621 | E37: 3029 | F37: 28084 | G37: 60 | H37: 3.511643641 | I37: 234.3333333 | J37: 32.55893034 | K37: -0.003607633391 | L37: 3.511643641 | M37: 70.09852349
A38: 05-18-402-050-0000 | B38: 1339 Trapp Lane | D38: 116418 | E38: 4183 | F38: 21000 | G38: 64 | H38: 5.543714286 | I38: 150 | J38: 27.83122161 | K38: 14.51738319 | L38: 5.543714286 | M38: 52.79553979
A39: 05-20-104-028-0000 | B39: 1247 Elm St | D39: 94000 | E39: 4161 | F39: 13050 | G39: 70 | H39: 7.203065134 | I39: 55.35714286 | J39: 22.59072338 | K39: 30.6133889 | L39: 7.203065134 | M39: 38.66624721
A40: 05-20-106-018-0000 | B40: 1065 Elm St | D40: 69560 | E40: 1639 | F40: 8850 | G40: 96 | H40: 7.859887006 | I40: 5.357142857 | J40: 42.44051251 | K40: -30.35453918 | L40: 7.859887006 | M40: 33.0734406
A41: 05-21-418-033-0000 | B41: 196 Sheridan Rd | D41: 98907 | E41: 2882 | F41: 16932 | G41: 68 | H41: 5.841424522 | I41: 101.5714286 | J41: 34.31887578 | K41: -5.409218059 | L41: 5.841424522 | M41: 50.26055146
A42: 05-21-202-017-0000 | B42: 359 Sheridan Rd | D42: 143612 | E42: 3493 | F42: 17600 | G42: 53 | H42: 8.159772727 | I42: 109.5238095 | J42: 41.11422846 | K42: -26.28090443 | L42: 8.159772727 | M42: 30.51992812
A43: 05-21-410-002-0000 | B43: 398 Elder Lane | D43: 117566 | E43: 3391 | F43: 8500 | G43: 28 | H43: 13.83129412 | I43: 1.19047619 | J43: 34.67000885 | K43: -6.487710903 | L43: 13.83129412 | M43: -17.77280343
A44: 05-21-310-025-0000 | B44: 680 Elder Lane | D44: 84274 | E44: 3038 | F44: 7598 | G44: 75 | H44: 11.09160305 | I44: -9.547619048 | J44: 27.7399605 | K44: 14.79768848 | L44: 11.09160305 | M44: 5.555534061
A45: 05-20-102-003-0000 | B45: 1094 Pine St | D45: 82734 | E45: 2574 | F45: 10980 | G45: 95 | H45: 7.534972678 | I45: 30.71428571 | J45: 32.14219114 | K45: 1.276392133 | L45: 7.534972678 | M45: 35.84007046
A46: 05-20-100-002-0000 | B46: 1258 Pine St | D46: 69565 | E46: 2087 | F46: 21778 | G46: 65 | H46: 3.19427863 | I46: 159.2619048 | J46: 33.33253474 | K46: -2.379706294 | L46: 3.19427863 | M46: 72.80087127
A47: 05-18-106-032-0000 | B47: 924 Pine Tree Lane | D47: 115724 | E47: 3516 | F47: 23465 | G47: 51 | H47: 4.931770722 | I47: 179.3452381 | J47: 32.91353811 | K47: -1.092772912 | L47: 4.931770722 | M47: 58.00620976
A48: 05-18-107-014-0000 | B48: 985 Pine Tree Lane | D48: 160363 | E48: 4443 | F48: 21814 | G48: 19 | H48: =D48/F48 -> 7.351379848 | I48: 159.6904762 | J48: =D48/E48 -> 36.09340536 | K48: -10.85962314 | L48: =D48/F48 -> 7.351379848 | M48: 37.40335457
A49: 05-21-311-032-0000 | B49: 187 Forest St | D49: 53447 | E49: 1450 | F49: 6600 | G49: 105 | H49: =D49/F49 -> 8.098030303 | I49: -21.42857143 | J49: =D49/E49 -> 36.86 | K49: -13.21419159 | L49: =D49/F49 -> 8.098030303 | M49: 31.04566189
A50: 05-17-118-065-0000 | B50: 1233 Forest Glen Dr North | D50: 60960 | E50: 1764 | F50: 6576 | G50: 71 | H50: 9.270072993 | I50: -21.71428571 | J50: 34.55782313 | K50: -6.143136423 | L50: 9.270072993 | M50: 21.06577482
A51: 05-18-400-008-0000 | B51: 804 Boal Parkway | D51: 87957 | E51: 2619 | F51: 19800 | G51: 65 | H51: 4.442272727 | I51: 135.7142857 | J51: 33.58419244 | K51: -3.152664058 | L51: 4.442272727 | M51: 62.17426162
A52: 05-21-418-051-0000 | B52: 127 Fuller Lane | D52: 83000 | E52: 3432 | F52: 8910 | G52: 35 | H52: 9.315375982 | I52: 6.071428571 | J52: 24.18414918 | K52: 25.71923768 | L52: 9.315375982 | M52: 20.68002205
A53: 05-21-418-007-0000 | B53: 159 Fuller Lane | D53: 90406 | E53: 2528 | F53: 7575 | G53: 96 | H53: 11.93478548 | I53: -9.821428571 | J53: 35.76186709 | K53: -9.841315031 | L53: 11.93478548 | M53: -1.62412369
A54: 05-18-402-060-0000 | B54: 860 Hibbard Rd | D54: 116466 | E54: 4246 | F54: 19500 | G54: 63 | H54: 5.972615385 | I54: 132.1428571 | J54: 27.42958078 | K54: 15.75100885 | L54: 5.972615385 | M54: 49.14346758
A55: 05-20-300-037-0000 | B55: 355 Hibbard Rd | D55: 57813 | E55: 2899 | F55: 12934 | G55: 56 | H55: 4.469846915 | I55: 53.97619048 | J55: 19.94239393 | K55: 38.74763953 | L55: 4.469846915 | M55: 61.93946874
A56: 05-20-300-061-0000 | B56: 277 Hibbard Rd | D56: 69023 | E56: 3338 | F56: 14904 | G56: 54 | H56: 4.63117284 | I56: 77.42857143 | J56: 20.67795087 | K56: 36.4884023 | L56: 4.63117284 | M56: 60.56578626
A57: 05-17-110-012-0000 | B57: 1025 Hubbard PL | D57: 96603 | E57: 3323 | F57: 10320 | G57: 54 | H57: 9.360755814 | I57: 22.85714286 | J57: 29.07102016 | K57: 10.70938561 | L57: 9.360755814 | M57: 20.29361496
A58: 05-18-218-009-0000 | B58: 1346 Scott Ave | D58: 97724 | E58: 3252 | F58: 7950 | G58: 25 | H58: 12.29232704 | I58: -5.357142857 | J58: 30.0504305 | K58: 7.701161249 | L58: 12.29232704 | M58: -4.668572904
A59: 05-18-212-018-0000 | B59: 1495 Scott Ave | D59: 85671 | E59: 3043 | F59: 5450 | G59: 70 | H59: 15.71944954 | I59: -35.11904762 | J59: 28.15346697 | K59: 13.52761791 | L59: 15.71944954 | M59: -33.85035595
A60: 05-21-109-022-0000 | B60: 520 Maple St | D60: 126516 | E60: 3580 | F60: 13221 | G60: 28 | H60: 9.569321534 | I60: 57.39285714 | J60: 35.3396648 | K60: -8.544535588 | L60: 9.569321534 | M60: 18.5176879
A61: 05-28-201-014-0000 | B61: 51 Warwick Rd | D61: 82568 | E61: 3098 | F61: 9000 | G61: 111 | H61: 9.174222222 | I61: 7.142857143 | J61: 26.65203357 | K61: 18.13921772 | L61: 9.174222222 | M61: 21.88193952
A62: 05-29-102-068-0000 | B62: 65 Woodley Rd | D62: 175125 | E62: 5200 | F62: 52141 | G62: 64 | H62: 3.358681268 | I62: 520.7261905 | J62: 33.67788462 | K62: -3.440436274 | L62: 3.358681268 | M62: 71.40099072
A63: 05-20-305-008-0000 | B63: 311 Rosewood Ave | D63: 66721 | E63: 2546 | F63: 9960 | G63: 78 | H63: 6.698895582 | I63: 18.57142857 | J63: 26.20620581 | K63: 19.50856197 | L63: 6.698895582 | M63: 42.95922667
A64: 05-20-304-029-0000 | B64: 312 Rosewood Ave | D64: 68205 | E64: 2848 | F64: 7367 | G64: 66 | H64: 9.258178363 | I64: -12.29761905 | J64: 23.94838483 | K64: 26.44337959 | L64: 9.258178363 | M64: 21.16705702
A65: 05-18-219-021-0000 | B65: 1275 Asbury Ave | D65: 94805 | E65: 3041 | F65: 7950 | G65: 28 | H65: 11.92515723 | I65: -5.357142857 | J65: 31.17560013 | K65: 4.245242373 | L65: 11.92515723 | M65: -1.54213964
A66: 05-18-217-016-0000 | B66: 1437 Asbury Ave | D66: 69233 | E66: 2860 | F66: 7950 | G66: 19 | H66: 8.708553459 | I66: -5.357142857 | J66: 24.20734266 | K66: 25.64799974 | L66: 8.708553459 | M66: 25.84708661
A67: 05-18-219-015-0000 | B67: 1305 Asbury Ave | D67: 85825 | E67: 2784 | F67: 7950 | G67: 80 | H67: 10.79559748 | I67: -5.357142857 | J67: 30.8279454 | K67: 5.313051628 | L67: 10.79559748 | M67: 8.07600723
A68: 05-20-225-030-0000 | B68: 368 Birch St | D68: 92500 | E68: 3502 | F68: 9350 | G68: 25 | H68: 9.893048128 | I68: =(F68-$F$2)/$F$2*100 -> 11.30952381 | J68: 26.41347801 | K68: =($J$2-J68)/$J$2*100 -> 18.87193271 | L68: 9.893048128 | M68: =($L$2-L68)/$L$2*100 -> 15.76117154
A69: 05-18-221-020-0000 | B69: 1423 Edgewood Ln | D69: 80000 | E69: 3551 | F69: 8050 | G69: 103 | H69: 9.937888199 | I69: -4.166666667 | J69: 22.52886511 | K69: 30.80338441 | L69: 9.937888199 | M69: 15.3793605
A70: 05-29-101-052-0000 | B70: 996 Hill Rd | D70: 116152 | E70: 3650 | F70: 23344 | G70: 61 | H70: 4.975668266 | I70: 177.9047619 | J70: 31.82246575 | K70: 2.258417402 | L70: 4.975668266 | M70: 57.63242429
A71: 05-21-311-033-0000 | B71: 695 Hill Rd | D71: 122816 | E71: 3267 | F71: 8646 | G71: 15 | H71: 14.20495027 | I71: 2.928571429 | J71: 37.59289868 | K71: -15.46526408 | L71: 14.20495027 | M71: -20.95446755
A72: 05-18-216-024-0000 | B72: 980 Greenwood Ave | D72: 81812 | E72: 2578 | F72: 6910 | G72: 13 | H72: 11.83965268 | I72: -17.73809524 | J72: 31.73467804 | K72: 2.528054256 | L72: 11.83965268 | M72: -0.8140724675
A73: 05-17-300-056-0000 | B73: 1160 Chatfield Rd | D73: 100454 | E73: 3225 | F73: 9630 | G73: 55 | H73: 10.43136033 | I73: 14.64285714 | J73: 31.14852713 | K73: 4.328396139 | L73: 10.43136033 | M73: 11.17746904
A74: 05-20-311-025-0000 | B74: 1088 Mt Pleasant Rd | D74: 109296 | E74: 2898 | F74: 18339 | G74: 57 | H74: 5.959757893 | I74: 118.3214286 | J74: 37.71428571 | K74: -15.83810007 | L74: 5.959757893 | M74: 49.2529485
A75: 05-17-200-055-0000 | B75: 889 Private Rd | D75: 83908 | E75: 3149 | F75: 21488 | G75: 61 | H75: 3.904877141 | I75: 155.8095238 | J75: 26.64591934 | K75: 18.15799737 | L75: 3.904877141 | M75: 66.75015917
A76: 05-21-310-016-0000 | B76: 663 Garland Ave | D76: 87272 | E76: 2556 | F76: 7980 | G76: 96 | H76: 10.93634085 | I76: -5 | J76: 34.14397496 | K76: -4.872016352 | L76: 10.93634085 | M76: 6.877584229
A77: 05-21-409-016-0000 | B77: 435 Sunset Rd | D77: 91255 | E77: 2634 | F77: 9500 | G77: 93 | H77: 9.605789474 | I77: 13.0952381 | J77: 34.64502658 | K77: -6.410978737 | L77: 9.605789474 | M77: 18.20716515
A78: 05-21-318-010-0000 | B78: 479 Sunset Rd | D78: 70592 | E78: 2264 | F78: 9570 | G78: 99 | H78: 7.376384535 | I78: 13.92857143 | J78: 31.18021201 | K78: 4.231077139 | L78: 7.376384535 | M78: 37.19044086
A79: 05-20-107-008-0000 | B79: 1016 Spruce St | D79: 84145 | E79: 2904 | F79: 8850 | G79: 120 | H79: 9.507909605 | I79: 5.357142857 | J79: 28.97555096 | K79: 11.00261589 | L79: 9.507909605 | M79: 19.04060752
A80: 05-18-403-046-0000 | B80: 1332 Sunview Lane | D80: 87717 | E80: 2003 | F80: 21755 | G80: 72 | H80: 4.032038612 | I80: 158.9880952 | J80: 43.79281078 | K80: -34.5080757 | L80: 4.032038612 | M80: 65.66738536
A81: 05-20-308-057-0000 | B81: 315 Auburn Ave | D81: 82601 | E81: 3246 | F81: 13900 | G81: 57 | H81: 5.942517986 | I81: 65.47619048 | J81: 25.44701171 | K81: 21.84039993 | L81: 5.942517986 | M81: 49.39974548
A82: 05-20-308-059-0000 | B82: 303 Auburn Ave | D82: 138129 | E82: 3737 | F82: 16100 | G82: 69 | H82: 8.579440994 | I82: 91.66666667 | J82: 36.96253679 | K82: -13.52912974 | L82: 8.579440994 | M82: 26.94647304
A83: 05-20-113-019-0000 | B83: 1091 Cherry St | D83: 64499 | E83: 1350 | F83: 8850 | G83: 69 | H83: =D83/F83 -> 7.288022599 | I83: 5.357142857 | J83: =D83/E83 -> 47.77703704 | K83: -46.74548629 | L83: =D83/F83 -> 7.288022599 | M83: 37.94283849
A84: 05-20-112-024-0000 | B84: 1133 Cherry St | D84: 83210 | E84: 2365 | F84: 9350 | G84: 85 | H84: 8.899465241 | I84: 11.30952381 | J84: 35.18393235 | K84: -8.06620883 | L84: 8.899465241 | M84: 24.22148199
A85: 05-20-112-019-0000 | B85: 1163 Cherry St | D85: 76535 | E85: 2350 | F85: 9350 | G85: 91 | H85: 8.185561497 | I85: 11.30952381 | J85: 32.56808511 | K85: -0.03172617571 | L85: 8.185561497 | M85: 30.30033799
A86: 05-20-111-020-0000 | B86: 1229 Cherry St | D86: 92231 | E86: 2870 | F86: 9350 | G86: 89 | H86: 9.864278075 | I86: 11.30952381 | J86: 32.13623693 | K86: 1.294680274 | L86: 9.864278075 | M86: 16.00614716
A87: 05-20-110-015-0000 | B87: 1037 Oak St | D87: 85416 | E87: 2762 | F87: 8850 | G87: 80 | H87: 9.651525424 | I87: 5.357142857 | J87: 30.92541636 | K87: 5.013673 | L87: 9.651525424 | M87: 17.81772574
A88: 05-21-307-016-0000 | B88: 566 Orchard Lane | D88: 105919 | E88: 3242 | F88: 7631 | G88: 51 | H88: 13.88009435 | I88: -9.154761905 | J88: 32.67088217 | K88: -0.3474637401 | L88: 13.88009435 | M88: -18.18833508
A89: 05-21-305-008-0000 | B89: 475 Orchard Lane | D89: 92714 | E89: 2648 | F89: 8550 | G89: 92 | H89: 10.84374269 | I89: 1.785714286 | J89: 35.01283988 | K89: -7.540704342 | L89: 10.84374269 | M89: 7.666053121
A90: 05-20-120-028-0000 | B90: 371 Berkeley Ave | D90: 78658 | E90: 3067 | F90: 10479 | G90: 63 | H90: 7.506250596 | I90: 24.75 | J90: 25.64656016 | K90: 21.22749389 | L90: 7.506250596 | M90: 36.0846376
A91: 05-17-202-030-0000 | B91: 850 Lamson Dr | D91: 108312 | E91: 5088 | F91: 20080 | G91: 65 | H91: 5.394023904 | I91: 139.047619 | J91: 21.28773585 | K91: 34.61546921 | L91: 5.394023904 | M91: 54.07014618
A92: 05-20-308-054-0000 | B92: 320 Euclid Ave | D92: 93977 | E92: 3773 | F92: 14800 | G92: 55 | H92: 6.349797297 | I92: 76.19047619 | J92: 24.9077657 | K92: 23.49667503 | L92: 6.349797297 | M92: 45.93178176
A93: 05-20-106-019-0000 | B93: 550 Rosewood Ave | D93: 63230 | E93: 1824 | F93: 8850 | G93: 96 | H93: 7.144632768 | I93: 5.357142857 | J93: 34.66557018 | K93: -6.47407768 | L93: 7.144632768 | M93: 39.16379599
A94: 05-20-224-015-0000 | B94: 973 Willow Rd | D94: 58731 | E94: 2714 | F94: 9350 | G94: 106 | H94: 6.281390374 | I94: 11.30952381 | J94: 21.64001474 | K94: 33.53345701 | L94: 6.281390374 | M94: 46.51426341
A95: 05-20-304-023-0000 | B95: 317 Glendale Ave | D95: 59149 | E95: 2513 | F95: 9230 | G95: 70 | H95: 6.408342362 | I95: 9.880952381 | J95: 23.53720653 | K95: 27.70629927 | L95: 6.408342362 | M95: 45.43327335
A96: 05-18-216-001-0000 | B96: 995 Grove St | D96: 62280 | E96: 2693 | F96: 7950 | G96: 62 | H96: 7.833962264 | I96: -5.357142857 | J96: 23.12662458 | K96: 28.96738724 | L96: 7.833962264 | M96: 33.29418853
A97: 05-17-202-016-0000 | B97: 955 Tower Manor Dr | D97: 84115 | E97: 3192 | F97: 8530 | G97: 81 | H97: 9.861078546 | I97: 1.547619048 | J97: 26.35181704 | K97: 19.06132221 | L97: 9.861078546 | M97: 16.03339099
A98: 05-20-116-026-0000 | B98: 1121 Ash St | D98: 76116 | E98: 2162 | F98: 12155 | G98: 96 | H98: 6.262114356 | I98: 44.70238095 | J98: 35.20629047 | K98: -8.134881023 | L98: 6.262114356 | M98: 46.67839778
A99: 05-20-119-030-0000 | B99: 1240 Ash St | D99: 75000 | E99: 2531 | F99: 14025 | G99: 89 | H99: 5.347593583 | I99: 66.96428571 | J99: 29.6325563 | K99: 8.984647142 | L99: 5.347593583 | M99: 54.46549813
A100: 05-21-300-062-0000 | B100: 233 Ridge Ave | D100: 87102 | E100: 3038 | F100: 8052 | G100: 95 | H100: 10.81743666 | I100: =(F100-$F$2)/$F$2*100 -> -4.142857143 | J100: 28.67083608 | K100: =($J$2-J100)/$J$2*100 -> 11.93853694 | L100: 10.81743666 | M100: =($L$2-L100)/$L$2*100 -> 7.890047685
A101: 05-28-200-022-0000 | B101: 38 Abbottsford Rd | D101: 68273 | E101: 2028 | F101: 9000 | G101: 106 | H101: 7.585888889 | I101: 7.142857143 | J101: 33.66518738 | K101: -3.401437153 | L101: 7.585888889 | M101: 35.40652137
A102: 05-17-413-046-0000 | B102: 686 Foxdale Ave | D102: 63450 | E102: 1399 | F102: 7320 | G102: 66 | H102: 8.668032787 | I102: -12.85714286 | J102: 45.35382416 | K102: -39.30267329 | L102: 8.668032787 | M102: 26.19211819
A103: 05-17-414-008-0000 | B103: 719 Foxdale Ave | D103: 56426 | E103: 2070 | F103: 7000 | G103: 96 | H103: 8.060857143 | I103: -16.66666667 | J103: 27.2589372 | K103: 16.27513461 | L103: 8.060857143 | M103: 31.36218956
A104: 05-21-418-017-0000 | B104: 200 Sheridan Rd | D104: 88379 | E104: 2754 | F104: 9120 | G104: 71 | H104: 9.690679825 | I104: 8.571428571 | J104: 32.09114016 | K104: 1.433193427 | L104: 9.690679825 | M104: 17.4843279
A105: 05-21-403-005-0000 | B105: 331 Sheridan Rd | D105: 134601 | E105: 3818 | F105: 12946 | G105: 70 | H105: 10.39711108 | I105: 54.11904762 | J105: 35.25432163 | K105: -8.282407047 | L105: 10.39711108 | M105: 11.4690998

Sheet Sheet9
A1: PIN | B1: Address | C1: Distance from this property | D1: Total Assessment | E1: Bldg SqFt | F1: Land SqFt | G1: Age | H1: $ Assessed Per Sq Ft of Land | I1: % more land vs subject prop | J1: $ Assessed Per Sq Ft of Bldg | K1: % diff | L1: $ Assessed Per Sq Ft of Land | M1: % diff
A2: 05-21-201-033-0000 | B2: 380 Sheridan Rd | C2: 1.2 miles | D2: 110478 | E2: 3166 | F2: 12375 | G2: 41 | H2: =D2/F2 -> 8.927515152 | I2: =(F2-$F$2)/$F$2*100 -> 0 | J2: =D2/E2 -> 34.89513582 | K2: =($J$2-J2)/$J$2*100 -> 0 | L2: =D2/F2 -> 8.927515152 | M2: =($L$2-L2)/$L$2*100 -> 0
A3: 05-17-404-015-0000 | B3: 860 Sheridan Rd | C3: 151 feet | D3: 106288 | E3: 2973 | F3: 9300 | G3: 57 | H3: 11.4288172 | I3: -24.84848485 | J3: 35.75109317 | K3: -2.452941746 | L3: 11.4288172 | M3: -28.01789759 | N3: not really
A4: 05-17-404-032-0000 | B4: 850 Sheridan Rd | D4: 103756 | E4: 2982 | F4: 14560 | G4: 42 | H4: 7.126098901 | I4: 17.65656566 | J4: 34.79409792 | K4: 0.2895472244 | L4: 7.126098901 | M4: 20.17824915
A5: 05-17-404-031-0000 | B5: 840 Sheridan Rd | D5: 119853 | E5: 3571 | F5: 14560 | G5: 41 | H5: 8.231662088 | I5: 17.65656566 | J5: 33.56286754 | K5: 3.817919726 | L5: 8.231662088 | M5: 7.794476423
A6: 05-21-418-049-0000 | B6: 130 Sheridan Rd | D6: 65318 | E6: 2132 | F6: 9939 | G6: 51 | H6: 6.57188852 | I6: -19.68484848 | J6: 30.6369606 | K6: 12.20277588 | L6: 6.57188852 | M6: 26.38613983
A7: 05-17-404-005-0000 | B7: 790 Tower Rd | D7: 79024 | E7: 2222 | F7: 7500 | G7: 63 | H7: 10.53653333 | I7: -39.39393939 | J7: 35.56435644 | K7: -1.91780488 | L7: 10.53653333 | M7: -18.02313583 | N7: maybe
A8: 05-17-404-024-0000 | B8: 800 Tower Rd | D8: 81569 | E8: 2637 | F8: 7280 | G8: 64 | H8: 11.20453297 | I8: -41.17171717 | J8: 30.93249905 | K8: 11.35584279 | L8: 11.20453297 | M8: -25.50561693
A9: 05-17-404-029-0000 | B9: 804 Tower Rd | D9: 85148 | E9: 2800 | F9: 7560 | G9: 27 | H9: 11.26296296 | I9: -38.90909091 | J9: 30.41 | K9: 12.85318344 | L9: 11.26296296 | M9: -26.16011031
A10: 05-17-403-032-0000 | B10: 840 Tower Rd | D10: 171157 | E10: 3818 | F10: 15067 | G10: 12 | H10: 11.35972655 | I10: 21.75353535 | J10: 44.82896805 | K10: -28.46767034 | L10: 11.35972655 | M10: -27.24399076
A11: 05-17-402-025-0000 | B11: 870 Prospect Ave | D11: 108459 | E11: 2861 | F11: 12975 | G11: 56 | H11: 8.359075145 | I11: 4.848484848 | J11: 37.90947221 | K11: -8.63827099 | L11: 8.359075145 | M11: 6.367281347
A12: 05-18-106-018-0000 | B12: 1565 Tower Rd | D12: 72527 | E12: 2627 | F12: 23353 | G12: 59 | H12: 3.105682353 | I12: 88.71111111 | J12: 27.60829844 | K12: 20.88210064 | L12: 3.105682353 | M12: 65.21224214
A13: 05-18-402-072-0000 | B13: 1284 Trapp Lane | D13: 98621 | E13: 3029 | F13: 28084 | G13: 60 | H13: 3.511643641 | I13: 126.9414141 | J13: 32.55893034 | K13: 6.694931609 | L13: 3.511643641 | M13: 60.66493777
A14: 05-18-402-050-0000 | B14: 1339 Trapp Lane | D14: 116418 | E14: 4183 | F14: 21000 | G14: 64 | H14: 5.543714286 | I14: 69.6969697 | J14: 27.83122161 | K14: 20.24326325 | L14: 5.543714286 | M14: 37.90305374
A15: 05-21-202-017-0000 | B15: 359 Sheridan Rd | D15: 143612 | E15: 3493 | F15: 17600 | G15: 53 | H15: 8.159772727 | I15: 42.22222222 | J15: 41.11422846 | K15: -17.82223365 | L15: 8.159772727 | M15: 8.599732526
A16: 05-18-106-032-0000 | B16: 924 Pine Tree Lane | D16: 115724 | E16: 3516 | F16: 23465 | G16: 51 | H16: 4.931770722 | I16: 89.61616162 | J16: 32.91353811 | K16: 5.678721862 | L16: 4.931770722 | M16: 44.75763257
A17: 05-18-107-014-0000 | B17: 985 Pine Tree Lane | D17: 160363 | E17: 4443 | F17: 21814 | G17: 19 | H17: =D17/F17 -> 7.351379848 | I17: 76.27474747 | J17: =D17/E17 -> 36.09340536 | K17: -3.433915675 | L17: =D17/F17 -> 7.351379848 | M17: 17.65480402
A18: 05-21-418-051-0000 | B18: 127 Fuller Lane | D18: 83000 | E18: 3432 | F18: 8910 | G18: 35 | H18: =D18/F18 -> 9.315375982 | I18: -28 | J18: =D18/E18 -> 24.18414918 | K18: 30.6947842 | L18: =D18/F18 -> 9.315375982 | M18: -4.344555276
A19: 05-18-402-060-0000 | B19: 860 Hibbard Rd | D19: 116466 | E19: 4246 | F19: 19500 | G19: 63 | H19: 5.972615385 | I19: 57.57575758 | J19: 27.42958078 | K19: 21.394257 | L19: 5.972615385 | M19: 33.09879308
A20: 05-20-300-037-0000 | B20: 355 Hibbard Rd | D20: 57813 | E20: 2899 | F20: 12934 | G20: 56 | H20: 4.469846915 | I20: 4.517171717 | J20: 19.94239393 | K20: 42.85050492 | L20: 4.469846915 | M20: 49.93179133
A21: 05-20-300-061-0000 | B21: 277 Hibbard Rd | D21: 69023 | E21: 3338 | F21: 14904 | G21: 54 | H21: 4.63117284 | I21: 20.43636364 | J21: 20.67795087 | K21: 40.74259812 | L21: 4.63117284 | M21: 48.1247272
A22: 05-21-109-022-0000 | B22: 520 Maple St | D22: 126516 | E22: 3580 | F22: 13221 | G22: 28 | H22: 9.569321534 | I22: 6.836363636 | J22: 35.3396648 | K22: -1.273899574 | L22: 9.569321534 | M22: -7.189081973
A23: 05-29-102-068-0000 | B23: 65 Woodley Rd | D23: 175125 | E23: 5200 | F23: 52141 | G23: 64 | H23: 3.358681268 | I23: 321.3414141 | J23: 33.67788462 | K23: 3.488311979 | L23: 3.358681268 | M23: 62.37831904
A24: 05-29-301-001-0000 | B24: 130 Woodley Rd | D24: 198316 | E24: 4249 | F24: 49789 | G24: 23 | H24: 3.983128804 | I24: 302.3353535 | J24: 46.67357025 | K24: -33.75380023 | L24: 3.983128804 | M24: 55.38367915
A25: 05-18-217-016-0000 | B25: 1437 Asbury Ave | D25: 69233 | E25: 2860 | F25: 7950 | G25: 19 | H25: 8.708553459 | I25: -35.75757576 | J25: 24.20734266 | K25: 30.62831799 | L25: 8.708553459 | M25: 2.452661112
A26: 05-20-225-030-0000 | B26: 368 Birch St | D26: 92500 | E26: 3502 | F26: 9350 | G26: 25 | H26: 9.893048128 | I26: -24.44444444 | J26: 26.41347801 | K26: 24.30613209 | L26: 9.893048128 | M26: -10.81524882
A27: 05-29-101-052-0000 | B27: 996 Hill Rd | D27: 116152 | E27: 3650 | F27: 23344 | G27: 61 | H27: 4.975668266 | I27: 88.63838384 | J27: 31.82246575 | K27: 8.805439476 | L27: 4.975668266 | M27: 44.26592191
A28: 05-17-300-056-0000 | B28: 1160 Chatfield Rd | D28: 100454 | E28: 3225 | F28: 9630 | G28: 55 | H28: 10.43136033 | I28: -22.18181818 | J28: 31.14852713 | K28: 10.73676488 | L28: 10.43136033 | M28: -16.84505885
A29: 05-20-311-025-0000 | B29: 1088 Mt Pleasant Rd | D29: 109296 | E29: 2898 | F29: 18339 | G29: 57 | H29: 5.959757893 | I29: 48.19393939 | J29: 37.71428571 | K29: -8.078919397 | L29: 5.959757893 | M29: 33.24281402
A30: 05-17-200-055-0000 | B30: 889 Private Rd | D30: 83908 | E30: 3149 | F30: 21488 | G30: 61 | H30: 3.904877141 | I30: 73.64040404 | J30: 26.64591934 | K30: 23.64001826 | L30: 3.904877141 | M30: 56.26020147
A31: 05-20-308-057-0000 | B31: 315 Auburn Ave | D31: 82601 | E31: 3246 | F31: 13900 | G31: 57 | H31: 5.942517986 | I31: 12.32323232 | J31: 25.44701171 | K31: 27.07576254 | L31: 5.942517986 | M31: 33.43592383
A32: 05-20-120-028-0000 | B32: 371 Berkeley Ave | D32: 78658 | E32: 3067 | F32: 10479 | G32: 63 | H32: 7.506250596 | I32: -15.32121212 | J32: 25.64656016 | K32: 26.50391077 | L32: 7.506250596 | M32: 15.92004641
A33: 05-20-308-054-0000 | B33: 320 Euclid Ave | D33: 93977 | E33: 3773 | F33: 14800 | G33: 55 | H33: 6.349797297 | I33: 19.5959596 | J33: 24.9077657 | K33: 28.62109541 | L33: 6.349797297 | M33: 28.87385583
A34: 05-18-216-001-0000 | B34: 995 Grove St | D34: 62280 | E34: 2693 | F34: 7950 | G34: 62 | H34: 7.833962264 | I34: -35.75757576 | J34: 23.12662458 | K34: 33.72536303 | L34: 7.833962264 | M34: 12.24924146

Sheet Sheet8_old1
A1: PIN | B1: Address | C1: Distance from this property | D1: Total Assessment | E1: Bldg SqFt | F1: Land SqFt | G1: Age | H1: $ Assessed Per Sq Ft of Land | I1: % more land vs subject prop | J1: $ Assessed Per Sq Ft of Bldg | K1: % diff | L1: $ Assessed Per Sq Ft of Land | M1: % diff
A2: 05-21-418-049-0000 | B2: 130 Sheridan Rd | D2: 52785 | E2: 2132 | F2: 9939 | G2: 51 | H2: =D2/F2 -> 5.310896468 | I2: =(F2-$F$2)/$F$2*100 -> 0 | J2: =D2/E2 -> 24.75844278 | K2: =($J$2-J2)/$J$2*100 -> 0 | L2: =D2/F2 -> 5.310896468 | M2: =($L$2-L2)/$L$2*100 -> 0
A3: 05-17-404-013-0000 | B3: 874 Sheridan Rd | C3: 0 | D3: 80409 | E3: 3030 | F3: 8400 | G3: 63 | H3: 9.57 | I3: N/A | J3: 26.54 | L3: =D3/F3 -> 9.5725
A4: 05-18-217-016-0000 | B4: 1437 Asbury Ave | D4: 63694 | E4: 2860 | F4: 7950 | G4: 19 | H4: =D4/F4 -> 8.011823899 | I4: =(F4-$F$2)/$F$2*100 -> -20.01207365 | J4: =D4/E4 -> 22.27062937 | K4: =($J$2-J4)/$J$2*100 -> 10.04834362 | L4: =D4/F4 -> 8.011823899 | M4: =($L$2-L4)/$L$2*100 -> -50.85633747
A5: 05-20-308-057-0000 | B5: 315 Auburn Ave | D5: 61655 | E5: 3246 | F5: 13900 | G5: 57 | H5: 4.435611511 | I5: 39.85310393 | J5: 18.99414664 | K5: 23.28214333 | L5: 4.435611511 | M5: 16.48092677
A6: 05-20-308-051-0000 | B6: 345 Auburn Ave | D6: 49703 | E6: 2565 | F6: 10495 | G6: 58 | H6: 4.735874226 | I6: 5.594124157 | J6: 19.37738791 | K6: 21.73422178 | L6: 4.735874226 | M6: 10.8272162
A7: 05-20-120-028-0000 | B7: 371 Berkeley Ave | D7: 67817 | E7: 3067 | F7: 10479 | G7: 63 | H7: 6.471705315 | I7: 5.433142167 | J7: 22.11183567 | K7: 10.68971555 | L7: 6.471705315 | M7: -21.85711685
A8: 05-20-225-030-0000 | B8: 368 Birch St | D8: 85100 | E8: 3502 | F8: 9350 | G8: 25 | H8: 9.101604278 | I8: -5.926149512 | J8: 24.30039977 | K8: 1.850047716 | L8: 9.101604278 | M8: -71.37604418
A9: 05-20-308-054-0000 | B9: 320 Euclid Ave | D9: 81526 | E9: 3773 | F9: 14800 | G9: 55 | H9: 5.508513514 | I9: 48.90834088 | J9: 21.6077392 | K9: 12.72577442 | L9: 5.508513514 | M9: -3.720973403
A10: 05-21-418-051-0000 | B10: 127 Fuller Lane | D10: 76360 | E10: 3432 | F10: 8910 | G10: 35 | H10: 8.570145903 | I10: -10.35315424 | J10: 22.24941725 | K10: 10.13401994 | L10: 8.570145903 | M10: -61.36910133
A11: 05-18-216-001-0000 | B11: 995 Grove St | D11: 56052 | E11: 2693 | F11: 7950 | G11: 62 | H11: 7.050566038 | I11: -20.01207365 | J11: 20.81396212 | K11: 15.93186085 | L11: 7.050566038 | M11: -32.7566086
A12: 05-18-402-060-0000 | B12: 860 Hibbard Rd | D12: 100501 | E12: 4246 | F12: 19500 | G12: 63 | H12: 5.153897436 | I12: 96.19680048 | J12: 23.66957136 | K12: 4.397980217 | L12: 5.153897436 | M12: 2.9561682
A13: 05-20-300-037-0000 | B13: 355 Hibbard Rd | D13: 53188 | E13: 2899 | F13: 12934 | G13: 56 | H13: 4.112262255 | I13: 30.13381628 | J13: 18.34701621 | K13: 25.89592012 | L13: 4.112262255 | M13: 22.56933874
A14: 05-20-300-061-0000 | B14: 277 Hibbard Rd | D14: 63501 | E14: 3338 | F14: 14904 | G14: 54 | H14: 4.260668277 | I14: 49.95472382 | J14: 19.02366687 | K14: 23.16291037 | L14: 4.260668277 | M14: 19.77497015
A15: 05-20-300-044-0000 | B15: 319 Hibbard Rd | D15: 87440 | E15: 3862 | F15: 17125 | G15: 67 | H15: 5.105985401 | I15: 72.30103632 | J15: 22.64111859 | K15: 8.55192794 | L15: 5.105985401 | M15: 3.858314095
A16: 05-20-410-003-0000 | B16: 201 Linden St | D16: 82500 | E16: 4217 | F16: 18700 | G16: 48 | H16: 4.411764706 | I16: 88.14770098 | J16: 19.56367086 | K16: 20.98182009 | L16: 4.411764706 | M16: 16.92994333
A17: 05-20-315-009-0000 | B17: 1210 Lindenwood Dr | D17: 79120 | E17: 3841 | F17: 21645 | G17: 64 | H17: 3.655347655 | I17: 117.7784485 | J17: 20.5988024 | K17: 16.80089664 | L17: 3.655347655 | M17: 31.17268098
A18: 05-17-117-007-0000 | B18: 960 Old Green Bay Rd | D18: 64978 | E18: 2941 | F18: 13352 | G18: 60 | H18: 4.866536848 | I18: 34.33947077 | J18: 22.09384563 | K18: 10.76237779 | L18: 4.866536848 | M18: 8.366941865
A19: 05-17-200-055-0000 | B19: 889 Private Rd | D19: 65309 | E19: 3149 | F19: 21488 | G19: 61 | H19: 3.039324274 | I19: 116.1988128 | J19: 20.73959987 | K19: 16.23221194 | L19: 3.039324274 | M19: 42.77191634
A20: 05-20-100-010-0000 | B20: 1225 Spruce St | D20: 94309 | E20: 3883 | F20: 21776 | G20: 65 | H20: 4.330868846 | I20: 119.0964886 | J20: 24.28766418 | K20: 1.901487116 | L20: 4.330868846 | M20: 18.45314869
A21: 05-20-308-069-0000 | B21: 1220 Sunset Rd | D21: 74841 | E21: 3276 | F21: 12693 | G21: 49 | H21: 5.896242023 | I21: 27.70902505 | J21: 22.8452381 | K21: 7.727483908 | L21: 5.896242023 | M21: -11.02159604
A22: 05-18-106-019-0000 | B22: 1555 Tower Rd | D22: 58880 | E22: 2581 | F22: 23353 | G22: 59 | H22: 2.521303473 | I22: 134.963276 | J22: 22.81286323 | K22: 7.858246833 | L22: 2.521303473 | M22: 52.52584027
A23: 05-18-106-018-0000 | B23: 1565 Tower Rd | D23: 66724 | E23: 2627 | F23: 23353 | G23: 59 | H23: 2.857191795 | I23: 134.963276 | J23: 25.39931481 | K23: -2.588498949 | L23: 2.857191795 | M23: 46.20132755
A24: 05-18-402-050-0000 | B24: 1339 Trapp Lane | D24: 107104 | E24: 4183 | F24: 21000 | G24: 64 | H24: 5.100190476 | I24: 111.2888621 | J24: 25.60459001 | K24: -3.417610865 | L24: 5.100190476 | M24: 3.967427976

Sheet Sheet4
A1: PIN | B1: Address | C1: Distance from this property | D1: Total Assessment | E1: Bldg SqFt | F1: Land SqFt | G1: Age | H1: $ Assessed Per Sq Ft of Land | I1: % more land vs subject prop | J1: $ Assessed Per Sq Ft of Bldg | K1: % diff | L1: $ Assessed Per Sq Ft of Land | M1: % diff
A2: 05-17-404-013-0000 | B2: 874 Sheridan Rd | C2: 0 | D2: 98650 | E2: 3030 | F2: 8400 | G2: 63 | H2: 11.74404762 | I2: N/A | J2: 32.55775578 | L2: 11.74404762
A3: 05-21-418-049-0000 | B3: 130 Sheridan Rd | C3: 1.8 miles | D3: 65318 | E3: 2132 | F3: 9939 | G3: 51 | H3: 6.57188852 | I3: 18.32142857 | J3: 30.6369606 | K3: 5.89965472 | L3: 6.57188852 | M3: 44.04068569
A4: 05-18-106-018-0000 | B4: 1565 Tower Rd | C4: 1.8 miles | D4: 72527 | E4: 2627 | F4: 23353 | G4: 59 | H4: 3.105682353 | I4: 178.0119048 | J4: 27.60829844 | K4: 15.20208386 | L4: 3.105682353 | M4: 73.5552643
A5: 05-21-418-051-0000 | B5: 127 Fuller Lane | C5: 1.8 miles | D5: 83000 | E5: 3432 | F5: 8910 | G5: 35 | H5: 9.315375982 | I5: 6.071428571 | J5: 24.18414918 | K5: 25.71923768 | L5: 9.315375982 | M5: 20.68002205
A6: 05-18-402-060-0000 | B6: 860 Hibbard Rd | C6: 1.2 miles | D6: 116466 | E6: 4246 | F6: 19500 | G6: 63 | H6: 5.972615385 | I6: 132.1428571 | J6: 27.42958078 | K6: 15.75100885 | L6: 5.972615385 | M6: 49.14346758
A7: 05-20-300-037-0000 | B7: 355 Hibbard Rd | C7: 2.2 miles | D7: 57813 | E7: 2899 | F7: 12934 | G7: 56 | H7: 4.469846915 | I7: 53.97619048 | J7: 19.94239393 | K7: 38.74763953 | L7: 4.469846915 | M7: 61.93946874
A8: 05-20-300-061-0000 | B8: 277 Hibbard Rd | C8: 2.3 miles | D8: 69023 | E8: 3338 | F8: 14904 | G8: 54 | H8: 4.63117284 | I8: 77.42857143 | J8: 20.67795087 | K8: 36.4884023 | L8: 4.63117284 | M8: 60.56578626
A9: 05-18-217-016-0000 | B9: 1437 Asbury Ave | C9: 1.8 miles | D9: 69233 | E9: 2860 | F9: 7950 | G9: 19 | H9: 8.708553459 | I9: -5.357142857 | J9: 24.20734266 | K9: 25.64799974 | L9: 8.708553459 | M9: 25.84708661
A10: 05-20-225-030-0000 | B10: 368 Birch St | C10: 1.4 miles | D10: 92500 | E10: 3502 | F10: 9350 | G10: 25 | H10: 9.893048128 | I10: 11.30952381 | J10: 26.41347801 | K10: 18.87193271 | L10: 9.893048128 | M10: 15.76117154
A11: 05-17-300-056-0000 | B11: 1160 Chatfield Rd | C11: 1.1 miles | D11: 100454 | E11: 3225 | F11: 9630 | G11: 55 | H11: 10.43136033 | I11: 14.64285714 | J11: 31.14852713 | K11: 4.328396139 | L11: 10.43136033 | M11: 11.17746904
A12: 05-17-200-055-0000 | B12: 889 Private Rd | C12: 0.3 mile | D12: 83908 | E12: 3149 | F12: 21488 | G12: 61 | H12: 3.904877141 | I12: 155.8095238 | J12: 26.64591934 | K12: 18.15799737 | L12: 3.904877141 | M12: 66.75015917
A13: 05-20-308-069-0000 | B13: 1220 Sunset Rd | C13: 2.3 miles | D13: 81349 | E13: 3276 | F13: 12693 | G13: 49 | H13: 6.408965572 | I13: 51.10714286 | J13: 24.83180708 | K13: 23.72997926 | L13: 6.408965572 | M13: 45.42796675
A14: 05-20-308-057-0000 | B14: 315 Auburn Ave | C14: 2.2 miles | D14: 82601 | E14: 3246 | F14: 13900 | G14: 57 | H14: 5.942517986 | I14: 65.47619048 | J14: 25.44701171 | K14: 21.84039993 | L14: 5.942517986 | M14: 49.39974548
A15: 05-20-120-028-0000 | B15: 371 Berkeley Ave | C15: 2 miles | D15: 78658 | E15: 3067 | F15: 10479 | G15: 63 | H15: 7.506250596 | I15: 24.75 | J15: 25.64656016 | K15: 21.22749389 | L15: 7.506250596 | M15: 36.0846376
A16: 05-20-308-054-0000 | B16: 320 Euclid Ave | C16: 2.1 miles | D16: 93977 | E16: 3773 | F16: 14800 | G16: 55 | H16: 6.349797297 | I16: 76.19047619 | J16: 24.9077657 | K16: 23.49667503 | L16: 6.349797297 | M16: 45.93178176
A17: 05-18-216-001-0000 | B17: 995 Grove St | C17: 1.9 miles | D17: 62280 | E17: 2693 | F17: 7950 | G17: 62 | H17: 7.833962264 | I17: -5.357142857 | J17: 23.12662458 | K17: 28.96738724 | L17: 7.833962264 | M17: 33.29418853
A23: 05-18-402-072-0000 | B23: 1284 Trapp Lane | D23: 98621 | E23: 3029 | F23: 28084 | G23: 60 | H23: 3.511643641 | I23: 234.3333333 | J23: 32.55893034 | K23: -0.003607633391 | L23: 3.511643641 | M23: 70.09852349
A25: 05-17-404-029-0000 | B25: 804 Tower Rd | D25: 85148 | E25: 2800 | F25: 7560 | G25: 27 | H25: 11.26296296 | I25: -10 | J25: 30.41 | K25: 6.596756209 | L25: 11.26296296 | M25: 4.096412682

Sheet Sheet8
A1: PIN | B1: Address | C1: Distance from this property | D1: Total Assessment | E1: Bldg SqFt | F1: Land SqFt | G1: Age | H1: $ Assessed Per Sq Ft of Land | I1: % more land vs subject prop | J1: $ Assessed Per Sq Ft of Bldg | K1: % diff | L1: $ Assessed Per Sq Ft of Land | M1: % diff | N1: %diffAbs | Q1: PIN | R1: Address | S1: Total Assessment | T1: Bldg SqFt | U1: Land SqFt | V1: Age | W1: $ Assessed Per Sq Ft of Land | X1: %diffAbs | Y1: % more land vs subject prop | Z1: $ Assessed Per Sq Ft of Bldg | AA1: % diff | AB1: $ Assessed Per Sq Ft of Land | AC1: % diff | AD1: %diffAbs
A2: 05-17-404-013-0000 | B2: 874 Sheridan Rd | C2: 0 | D2: 80409 | E2: 3030 | F2: 8398 | G2: 63 | H2: =D2/F2 -> 9.574779709 | I2: N/A | J2: =D2/E2 -> 26.53762376 | L2: =D2/F2 -> 9.574779709 | Q2: 05-17-404-013-0000 | R2: 874 Sheridan Rd | S2: 80409 | T2: 3030 | U2: 8398 | V2: 63 | W2: =S2/U2 -> 9.574779709 | Y2: N/A | Z2: =S2/T2 -> 26.53762376 | AB2: =S2/U2 -> 9.574779709
A3: 05-21-418-049-0000 | B3: 130 Sheridan Rd | D3: 52786 | E3: 2132 | F3: 9940 | G3: 53 | H3: =D3/F3 -> 5.310462777 | I3: =(F3-$F$3)/$F$3*100 -> 0 | J3: =D3/E3 -> 24.75891182 | K3: =($J$3-J3)/$J$3*100 -> 0 | L3: =D3/F3 -> 5.310462777 | M3: =($L$3-L3)/$L$3*100 -> 0 | N3: 44.53697173 | P3: 1 | Q3: 05-18-106-019-0000 | R3: 1555 Tower Rd | S3: 58880 | T3: 2581 | U3: 23353 | V3: 61 | W3: =S3/U3 -> 2.521303473 | X3: 73.66724301 | Y3: =(U3-$F$3)/$F$3*100 -> 134.9396378 | Z3: =S3/T3 -> 22.81286323 | AA3: =($J$3-Z3)/$J$3*100 -> 7.859992405 | AB3: =S3/U3 -> 2.521303473 | AC3: =($L$3-AB3)/$L$3*100 -> 52.52196317 | AD3: 73.66724301
A4: 05-18-217-016-0000 | B4: 1437 Asbury Ave | D4: 63694 | E4: 2860 | F4: 7950 | G4: 21 | H4: 8.011823899 | I4: -20.02012072 | J4: 22.27062937 | K4: 10.05004771 | L4: 8.011823899 | M4: -50.86865752 | N4: 16.32367383 | P4: 2 | Q4: 05-18-106-018-0000 | R4: 1565 Tower Rd | S4: 66725 | T4: 2627 | U4: 23353 | V4: 61 | W4: =S4/U4 -> 2.857234617 | X4: 70.15874304 | Y4: =(U4-$F$3)/$F$3*100 -> 134.9396378 | Z4: =S4/T4 -> 25.39969547 | AA4: =($J$3-Z4)/$J$3*100 -> -2.588092946 | AB4: =S4/U4 -> 2.857234617 | AC4: =($L$3-AB4)/$L$3*100 -> 46.19612759 | AD4: 70.15874304
A5: 05-20-308-057-0000 | B5: 315 Auburn Ave | D5: 61656 | E5: 3246 | F5: 13900 | G5: 57 | H5: 4.435683453 | I5: 39.83903421 | J5: 18.99445471 | K5: 23.28235242 | L5: 4.435683453 | M5: 16.47275125 | N5: 53.67325842 | P5: 3 | Q5: 05-17-200-055-0000 | R5: 889 Private Rd | S5: 65310 | T5: 3149 | U5: 21488 | V5: 61 | W5: =S5/U5 -> 3.039370812 | X5: 68.25649358 | Y5: =(U5-$F$3)/$F$3*100 -> 116.1770624 | Z5: =S5/T5 -> 20.73991743 | AA5: =($J$3-Z5)/$J$3*100 -> 16.23251626 | AB5: =S5/U5 -> 3.039370812 | AC5: =($L$3-AB5)/$L$3*100 -> 42.76636633 | AD5: 68.25649358
A6: 05-20-308-051-0000 | B6: 345 Auburn Ave | D6: 49704 | E6: 2565 | F6: 10494 | G6: 60 | H6: 4.736420812 | I6: 5.573440644 | J6: 19.37777778 | K6: 21.73412984 | L6: 4.736420812 | M6: 10.80964106 | N6: 50.53232601 | P6: 4 | Q6: 05-20-315-009-0000 | R6: 1210 Lindenwood Dr | S6: 79121 | T6: 3841 | U6: 21645 | V6: 66 | W6: =S6/U6 -> 3.655393855 | X6: 61.82268453 | Y6: =(U6-$F$3)/$F$3*100 -> 117.7565392 | Z6: =S6/T6 -> 20.59906274 | AA6: =($J$3-Z6)/$J$3*100 -> 16.80142127 | AB6: =S6/U6 -> 3.655393855 | AC6: =($L$3-AB6)/$L$3*100 -> 31.16619005 | AD6: 61.82268453
A7: 05-20-120-028-0000 | B7: 371 Berkeley Ave | D7: 67818 | E7: 3067 | F7: 10481 | G7: 65 | H7: 6.470565786 | I7: 5.442655936 | J7: 22.11216172 | K7: 10.69009057 | L7: 6.470565786 | M7: -21.84561041 | N7: 32.42073466 | P7: 5 | Q7: 05-18-402-061-0000 | R7: 1383 Westmoor Trl | S7: 78020 | T7: 3075 | U7: 20996 | V7: 64 | W7: =S7/U7 -> 3.715945894 | X7: 61.1902727 | Y7: =(U7-$F$3)/$F$3*100 -> 111.2273642 | Z7: =S7/T7 -> 25.37235772 | AA7: =($J$3-Z7)/$J$3*100 -> -2.477677162 | AB7: =S7/U7 -> 3.715945894 | AC7: =($L$3-AB7)/$L$3*100 -> 30.0259497 | AD7: 61.1902727
A8: 05-20-225-030-0000 | B8: 368 Birch St | D8: 85100 | E8: 3502 | F8: 9348 | G8: 27 | H8: 9.103551562 | I8: -5.955734406 | J8: 24.30039977 | K8: 1.85190711 | L8: 9.103551562 | M8: -71.42670883 | N8: 4.921556024 | P8: 6 | Q8: 05-20-300-037-0000 | R8: 355 Hibbard Rd | S8: 53188 | T8: 2899 | U8: 12933 | V8: 58 | W8: =S8/U8 -> 4.112580221 | X8: 57.04778234 | Y8: =(U8-$F$3)/$F$3*100 -> 30.11066398 | Z8: =S8/T8 -> 18.34701621 | AA8: =($J$3-Z8)/$J$3*100 -> 25.89732398 | AB8: =S8/U8 -> 4.112580221 | AC8: =($L$3-AB8)/$L$3*100 -> 22.55702762 | AD8: 57.04778234
A9: 05-20-308-060-0000 | B9: 290 Euclid Ave | D9: 66233 | E9: 2637 | F9: 14340 | G9: 60 | H9: 4.618758717 | I9: 44.26559356 | J9: 25.11679939 | K9: -1.445489915 | L9: 4.618758717 | M9: 13.02530662 | N9: 51.76120123 | P9: 7 | Q9: 05-20-300-061-0000 | R9: 277 Hibbard Rd | S9: 63501 | T9: 3338 | U9: 14902 | V9: 56 | W9: =S9/U9 -> 4.261240102 | X9: 55.49516301 | Y9: =(U9-$F$3)/$F$3*100 -> 49.9195171 | Z9: =S9/T9 -> 19.02366687 | AA9: =($J$3-Z9)/$J$3*100 -> 23.16436601 | AB9: =S9/U9 -> 4.261240102 | AC9: =($L$3-AB9)/$L$3*100 -> 19.75765049 | AD9: 55.49516301
A10: 05-20-308-054-0000 | B10: 320 Euclid Ave | D10: 81526 | E10: 3773 | F10: 14802 | G10: 57 | H10: 5.50776922 | I10: 48.91348089 | J10: 21.6077392 | K10: 12.72742778 | L10: 5.50776922 | M10: -3.715428429 | N10: 42.47628261 | P10: 8 | Q10: 05-20-313-016-0000 | R10: 1240 Sunset Rd | S10: 59002 | T10: 2501 | U10: 13499 | V10: 59 | W10: =S10/U10 -> 4.370842285 | X10: 54.35046636 | Y10: =(U10-$F$3)/$F$3*100 -> 35.80482897 | Z10: =S10/T10 -> 23.59136345 | AA10: =($J$3-Z10)/$J$3*100 -> 4.715669145 | AB10: =S10/U10 -> 4.370842285 | AC10: =($L$3-AB10)/$L$3*100 -> 17.69375912 | AD10: 54.35046636
A11: 05-21-418-051-0000 | B11: 127 Fuller Lane | D11: 76361 | E11: 3432 | F11: 8908 | G11: 37 | H11: 8.572182308 | I11: -10.38229376 | J11: 22.24970862 | K11: 10.13454555 | L11: 8.572182308 | M11: -61.42062695 | N11: 10.47123205 | P11: 9 | Q11: 05-20-410-003-0000 | R11: 201 Linden St | S11: 82500 | T11: 4217 | U11: 18700 | V11: 48 | W11: =S11/U11 -> 4.411764706 | X11: 53.92306831 | Y11: =(U11-$F$3)/$F$3*100 -> 88.12877264 | Z11: =S11/T11 -> 19.56367086 | AA11: =($J$3-Z11)/$J$3*100 -> 20.98331704 | AB11: =S11/U11 -> 4.411764706 | AC11: =($L$3-AB11)/$L$3*100 -> 16.92315922 | AD11: 53.92306831
A12: 05-18-216-001-0000 | B12: 995 Grove St | D12: 56052 | E12: 2693 | F12: 7950 | G12: 63 | H12: 7.050566038 | I12: -20.02012072 | J12: 20.81396212 | K12: 15.93345348 | L12: 7.050566038 | M12: -32.76745049 | N12: 26.36315141 | P12: 10 | Q12: 05-20-308-057-0000 | R12: 315 Auburn Ave | S12: 61656 | T12: 3246 | U12: 13900 | V12: 57 | W12: =S12/U12 -> 4.435683453 | X12: 53.67325842 | Y12: =(U12-$F$3)/$F$3*100 -> 39.83903421 | Z12: =S12/T12 -> 18.99445471 | AA12: =($J$3-Z12)/$J$3*100 -> 23.28235242 | AB12: =S12/U12 -> 4.435683453 | AC12: =($L$3-AB12)/$L$3*100 -> 16.47275125 | AD12: 53.67325842
A13: 05-18-402-060-0000 | B13: 860 Hibbard Rd | D13: 100502 | E13: 4246 | F13: 19502 | G13: 63 | H13: 5.153420162 | I13: 96.1971831 | J13: 23.66980688 | K13: 4.398840106 | L13: 5.153420162 | M13: 2.957230306 | N13: 46.17714121 | P13: 11 | Q13: 05-20-100-010-0000 | R13: 1225 Spruce St | S13: 97131 | T13: 3883 | U13: 21776 | V13: 67 | W13: =S13/U13 -> 4.460461058 | X13: 53.41447852 | Y13: =(U13-$F$3)/$F$3*100 -> 119.0744467 | Z13: =S13/T13 -> 25.01442184 | AA13: =($J$3-Z13)/$J$3*100 -> -1.03199212 | AB13: =S13/U13 -> 4.460461058 | AC13: =($L$3-AB13)/$L$3*100 -> 16.00617035 | AD13: 53.41447852
A14: 05-20-300-037-0000 | B14: 355 Hibbard Rd | D14: 53188 | E14: 2899 | F14: 12933 | G14: 58 | H14: 4.112580221 | I14: 30.11066398 | J14: 18.34701621 | K14: 25.89732398 | L14: 4.112580221 | M14: 22.55702762 | N14: 57.04778234 | P14: 12 | Q14: 05-20-308-060-0000 | R14: 290 Euclid Ave | S14: 66233 | T14: 2637 | U14: 14340 | V14: 60 | W14: =S14/U14 -> 4.618758717 | X14: 51.76120123 | Y14: =(U14-$F$3)/$F$3*100 -> 44.26559356 | Z14: =S14/T14 -> 25.11679939 | AA14: =($J$3-Z14)/$J$3*100 -> -1.445489915 | AB14: =S14/U14 -> 4.618758717 | AC14: =($L$3-AB14)/$L$3*100 -> 13.02530662 | AD14: 51.76120123
A15: 05-20-300-061-0000 | B15: 277 Hibbard Rd | D15: 63501 | E15: 3338 | F15: 14902 | G15: 56 | H15: 4.261240102 | I15: 49.9195171 | J15: 19.02366687 | K15: 23.16436601 | L15: 4.261240102 | M15: 19.75765049 | N15: 55.49516301 | P15: 13 | Q15: 05-20-308-051-0000 | R15: 345 Auburn Ave | S15: 49704 | T15: 2565 | U15: 10494 | V15: 60 | W15: =S15/U15 -> 4.736420812 | X15: 50.53232601 | Y15: =(U15-$F$3)/$F$3*100 -> 5.573440644 | Z15: =S15/T15 -> 19.37777778 | AA15: =($J$3-Z15)/$J$3*100 -> 21.73412984 | AB15: =S15/U15 -> 4.736420812 | AC15: =($L$3-AB15)/$L$3*100 -> 10.80964106 | AD15: 50.53232601
A16: 05-20-300-044-0000 | B16: 319 Hibbard Rd | D16: 87441 | E16: 3862 | F16: 17123 | G16: 67 | H16: 5.106640192 | I16: 72.26358149 | J16: 22.64137752 | K16: 8.552614552 | L16: 5.106640192 | M16: 3.838132262 | N16: 46.66571612 | P16: 14 | Q16: 05-17-117-007-0000 | R16: 960 Old Green Bay Rd | S16: 64978 | T16: 2941 | U16: 13351 | V16: 62 | W16: =S16/U16 -> 4.866901356 | X16: 49.16957357 | Y16: =(U16-$F$3)/$F$3*100 -> 34.31589537 | Z16: =S16/T16 -> 22.09384563 | AA16: =($J$3-Z16)/$J$3*100 -> 10.76406834 | AB16: =S16/U16 -> 4.866901356 | AC16: =($L$3-AB16)/$L$3*100 -> 8.352594484 | AD16: 49.16957357
A17: 05-20-410-003-0000 | B17: 201 Linden St | D17: 82500 | E17: 4217 | F17: 18700 | G17: 48 | H17: 4.411764706 | I17: 88.12877264 | J17: 19.56367086 | K17: 20.98331704 | L17: 4.411764706 | M17: 16.92315922 | N17: 53.92306831 | P17: 15 | Q17: 05-18-402-050-0000 | R17: 1339 Trapp Lane | S17: 107105 | T17: 4183 | U17: 21000 | V17: 66 | W17: =S17/U17 -> 5.100238095 | X17: 46.73258028 | Y17: =(U17-$F$3)/$F$3*100 -> 111.2676056 | Z17: =S17/T17 -> 25.60482907 | AA17: =($J$3-Z17)/$J$3*100 -> -3.416617242 | AB17: =S17/U17 -> 5.100238095 | AC17: =($L$3-AB17)/$L$3*100 -> 3.958688541 | AD17: 46.73258028
A18: 05-20-315-009-0000 | B18: 1210 Lindenwood Dr | D18: 79121 | E18: 3841 | F18: 21645 | G18: 66 | H18: 3.655393855 | I18: 117.7565392 | J18: 20.59906274 | K18: 16.80142127 | L18: 3.655393855 | M18: 31.16619005 | N18: 61.82268453 | P18: 16 | Q18: 05-20-300-044-0000 | R18: 319 Hibbard Rd | S18: 87441 | T18: 3862 | U18: 17123 | V18: 67 | W18: =S18/U18 -> 5.106640192 | X18: 46.66571612 | Y18: =(U18-$F$3)/$F$3*100 -> 72.26358149 | Z18: =S18/T18 -> 22.64137752 | AA18: =($J$3-Z18)/$J$3*100 -> 8.552614552 | AB18: =S18/U18 -> 5.106640192 | AC18: =($L$3-AB18)/$L$3*100 -> 3.838132262 | AD18: 46.66571612
A19: 05-17-117-007-0000 | B19: 960 Old Green Bay Rd | D19: 64978 | E19: 2941 | F19: 13351 | G19: 62 | H19: 4.866901356 | I19: 34.31589537 | J19: 22.09384563 | K19: 10.76406834 | L19: 4.866901356 | M19: 8.352594484 | N19: 49.16957357 | P19: 17 | Q19: 05-18-402-060-0000 | R19: 860 Hibbard Rd | S19: 100502 | T19: 4246 | U19: 19502 | V19: 63 | W19: =S19/U19 -> 5.153420162 | X19: 46.17714121 | Y19: =(U19-$F$3)/$F$3*100 -> 96.1971831 | Z19: =S19/T19 -> 23.66980688 | AA19: =($J$3-Z19)/$J$3*100 -> 4.398840106 | AB19: =S19/U19 -> 5.153420162 | AC19: =($L$3-AB19)/$L$3*100 -> 2.957230306 | AD19: 46.17714121
A20: 05-17-200-055-0000 | B20: 889 Private Rd | D20: 65310 | E20: 3149 | F20: 21488 | G20: 61 | H20: 3.039370812 | I20: 116.1770624 | J20: 20.73991743 | K20: 16.23251626 | L20: 3.039370812 | M20: 42.76636633 | N20: 68.25649358 | P20: 18 | Q20: 05-21-418-049-0000 | R20: 130 Sheridan Rd | S20: 52786 | T20: 2132 | U20: 9940 | V20: 53 | W20: =S20/U20 -> 5.310462777 | X20: 44.53697173 | Y20: =(U20-$F$3)/$F$3*100 -> 0 | Z20: =S20/T20 -> 24.75891182 | AA20: =($J$3-Z20)/$J$3*100 -> 0 | AB20: =S20/U20 -> 5.310462777 | AC20: =($L$3-AB20)/$L$3*100 -> 0 | AD20: 44.53697173
A21: 05-18-216-012-0000 | B21: 1468 Scott Ave | D21: 63981 | E21: 2930 | F21: 6930 | G21: 33 | H21: 9.232467532 | I21: -30.28169014 | J21: 21.83651877 | K21: 11.80339859 | L21: 9.232467532 | M21: -73.85429332 | N21: 3.575144153 | P21: 19 | Q21: 05-20-308-054-0000 | R21: 320 Euclid Ave | S21: 81526 | T21: 3773 | U21: 14802 | V21: 57 | W21: =S21/U21 -> 5.50776922 | X21: 42.47628261 | Y21: =(U21-$F$3)/$F$3*100 -> 48.91348089 | Z21: =S21/T21 -> 21.6077392 | AA21: =($J$3-Z21)/$J$3*100 -> 12.72742778 | AB21: =S21/U21 -> 5.50776922 | AC21: =($L$3-AB21)/$L$3*100 -> -3.715428429 | AD21: 42.47628261
A22: 05-20-100-010-0000 | B22: 1225 Spruce St | D22: 97131 | E22: 3883 | F22: 21776 | G22: 67 | H22: 4.460461058 | I22: 119.0744467 | J22: 25.01442184 | K22: -1.03199212 | L22: 4.460461058 | M22: 16.00617035 | N22: 53.41447852 | P22: 20 | Q22: 05-20-308-069-0000 | R22: 1220 Sunset Rd | S22: 74842 | T22: 3276 | U22: 12693 | V22: 51 | W22: =S22/U22 -> 5.896320807 | X22: 38.41820924 | Y22: =(U22-$F$3)/$F$3*100 -> 27.69617706 | Z22: =S22/T22 -> 22.84554335 | AA22: =($J$3-Z22)/$J$3*100 -> 7.727999067 | AB22: =S22/U22 -> 5.896320807 | AC22: =($L$3-AB22)/$L$3*100 -> -11.03214644 | AD22: 38.41820924
A23: 05-20-308-069-0000 | B23: 1220 Sunset Rd | D23: 74842 | E23: 3276 | F23: 12693 | G23: 51 | H23: 5.896320807 | I23: 27.69617706 | J23: 22.84554335 | K23: 7.727999067 | L23: 5.896320807 | M23: -11.03214644 | N23: 38.41820924 | P23: 21 | Q23: 05-20-120-028-0000 | R23: 371 Berkeley Ave | S23: 67818 | T23: 3067 | U23: 10481 | V23: 65 | W23: =S23/U23 -> 6.470565786 | X23: 32.42073466 | Y23: =(U23-$F$3)/$F$3*100 -> 5.442655936 | Z23: =S23/T23 -> 22.11216172 | AA23: =($J$3-Z23)/$J$3*100 -> 10.69009057 | AB23: =S23/U23 -> 6.470565786 | AC23: =($L$3-AB23)/$L$3*100 -> -21.84561041 | AD23: 32.42073466
A24: 05-20-313-016-0000 | B24: 1240 Sunset Rd | D24: 59002 | E24: 2501 | F24: 13499 | G24: 59 | H24: 4.370842285 | I24: 35.80482897 | J24: 23.59136345 | K24: 4.715669145 | L24: 4.370842285 | M24: 17.69375912 | N24: 54.35046636 | P24: 22 | Q24: 05-18-216-001-0000 | R24: 995 Grove St | S24: 56052 | T24: 2693 | U24: 7950 | V24: 63 | W24: =S24/U24 -> 7.050566038 | X24: 26.36315141 | Y24: =(U24-$F$3)/$F$3*100 -> -20.02012072 | Z24: =S24/T24 -> 20.81396212 | AA24: =($J$3-Z24)/$J$3*100 -> 15.93345348 | AB24: =S24/U24 -> 7.050566038 | AC24: =($L$3-AB24)/$L$3*100 -> -32.76745049 | AD24: 26.36315141
A25: 05-18-106-019-0000 | B25: 1555 Tower Rd | D25: 58880 | E25: 2581 | F25: 23353 | G25: 61 | H25: 2.521303473 | I25: 134.9396378 | J25: 22.81286323 | K25: 7.859992405 | L25: 2.521303473 | M25: 52.52196317 | N25: 73.66724301 | P25: 23 | Q25: 05-18-217-016-0000 | R25: 1437 Asbury Ave | S25: 63694 | T25: 2860 | U25: 7950 | V25: 21 | W25: =S25/U25 -> 8.011823899 | X25: 16.32367383 | Y25: =(U25-$F$3)/$F$3*100 -> -20.02012072 | Z25: =S25/T25 -> 22.27062937 | AA25: =($J$3-Z25)/$J$3*100 -> 10.05004771 | AB25: =S25/U25 -> 8.011823899 | AC25: =($L$3-AB25)/$L$3*100 -> -50.86865752 | AD25: 16.32367383
A26: 05-18-106-018-0000 | B26: 1565 Tower Rd | D26: 66725 | E26: 2627 | F26: 23353 | G26: 61 | H26: 2.857234617 | I26: 134.9396378 | J26: 25.39969547 | K26: -2.588092946 | L26: 2.857234617 | M26: 46.19612759 | N26: 70.15874304 | P26: 24 | Q26: 05-21-418-051-0000 | R26: 127 Fuller Lane | S26: 76361 | T26: 3432 | U26: 8908 | V26: 37 | W26: =S26/U26 -> 8.572182308 | X26: 10.47123205 | Y26: =(U26-$F$3)/$F$3*100 -> -10.38229376 | Z26: =S26/T26 -> 22.24970862 | AA26: =($J$3-Z26)/$J$3*100 -> 10.13454555 | AB26: =S26/U26 -> 8.572182308 | AC26: =($L$3-AB26)/$L$3*100 -> -61.42062695 | AD26: 10.47123205
A27: 05-18-402-050-0000 | B27: 1339 Trapp Lane | D27: 107105 | E27: 4183 | F27: 21000 | G27: 66 | H27: 5.100238095 | I27: 111.2676056 | J27: 25.60482907 | K27: -3.416617242 | L27: 5.100238095 | M27: 3.958688541 | N27: 46.73258028 | P27: 25 | Q27: 05-20-225-030-0000 | R27: 368 Birch St | S27: 85100 | T27: 3502 | U27: 9348 | V27: 27 | W27: =S27/U27 -> 9.103551562 | X27: 4.921556024 | Y27: =(U27-$F$3)/$F$3*100 -> -5.955734406 | Z27: =S27/T27 -> 24.30039977 | AA27: =($J$3-Z27)/$J$3*100 -> 1.85190711 | AB27: =S27/U27 -> 9.103551562 | AC27: =($L$3-AB27)/$L$3*100 -> -71.42670883 | AD27: 4.921556024
A28: 05-18-402-061-0000 | B28: 1383 Westmoor Trl | D28: 78020 | E28: 3075 | F28: 20996 | G28: 64 | H28: 3.715945894 | I28: 111.2273642 | J28: 25.37235772 | K28: -2.477677162 | L28: 3.715945894 | M28: 30.0259497 | N28: 61.1902727 | P28: 26 | Q28: 05-18-216-012-0000 | R28: 1468 Scott Ave | S28: 63981 | T28: 2930 | U28: 6930 | V28: 33 | W28: =S28/U28 -> 9.232467532 | X28: 3.575144153 | Y28: =(U28-$F$3)/$F$3*100 -> -30.28169014 | Z28: =S28/T28 -> 21.83651877 | AA28: =($J$3-Z28)/$J$3*100 -> 11.80339859 | AB28: =S28/U28 -> 9.232467532 | AC28: =($L$3-AB28)/$L$3*100 -> -73.85429332 | AD28: 3.575144153
